{"text_format":"1","workbook":"xlsx","n_sheets":5,"sheets":["Petty Cash Report","Count sheet","Setup","SETUP2","Journal"],"not_rendered":{"charts":0,"images":1,"macros":1,"external_links":1,"defined_names":105,"comments":1,"pivot_tables":0},"unopened":[],"bounds":{"document_bytes":16777216,"sheet_cells":100000,"rows_first":2000,"rows_last":500,"rows_between":2000,"halvings":0,"cell_chars":16384,"cell_head_chars":4096},"cells_cut":0,"cells_raw":0,"read":"whole","date_system":"1900"}

{"sheet":"Petty Cash Report","index":0,"n_rows":69,"n_cols":20,"rows_kept":69,"cut":false,"hidden":false,"merged":[[0,0,3,4],[64,9,64,10],[65,9,65,10],[66,9,66,10],[67,9,67,10],[68,9,68,10],[59,9,59,10],[60,9,60,10],[61,9,61,10],[62,9,62,10],[63,9,63,10],[54,9,54,10],[55,9,55,10],[56,9,56,10],[57,9,57,10],[58,9,58,10],[49,9,49,10],[50,9,50,10],[51,9,51,10],[52,9,52,10],[53,9,53,10],[44,9,44,10],[45,9,45,10],[46,9,46,10],[47,9,47,10],[48,9,48,10],[39,9,39,10],[40,9,40,10],[41,9,41,10],[42,9,42,10],[43,9,43,10],[34,9,34,10],[35,9,35,10],[36,9,36,10],[37,9,37,10],[38,9,38,10],[29,9,29,10],[30,9,30,10],[31,9,31,10],[32,9,32,10],[33,9,33,10],[24,9,24,10],[25,9,25,10],[26,9,26,10],[27,9,27,10],[28,9,28,10],[19,9,19,10],[20,9,20,10],[21,9,21,10],[22,9,22,10],[23,9,23,10],[4,0,17,0],[4,4,17,4],[4,3,17,3],[4,2,17,2],[4,1,17,1],[19,13,19,14],[20,13,20,14],[21,13,21,14],[22,13,22,14],[23,13,23,14],[24,13,24,14],[25,13,25,14],[26,13,26,14],[27,13,27,14],[28,13,28,14],[29,13,29,14],[30,13,30,14],[31,13,31,14],[32,13,32,14],[33,13,33,14],[35,13,35,14],[36,13,36,14],[37,13,37,14],[45,13,45,14],[46,13,46,14],[47,13,47,14],[48,13,48,14],[39,13,39,14],[40,13,40,14],[41,13,41,14],[42,13,42,14],[43,13,43,14],[68,13,68,14],[59,13,59,14],[60,13,60,14],[61,13,61,14],[62,13,62,14],[63,13,63,14],[18,13,18,14],[64,13,64,14],[65,13,65,14],[66,13,66,14],[67,13,67,14],[54,13,54,14],[55,13,55,14],[56,13,56,14],[57,13,57,14],[58,13,58,14],[49,13,49,14],[50,13,50,14],[51,13,51,14],[52,13,52,14],[53,13,53,14],[44,13,44,14],[38,13,38,14],[34,13,34,14]]}
["Ocultar"]
[null,null,null,null,null,null,null,null,null,null,null,null,null,null,null,null,null,null,"Mini Set-up"]
[null,null,null,null,null,null,null,null,null,null,null,null,null,null,null,null,null,null,"BU",{"$f":"VLOOKUP(J12,SETUP2!$C$5:$D$10,2,FALSE)","v":{"$error":"#N/A"}}]
[null,null,null,null,null,null,null,null,null,null,null,null,null,null,null,null,null,null,"Center",{"$f":"IF(BA=9039,\"Centro_9039\",IF(BA=9700,\"Centro_9700\",\"Centro_Otros\"))","v":"Centro_Otros"}]
[null,null,null,null,"Linea para departamentos",null,null,null,null,null,null,null,null,null,null,null,null,null,"Currency",{"$f":"CONCATENATE(\"CURR\",T3)","v":{"$error":"#N/A"}}]
[]
[]
[null,null,null,null,null,null,null,null,null,null,null,null,null,null,null,"Reimbursement"]
[null,null,null,null,null,null,null,null,"Petty Cash report",null,null,null,null,null,null,"* Fill in case a reimbursement of the petty cash fund"]
[]
[null,null,null,null,null,null,null,null,"Contact Name",null,null,null,null,null,"Date","Amount"]
[null,null,null,null,null,null,null,null,"Business Unit",null,null,"Year"]
[null,null,null,null,null,null,null,null,"Country",null,null,"Month"]
[null,null,null,null,null,null,null,null,"Center",null,null,"Currency"]
[null,null,null,null,null,null,null,null,"Business Area",{"$f":"IF(Hotel=\"\",\"\",VLOOKUP(Hotel,SETUP2!F:J,5,FALSE))","v":""},null,"Opening Balance"]
[null,null,null,null,null,null,null,null,"Company Code",{"$f":"IF(J14=\"\",\"\",VLOOKUP(Hotel,SETUP2!F:J,4,FALSE))","v":""},null,"Closing Balance",{"$f":"StartSaldo-SUM(N20:O69)+SUM(P13:P16)","v":0}]
[null,null,null,null,null,null,null,null,null,null,null,null,null,null,null,null,null,null,"Nro. Cuenta","CeCo"]
[]
[null,null,null,null,null,null,null,"Nr","Date","Expense category",null,"Department","Comments","Amount",null,"Running Balance"]
[null,null,null,null,{"$f":"CONCATENATE(VLOOKUP(J20,SETUP2!O:R,4,FALSE),IF(BA=9039,\"_9039\",\"\"))","v":{"$error":"#N/A"}},null,null,1,null,null,null,null,null,null,null,{"$f":"IF(I20=\"\",\"\",SUMIF($O$13:$O$16,\"<=\"&I20,$P$13:$P$16)+$M$15-SUM($N$20:$N20))","v":""},null,null,{"$f":"IF(I20=\"\",\"\",VLOOKUP(J20,SETUP2!$O:$Q,3,FALSE))","v":""},{"$f":"HLOOKUP(L20,SETUP2!$T$39:$BB$40,2,FALSE)","v":{"$error":"#N/A"}}]
[null,null,null,null,{"$f":"CONCATENATE(VLOOKUP(J21,SETUP2!O:R,4,FALSE),IF(BA=9039,\"_9039\",\"\"))","v":{"$error":"#N/A"}},null,null,2,null,null,null,null,null,null,null,{"$f":"IF(I21=\"\",\"\",SUMIF($O$13:$O$16,\"<=\"&I21,$P$13:$P$16)+$M$15-SUM($N$20:$N21))","v":""},null,null,{"$f":"IF(I21=\"\",\"\",VLOOKUP(J21,SETUP2!$O:$Q,3,FALSE))","v":""},{"$f":"HLOOKUP(L21,SETUP2!$T$39:$BB$40,2,FALSE)","v":{"$error":"#N/A"}}]
[null,null,null,null,{"$f":"CONCATENATE(VLOOKUP(J22,SETUP2!O:R,4,FALSE),IF(BA=9039,\"_9039\",\"\"))","v":{"$error":"#N/A"}},null,null,3,null,null,null,null,null,null,null,{"$f":"IF(I22=\"\",\"\",SUMIF($O$13:$O$16,\"<=\"&I22,$P$13:$P$16)+$M$15-SUM($N$20:$N22))","v":""},null,null,{"$f":"IF(I22=\"\",\"\",VLOOKUP(J22,SETUP2!$O:$Q,3,FALSE))","v":""},{"$f":"HLOOKUP(L22,SETUP2!$T$39:$BB$40,2,FALSE)","v":{"$error":"#N/A"}}]
[null,null,null,null,{"$f":"CONCATENATE(VLOOKUP(J23,SETUP2!O:R,4,FALSE),IF(BA=9039,\"_9039\",\"\"))","v":{"$error":"#N/A"}},null,null,4,null,null,null,null,null,null,null,{"$f":"IF(I23=\"\",\"\",SUMIF($O$13:$O$16,\"<=\"&I23,$P$13:$P$16)+$M$15-SUM($N$20:$N23))","v":""},null,null,{"$f":"IF(I23=\"\",\"\",VLOOKUP(J23,SETUP2!$O:$Q,3,FALSE))","v":""},{"$f":"HLOOKUP(L23,SETUP2!$T$39:$BB$40,2,FALSE)","v":{"$error":"#N/A"}}]
[null,null,null,null,{"$f":"CONCATENATE(VLOOKUP(J24,SETUP2!O:R,4,FALSE),IF(BA=9039,\"_9039\",\"\"))","v":{"$error":"#N/A"}},null,null,5,null,null,null,null,null,null,null,{"$f":"IF(I24=\"\",\"\",SUMIF($O$13:$O$16,\"<=\"&I24,$P$13:$P$16)+$M$15-SUM($N$20:$N24))","v":""},null,null,{"$f":"IF(I24=\"\",\"\",VLOOKUP(J24,SETUP2!$O:$Q,3,FALSE))","v":""},{"$f":"HLOOKUP(L24,SETUP2!$T$39:$BB$40,2,FALSE)","v":{"$error":"#N/A"}}]
[null,null,null,null,{"$f":"CONCATENATE(VLOOKUP(J25,SETUP2!O:R,4,FALSE),IF(BA=9039,\"_9039\",\"\"))","v":{"$error":"#N/A"}},null,null,6,null,null,null,null,null,null,null,{"$f":"IF(I25=\"\",\"\",SUMIF($O$13:$O$16,\"<=\"&I25,$P$13:$P$16)+$M$15-SUM($N$20:$N25))","v":""},null,null,{"$f":"IF(I25=\"\",\"\",VLOOKUP(J25,SETUP2!$O:$Q,3,FALSE))","v":""},{"$f":"HLOOKUP(L25,SETUP2!$T$39:$BB$40,2,FALSE)","v":{"$error":"#N/A"}}]
[null,null,null,null,{"$f":"CONCATENATE(VLOOKUP(J26,SETUP2!O:R,4,FALSE),IF(BA=9039,\"_9039\",\"\"))","v":{"$error":"#N/A"}},null,null,7,null,null,null,null,null,null,null,{"$f":"IF(I26=\"\",\"\",SUMIF($O$13:$O$16,\"<=\"&I26,$P$13:$P$16)+$M$15-SUM($N$20:$N26))","v":""},null,null,{"$f":"IF(I26=\"\",\"\",VLOOKUP(J26,SETUP2!$O:$Q,3,FALSE))","v":""},{"$f":"HLOOKUP(L26,SETUP2!$T$39:$BB$40,2,FALSE)","v":{"$error":"#N/A"}}]
[null,null,null,null,{"$f":"CONCATENATE(VLOOKUP(J27,SETUP2!O:R,4,FALSE),IF(BA=9039,\"_9039\",\"\"))","v":{"$error":"#N/A"}},null,null,8,null,null,null,null,null,null,null,{"$f":"IF(I27=\"\",\"\",SUMIF($O$13:$O$16,\"<=\"&I27,$P$13:$P$16)+$M$15-SUM($N$20:$N27))","v":""},null,null,{"$f":"IF(I27=\"\",\"\",VLOOKUP(J27,SETUP2!$O:$Q,3,FALSE))","v":""},{"$f":"HLOOKUP(L27,SETUP2!$T$39:$BB$40,2,FALSE)","v":{"$error":"#N/A"}}]
[null,null,null,null,{"$f":"CONCATENATE(VLOOKUP(J28,SETUP2!O:R,4,FALSE),IF(BA=9039,\"_9039\",\"\"))","v":{"$error":"#N/A"}},null,null,9,null,null,null,null,null,null,null,{"$f":"IF(I28=\"\",\"\",SUMIF($O$13:$O$16,\"<=\"&I28,$P$13:$P$16)+$M$15-SUM($N$20:$N28))","v":""},null,null,{"$f":"IF(I28=\"\",\"\",VLOOKUP(J28,SETUP2!$O:$Q,3,FALSE))","v":""},{"$f":"HLOOKUP(L28,SETUP2!$T$39:$BB$40,2,FALSE)","v":{"$error":"#N/A"}}]
[null,null,null,null,{"$f":"CONCATENATE(VLOOKUP(J29,SETUP2!O:R,4,FALSE),IF(BA=9039,\"_9039\",\"\"))","v":{"$error":"#N/A"}},null,null,10,null,null,null,null,null,null,null,{"$f":"IF(I29=\"\",\"\",SUMIF($O$13:$O$16,\"<=\"&I29,$P$13:$P$16)+$M$15-SUM($N$20:$N29))","v":""},null,null,{"$f":"IF(I29=\"\",\"\",VLOOKUP(J29,SETUP2!$O:$Q,3,FALSE))","v":""},{"$f":"HLOOKUP(L29,SETUP2!$T$39:$BB$40,2,FALSE)","v":{"$error":"#N/A"}}]
[null,null,null,null,{"$f":"CONCATENATE(VLOOKUP(J30,SETUP2!O:R,4,FALSE),IF(BA=9039,\"_9039\",\"\"))","v":{"$error":"#N/A"}},null,null,11,null,null,null,null,null,null,null,{"$f":"IF(I30=\"\",\"\",SUMIF($O$13:$O$16,\"<=\"&I30,$P$13:$P$16)+$M$15-SUM($N$20:$N30))","v":""},null,null,{"$f":"IF(I30=\"\",\"\",VLOOKUP(J30,SETUP2!$O:$Q,3,FALSE))","v":""},{"$f":"HLOOKUP(L30,SETUP2!$T$39:$BB$40,2,FALSE)","v":{"$error":"#N/A"}}]
[null,null,null,null,{"$f":"CONCATENATE(VLOOKUP(J31,SETUP2!O:R,4,FALSE),IF(BA=9039,\"_9039\",\"\"))","v":{"$error":"#N/A"}},null,null,12,null,null,null,null,null,null,null,{"$f":"IF(I31=\"\",\"\",SUMIF($O$13:$O$16,\"<=\"&I31,$P$13:$P$16)+$M$15-SUM($N$20:$N31))","v":""},null,null,{"$f":"IF(I31=\"\",\"\",VLOOKUP(J31,SETUP2!$O:$Q,3,FALSE))","v":""},{"$f":"HLOOKUP(L31,SETUP2!$T$39:$BB$40,2,FALSE)","v":{"$error":"#N/A"}}]
[null,null,null,null,{"$f":"CONCATENATE(VLOOKUP(J32,SETUP2!O:R,4,FALSE),IF(BA=9039,\"_9039\",\"\"))","v":{"$error":"#N/A"}},null,null,13,null,null,null,null,null,null,null,{"$f":"IF(I32=\"\",\"\",SUMIF($O$13:$O$16,\"<=\"&I32,$P$13:$P$16)+$M$15-SUM($N$20:$N32))","v":""},null,null,{"$f":"IF(I32=\"\",\"\",VLOOKUP(J32,SETUP2!$O:$Q,3,FALSE))","v":""},{"$f":"HLOOKUP(L32,SETUP2!$T$39:$BB$40,2,FALSE)","v":{"$error":"#N/A"}}]
[null,null,null,null,{"$f":"CONCATENATE(VLOOKUP(J33,SETUP2!O:R,4,FALSE),IF(BA=9039,\"_9039\",\"\"))","v":{"$error":"#N/A"}},null,null,14,null,null,null,null,null,null,null,{"$f":"IF(I33=\"\",\"\",SUMIF($O$13:$O$16,\"<=\"&I33,$P$13:$P$16)+$M$15-SUM($N$20:$N33))","v":""},null,null,{"$f":"IF(I33=\"\",\"\",VLOOKUP(J33,SETUP2!$O:$Q,3,FALSE))","v":""},{"$f":"HLOOKUP(L33,SETUP2!$T$39:$BB$40,2,FALSE)","v":{"$error":"#N/A"}}]
[null,null,null,null,{"$f":"CONCATENATE(VLOOKUP(J34,SETUP2!O:R,4,FALSE),IF(BA=9039,\"_9039\",\"\"))","v":{"$error":"#N/A"}},null,null,15,null,null,null,null,null,null,null,{"$f":"IF(I34=\"\",\"\",SUMIF($O$13:$O$16,\"<=\"&I34,$P$13:$P$16)+$M$15-SUM($N$20:$N34))","v":""},null,null,{"$f":"IF(I34=\"\",\"\",VLOOKUP(J34,SETUP2!$O:$Q,3,FALSE))","v":""},{"$f":"HLOOKUP(L34,SETUP2!$T$39:$BB$40,2,FALSE)","v":{"$error":"#N/A"}}]
[null,null,null,null,{"$f":"CONCATENATE(VLOOKUP(J35,SETUP2!O:R,4,FALSE),IF(BA=9039,\"_9039\",\"\"))","v":{"$error":"#N/A"}},null,null,16,null,null,null,null,null,null,null,{"$f":"IF(I35=\"\",\"\",SUMIF($O$13:$O$16,\"<=\"&I35,$P$13:$P$16)+$M$15-SUM($N$20:$N35))","v":""},null,null,{"$f":"IF(I35=\"\",\"\",VLOOKUP(J35,SETUP2!$O:$Q,3,FALSE))","v":""},{"$f":"HLOOKUP(L35,SETUP2!$T$39:$BB$40,2,FALSE)","v":{"$error":"#N/A"}}]
[null,null,null,null,{"$f":"CONCATENATE(VLOOKUP(J36,SETUP2!O:R,4,FALSE),IF(BA=9039,\"_9039\",\"\"))","v":{"$error":"#N/A"}},null,null,17,null,null,null,null,null,null,null,{"$f":"IF(I36=\"\",\"\",SUMIF($O$13:$O$16,\"<=\"&I36,$P$13:$P$16)+$M$15-SUM($N$20:$N36))","v":""},null,null,{"$f":"IF(I36=\"\",\"\",VLOOKUP(J36,SETUP2!$O:$Q,3,FALSE))","v":""},{"$f":"HLOOKUP(L36,SETUP2!$T$39:$BB$40,2,FALSE)","v":{"$error":"#N/A"}}]
[null,null,null,null,{"$f":"CONCATENATE(VLOOKUP(J37,SETUP2!O:R,4,FALSE),IF(BA=9039,\"_9039\",\"\"))","v":{"$error":"#N/A"}},null,null,18,null,null,null,null,null,null,null,{"$f":"IF(I37=\"\",\"\",SUMIF($O$13:$O$16,\"<=\"&I37,$P$13:$P$16)+$M$15-SUM($N$20:$N37))","v":""},null,null,{"$f":"IF(I37=\"\",\"\",VLOOKUP(J37,SETUP2!$O:$Q,3,FALSE))","v":""},{"$f":"HLOOKUP(L37,SETUP2!$T$39:$BB$40,2,FALSE)","v":{"$error":"#N/A"}}]
[null,null,null,null,{"$f":"CONCATENATE(VLOOKUP(J38,SETUP2!O:R,4,FALSE),IF(BA=9039,\"_9039\",\"\"))","v":{"$error":"#N/A"}},null,null,19,null,null,null,null,null,null,null,{"$f":"IF(I38=\"\",\"\",SUMIF($O$13:$O$16,\"<=\"&I38,$P$13:$P$16)+$M$15-SUM($N$20:$N38))","v":""},null,null,{"$f":"IF(I38=\"\",\"\",VLOOKUP(J38,SETUP2!$O:$Q,3,FALSE))","v":""},{"$f":"HLOOKUP(L38,SETUP2!$T$39:$BB$40,2,FALSE)","v":{"$error":"#N/A"}}]
[null,null,null,null,{"$f":"CONCATENATE(VLOOKUP(J39,SETUP2!O:R,4,FALSE),IF(BA=9039,\"_9039\",\"\"))","v":{"$error":"#N/A"}},null,null,20,null,null,null,null,null,null,null,{"$f":"IF(I39=\"\",\"\",SUMIF($O$13:$O$16,\"<=\"&I39,$P$13:$P$16)+$M$15-SUM($N$20:$N39))","v":""},null,null,{"$f":"IF(I39=\"\",\"\",VLOOKUP(J39,SETUP2!$O:$Q,3,FALSE))","v":""},{"$f":"HLOOKUP(L39,SETUP2!$T$39:$BB$40,2,FALSE)","v":{"$error":"#N/A"}}]
[null,null,null,null,{"$f":"CONCATENATE(VLOOKUP(J40,SETUP2!O:R,4,FALSE),IF(BA=9039,\"_9039\",\"\"))","v":{"$error":"#N/A"}},null,null,21,null,null,null,null,null,null,null,{"$f":"IF(I40=\"\",\"\",SUMIF($O$13:$O$16,\"<=\"&I40,$P$13:$P$16)+$M$15-SUM($N$20:$N40))","v":""},null,null,{"$f":"IF(I40=\"\",\"\",VLOOKUP(J40,SETUP2!$O:$Q,3,FALSE))","v":""},{"$f":"HLOOKUP(L40,SETUP2!$T$39:$BB$40,2,FALSE)","v":{"$error":"#N/A"}}]
[null,null,null,null,{"$f":"CONCATENATE(VLOOKUP(J41,SETUP2!O:R,4,FALSE),IF(BA=9039,\"_9039\",\"\"))","v":{"$error":"#N/A"}},null,null,22,null,null,null,null,null,null,null,{"$f":"IF(I41=\"\",\"\",SUMIF($O$13:$O$16,\"<=\"&I41,$P$13:$P$16)+$M$15-SUM($N$20:$N41))","v":""},null,null,{"$f":"IF(I41=\"\",\"\",VLOOKUP(J41,SETUP2!$O:$Q,3,FALSE))","v":""},{"$f":"HLOOKUP(L41,SETUP2!$T$39:$BB$40,2,FALSE)","v":{"$error":"#N/A"}}]
[null,null,null,null,{"$f":"CONCATENATE(VLOOKUP(J42,SETUP2!O:R,4,FALSE),IF(BA=9039,\"_9039\",\"\"))","v":{"$error":"#N/A"}},null,null,23,null,null,null,null,null,null,null,{"$f":"IF(I42=\"\",\"\",SUMIF($O$13:$O$16,\"<=\"&I42,$P$13:$P$16)+$M$15-SUM($N$20:$N42))","v":""},null,null,{"$f":"IF(I42=\"\",\"\",VLOOKUP(J42,SETUP2!$O:$Q,3,FALSE))","v":""},{"$f":"HLOOKUP(L42,SETUP2!$T$39:$BB$40,2,FALSE)","v":{"$error":"#N/A"}}]
[null,null,null,null,{"$f":"CONCATENATE(VLOOKUP(J43,SETUP2!O:R,4,FALSE),IF(BA=9039,\"_9039\",\"\"))","v":{"$error":"#N/A"}},null,null,24,null,null,null,null,null,null,null,{"$f":"IF(I43=\"\",\"\",SUMIF($O$13:$O$16,\"<=\"&I43,$P$13:$P$16)+$M$15-SUM($N$20:$N43))","v":""},null,null,{"$f":"IF(I43=\"\",\"\",VLOOKUP(J43,SETUP2!$O:$Q,3,FALSE))","v":""},{"$f":"HLOOKUP(L43,SETUP2!$T$39:$BB$40,2,FALSE)","v":{"$error":"#N/A"}}]
[null,null,null,null,{"$f":"CONCATENATE(VLOOKUP(J44,SETUP2!O:R,4,FALSE),IF(BA=9039,\"_9039\",\"\"))","v":{"$error":"#N/A"}},null,null,25,null,null,null,null,null,null,null,{"$f":"IF(I44=\"\",\"\",SUMIF($O$13:$O$16,\"<=\"&I44,$P$13:$P$16)+$M$15-SUM($N$20:$N44))","v":""},null,null,{"$f":"IF(I44=\"\",\"\",VLOOKUP(J44,SETUP2!$O:$Q,3,FALSE))","v":""},{"$f":"HLOOKUP(L44,SETUP2!$T$39:$BB$40,2,FALSE)","v":{"$error":"#N/A"}}]
[null,null,null,null,{"$f":"CONCATENATE(VLOOKUP(J45,SETUP2!O:R,4,FALSE),IF(BA=9039,\"_9039\",\"\"))","v":{"$error":"#N/A"}},null,null,26,null,null,null,null,null,null,null,{"$f":"IF(I45=\"\",\"\",SUMIF($O$13:$O$16,\"<=\"&I45,$P$13:$P$16)+$M$15-SUM($N$20:$N45))","v":""},null,null,{"$f":"IF(I45=\"\",\"\",VLOOKUP(J45,SETUP2!$O:$Q,3,FALSE))","v":""},{"$f":"HLOOKUP(L45,SETUP2!$T$39:$BB$40,2,FALSE)","v":{"$error":"#N/A"}}]
[null,null,null,null,{"$f":"CONCATENATE(VLOOKUP(J46,SETUP2!O:R,4,FALSE),IF(BA=9039,\"_9039\",\"\"))","v":{"$error":"#N/A"}},null,null,27,null,null,null,null,null,null,null,{"$f":"IF(I46=\"\",\"\",SUMIF($O$13:$O$16,\"<=\"&I46,$P$13:$P$16)+$M$15-SUM($N$20:$N46))","v":""},null,null,{"$f":"IF(I46=\"\",\"\",VLOOKUP(J46,SETUP2!$O:$Q,3,FALSE))","v":""},{"$f":"HLOOKUP(L46,SETUP2!$T$39:$BB$40,2,FALSE)","v":{"$error":"#N/A"}}]
[null,null,null,null,{"$f":"CONCATENATE(VLOOKUP(J47,SETUP2!O:R,4,FALSE),IF(BA=9039,\"_9039\",\"\"))","v":{"$error":"#N/A"}},null,null,28,null,null,null,null,null,null,null,{"$f":"IF(I47=\"\",\"\",SUMIF($O$13:$O$16,\"<=\"&I47,$P$13:$P$16)+$M$15-SUM($N$20:$N47))","v":""},null,null,{"$f":"IF(I47=\"\",\"\",VLOOKUP(J47,SETUP2!$O:$Q,3,FALSE))","v":""},{"$f":"HLOOKUP(L47,SETUP2!$T$39:$BB$40,2,FALSE)","v":{"$error":"#N/A"}}]
[null,null,null,null,{"$f":"CONCATENATE(VLOOKUP(J48,SETUP2!O:R,4,FALSE),IF(BA=9039,\"_9039\",\"\"))","v":{"$error":"#N/A"}},null,null,29,null,null,null,null,null,null,null,{"$f":"IF(I48=\"\",\"\",SUMIF($O$13:$O$16,\"<=\"&I48,$P$13:$P$16)+$M$15-SUM($N$20:$N48))","v":""},null,null,{"$f":"IF(I48=\"\",\"\",VLOOKUP(J48,SETUP2!$O:$Q,3,FALSE))","v":""},{"$f":"HLOOKUP(L48,SETUP2!$T$39:$BB$40,2,FALSE)","v":{"$error":"#N/A"}}]
[null,null,null,null,{"$f":"CONCATENATE(VLOOKUP(J49,SETUP2!O:R,4,FALSE),IF(BA=9039,\"_9039\",\"\"))","v":{"$error":"#N/A"}},null,null,30,null,null,null,null,null,null,null,{"$f":"IF(I49=\"\",\"\",SUMIF($O$13:$O$16,\"<=\"&I49,$P$13:$P$16)+$M$15-SUM($N$20:$N49))","v":""},null,null,{"$f":"IF(I49=\"\",\"\",VLOOKUP(J49,SETUP2!$O:$Q,3,FALSE))","v":""},{"$f":"HLOOKUP(L49,SETUP2!$T$39:$BB$40,2,FALSE)","v":{"$error":"#N/A"}}]
[null,null,null,null,{"$f":"CONCATENATE(VLOOKUP(J50,SETUP2!O:R,4,FALSE),IF(BA=9039,\"_9039\",\"\"))","v":{"$error":"#N/A"}},null,null,31,null,null,null,null,null,null,null,{"$f":"IF(I50=\"\",\"\",SUMIF($O$13:$O$16,\"<=\"&I50,$P$13:$P$16)+$M$15-SUM($N$20:$N50))","v":""},null,null,{"$f":"IF(I50=\"\",\"\",VLOOKUP(J50,SETUP2!$O:$Q,3,FALSE))","v":""},{"$f":"HLOOKUP(L50,SETUP2!$T$39:$BB$40,2,FALSE)","v":{"$error":"#N/A"}}]
[null,null,null,null,{"$f":"CONCATENATE(VLOOKUP(J51,SETUP2!O:R,4,FALSE),IF(BA=9039,\"_9039\",\"\"))","v":{"$error":"#N/A"}},null,null,32,null,null,null,null,null,null,null,{"$f":"IF(I51=\"\",\"\",SUMIF($O$13:$O$16,\"<=\"&I51,$P$13:$P$16)+$M$15-SUM($N$20:$N51))","v":""},null,null,{"$f":"IF(I51=\"\",\"\",VLOOKUP(J51,SETUP2!$O:$Q,3,FALSE))","v":""},{"$f":"HLOOKUP(L51,SETUP2!$T$39:$BB$40,2,FALSE)","v":{"$error":"#N/A"}}]
[null,null,null,null,{"$f":"CONCATENATE(VLOOKUP(J52,SETUP2!O:R,4,FALSE),IF(BA=9039,\"_9039\",\"\"))","v":{"$error":"#N/A"}},null,null,33,null,null,null,null,null,null,null,{"$f":"IF(I52=\"\",\"\",SUMIF($O$13:$O$16,\"<=\"&I52,$P$13:$P$16)+$M$15-SUM($N$20:$N52))","v":""},null,null,{"$f":"IF(I52=\"\",\"\",VLOOKUP(J52,SETUP2!$O:$Q,3,FALSE))","v":""},{"$f":"HLOOKUP(L52,SETUP2!$T$39:$BB$40,2,FALSE)","v":{"$error":"#N/A"}}]
[null,null,null,null,{"$f":"CONCATENATE(VLOOKUP(J53,SETUP2!O:R,4,FALSE),IF(BA=9039,\"_9039\",\"\"))","v":{"$error":"#N/A"}},null,null,34,null,null,null,null,null,null,null,{"$f":"IF(I53=\"\",\"\",SUMIF($O$13:$O$16,\"<=\"&I53,$P$13:$P$16)+$M$15-SUM($N$20:$N53))","v":""},null,null,{"$f":"IF(I53=\"\",\"\",VLOOKUP(J53,SETUP2!$O:$Q,3,FALSE))","v":""},{"$f":"HLOOKUP(L53,SETUP2!$T$39:$BB$40,2,FALSE)","v":{"$error":"#N/A"}}]
[null,null,null,null,{"$f":"CONCATENATE(VLOOKUP(J54,SETUP2!O:R,4,FALSE),IF(BA=9039,\"_9039\",\"\"))","v":{"$error":"#N/A"}},null,null,35,null,null,null,null,null,null,null,{"$f":"IF(I54=\"\",\"\",SUMIF($O$13:$O$16,\"<=\"&I54,$P$13:$P$16)+$M$15-SUM($N$20:$N54))","v":""},null,null,{"$f":"IF(I54=\"\",\"\",VLOOKUP(J54,SETUP2!$O:$Q,3,FALSE))","v":""},{"$f":"HLOOKUP(L54,SETUP2!$T$39:$BB$40,2,FALSE)","v":{"$error":"#N/A"}}]
[null,null,null,null,{"$f":"CONCATENATE(VLOOKUP(J55,SETUP2!O:R,4,FALSE),IF(BA=9039,\"_9039\",\"\"))","v":{"$error":"#N/A"}},null,null,36,null,null,null,null,null,null,null,{"$f":"IF(I55=\"\",\"\",SUMIF($O$13:$O$16,\"<=\"&I55,$P$13:$P$16)+$M$15-SUM($N$20:$N55))","v":""},null,null,{"$f":"IF(I55=\"\",\"\",VLOOKUP(J55,SETUP2!$O:$Q,3,FALSE))","v":""},{"$f":"HLOOKUP(L55,SETUP2!$T$39:$BB$40,2,FALSE)","v":{"$error":"#N/A"}}]
[null,null,null,null,{"$f":"CONCATENATE(VLOOKUP(J56,SETUP2!O:R,4,FALSE),IF(BA=9039,\"_9039\",\"\"))","v":{"$error":"#N/A"}},null,null,37,null,null,null,null,null,null,null,{"$f":"IF(I56=\"\",\"\",SUMIF($O$13:$O$16,\"<=\"&I56,$P$13:$P$16)+$M$15-SUM($N$20:$N56))","v":""},null,null,{"$f":"IF(I56=\"\",\"\",VLOOKUP(J56,SETUP2!$O:$Q,3,FALSE))","v":""},{"$f":"HLOOKUP(L56,SETUP2!$T$39:$BB$40,2,FALSE)","v":{"$error":"#N/A"}}]
[null,null,null,null,{"$f":"CONCATENATE(VLOOKUP(J57,SETUP2!O:R,4,FALSE),IF(BA=9039,\"_9039\",\"\"))","v":{"$error":"#N/A"}},null,null,38,null,null,null,null,null,null,null,{"$f":"IF(I57=\"\",\"\",SUMIF($O$13:$O$16,\"<=\"&I57,$P$13:$P$16)+$M$15-SUM($N$20:$N57))","v":""},null,null,{"$f":"IF(I57=\"\",\"\",VLOOKUP(J57,SETUP2!$O:$Q,3,FALSE))","v":""},{"$f":"HLOOKUP(L57,SETUP2!$T$39:$BB$40,2,FALSE)","v":{"$error":"#N/A"}}]
[null,null,null,null,{"$f":"CONCATENATE(VLOOKUP(J58,SETUP2!O:R,4,FALSE),IF(BA=9039,\"_9039\",\"\"))","v":{"$error":"#N/A"}},null,null,39,null,null,null,null,null,null,null,{"$f":"IF(I58=\"\",\"\",SUMIF($O$13:$O$16,\"<=\"&I58,$P$13:$P$16)+$M$15-SUM($N$20:$N58))","v":""},null,null,{"$f":"IF(I58=\"\",\"\",VLOOKUP(J58,SETUP2!$O:$Q,3,FALSE))","v":""},{"$f":"HLOOKUP(L58,SETUP2!$T$39:$BB$40,2,FALSE)","v":{"$error":"#N/A"}}]
[null,null,null,null,{"$f":"CONCATENATE(VLOOKUP(J59,SETUP2!O:R,4,FALSE),IF(BA=9039,\"_9039\",\"\"))","v":{"$error":"#N/A"}},null,null,40,null,null,null,null,null,null,null,{"$f":"IF(I59=\"\",\"\",SUMIF($O$13:$O$16,\"<=\"&I59,$P$13:$P$16)+$M$15-SUM($N$20:$N59))","v":""},null,null,{"$f":"IF(I59=\"\",\"\",VLOOKUP(J59,SETUP2!$O:$Q,3,FALSE))","v":""},{"$f":"HLOOKUP(L59,SETUP2!$T$39:$BB$40,2,FALSE)","v":{"$error":"#N/A"}}]
[null,null,null,null,{"$f":"CONCATENATE(VLOOKUP(J60,SETUP2!O:R,4,FALSE),IF(BA=9039,\"_9039\",\"\"))","v":{"$error":"#N/A"}},null,null,41,null,null,null,null,null,null,null,{"$f":"IF(I60=\"\",\"\",SUMIF($O$13:$O$16,\"<=\"&I60,$P$13:$P$16)+$M$15-SUM($N$20:$N60))","v":""},null,null,{"$f":"IF(I60=\"\",\"\",VLOOKUP(J60,SETUP2!$O:$Q,3,FALSE))","v":""},{"$f":"HLOOKUP(L60,SETUP2!$T$39:$BB$40,2,FALSE)","v":{"$error":"#N/A"}}]
[null,null,null,null,{"$f":"CONCATENATE(VLOOKUP(J61,SETUP2!O:R,4,FALSE),IF(BA=9039,\"_9039\",\"\"))","v":{"$error":"#N/A"}},null,null,42,null,null,null,null,null,null,null,{"$f":"IF(I61=\"\",\"\",SUMIF($O$13:$O$16,\"<=\"&I61,$P$13:$P$16)+$M$15-SUM($N$20:$N61))","v":""},null,null,{"$f":"IF(I61=\"\",\"\",VLOOKUP(J61,SETUP2!$O:$Q,3,FALSE))","v":""},{"$f":"HLOOKUP(L61,SETUP2!$T$39:$BB$40,2,FALSE)","v":{"$error":"#N/A"}}]
[null,null,null,null,{"$f":"CONCATENATE(VLOOKUP(J62,SETUP2!O:R,4,FALSE),IF(BA=9039,\"_9039\",\"\"))","v":{"$error":"#N/A"}},null,null,43,null,null,null,null,null,null,null,{"$f":"IF(I62=\"\",\"\",SUMIF($O$13:$O$16,\"<=\"&I62,$P$13:$P$16)+$M$15-SUM($N$20:$N62))","v":""},null,null,{"$f":"IF(I62=\"\",\"\",VLOOKUP(J62,SETUP2!$O:$Q,3,FALSE))","v":""},{"$f":"HLOOKUP(L62,SETUP2!$T$39:$BB$40,2,FALSE)","v":{"$error":"#N/A"}}]
[null,null,null,null,{"$f":"CONCATENATE(VLOOKUP(J63,SETUP2!O:R,4,FALSE),IF(BA=9039,\"_9039\",\"\"))","v":{"$error":"#N/A"}},null,null,44,null,null,null,null,null,null,null,{"$f":"IF(I63=\"\",\"\",SUMIF($O$13:$O$16,\"<=\"&I63,$P$13:$P$16)+$M$15-SUM($N$20:$N63))","v":""},null,null,{"$f":"IF(I63=\"\",\"\",VLOOKUP(J63,SETUP2!$O:$Q,3,FALSE))","v":""},{"$f":"HLOOKUP(L63,SETUP2!$T$39:$BB$40,2,FALSE)","v":{"$error":"#N/A"}}]
[null,null,null,null,{"$f":"CONCATENATE(VLOOKUP(J64,SETUP2!O:R,4,FALSE),IF(BA=9039,\"_9039\",\"\"))","v":{"$error":"#N/A"}},null,null,45,null,null,null,null,null,null,null,{"$f":"IF(I64=\"\",\"\",SUMIF($O$13:$O$16,\"<=\"&I64,$P$13:$P$16)+$M$15-SUM($N$20:$N64))","v":""},null,null,{"$f":"IF(I64=\"\",\"\",VLOOKUP(J64,SETUP2!$O:$Q,3,FALSE))","v":""},{"$f":"HLOOKUP(L64,SETUP2!$T$39:$BB$40,2,FALSE)","v":{"$error":"#N/A"}}]
[null,null,null,null,{"$f":"CONCATENATE(VLOOKUP(J65,SETUP2!O:R,4,FALSE),IF(BA=9039,\"_9039\",\"\"))","v":{"$error":"#N/A"}},null,null,46,null,null,null,null,null,null,null,{"$f":"IF(I65=\"\",\"\",SUMIF($O$13:$O$16,\"<=\"&I65,$P$13:$P$16)+$M$15-SUM($N$20:$N65))","v":""},null,null,{"$f":"IF(I65=\"\",\"\",VLOOKUP(J65,SETUP2!$O:$Q,3,FALSE))","v":""},{"$f":"HLOOKUP(L65,SETUP2!$T$39:$BB$40,2,FALSE)","v":{"$error":"#N/A"}}]
[null,null,null,null,{"$f":"CONCATENATE(VLOOKUP(J66,SETUP2!O:R,4,FALSE),IF(BA=9039,\"_9039\",\"\"))","v":{"$error":"#N/A"}},null,null,47,null,null,null,null,null,null,null,{"$f":"IF(I66=\"\",\"\",SUMIF($O$13:$O$16,\"<=\"&I66,$P$13:$P$16)+$M$15-SUM($N$20:$N66))","v":""},null,null,{"$f":"IF(I66=\"\",\"\",VLOOKUP(J66,SETUP2!$O:$Q,3,FALSE))","v":""},{"$f":"HLOOKUP(L66,SETUP2!$T$39:$BB$40,2,FALSE)","v":{"$error":"#N/A"}}]
[null,null,null,null,{"$f":"CONCATENATE(VLOOKUP(J67,SETUP2!O:R,4,FALSE),IF(BA=9039,\"_9039\",\"\"))","v":{"$error":"#N/A"}},null,null,48,null,null,null,null,null,null,null,{"$f":"IF(I67=\"\",\"\",SUMIF($O$13:$O$16,\"<=\"&I67,$P$13:$P$16)+$M$15-SUM($N$20:$N67))","v":""},null,null,{"$f":"IF(I67=\"\",\"\",VLOOKUP(J67,SETUP2!$O:$Q,3,FALSE))","v":""},{"$f":"HLOOKUP(L67,SETUP2!$T$39:$BB$40,2,FALSE)","v":{"$error":"#N/A"}}]
[null,null,null,null,{"$f":"CONCATENATE(VLOOKUP(J68,SETUP2!O:R,4,FALSE),IF(BA=9039,\"_9039\",\"\"))","v":{"$error":"#N/A"}},null,null,49,null,null,null,null,null,null,null,{"$f":"IF(I68=\"\",\"\",SUMIF($O$13:$O$16,\"<=\"&I68,$P$13:$P$16)+$M$15-SUM($N$20:$N68))","v":""},null,null,{"$f":"IF(I68=\"\",\"\",VLOOKUP(J68,SETUP2!$O:$Q,3,FALSE))","v":""},{"$f":"HLOOKUP(L68,SETUP2!$T$39:$BB$40,2,FALSE)","v":{"$error":"#N/A"}}]
[null,null,null,null,{"$f":"CONCATENATE(VLOOKUP(J69,SETUP2!O:R,4,FALSE),IF(BA=9039,\"_9039\",\"\"))","v":{"$error":"#N/A"}},null,null,50,null,null,null,null,null,null,null,{"$f":"IF(I69=\"\",\"\",SUMIF($O$13:$O$16,\"<=\"&I69,$P$13:$P$16)+$M$15-SUM($N$20:$N69))","v":""},null,null,{"$f":"IF(I69=\"\",\"\",VLOOKUP(J69,SETUP2!$O:$Q,3,FALSE))","v":""},{"$f":"HLOOKUP(L69,SETUP2!$T$39:$BB$40,2,FALSE)","v":{"$error":"#N/A"}}]

{"sheet":"Count sheet","index":1,"n_rows":24,"n_cols":11,"rows_kept":24,"cut":false,"hidden":true,"merged":[[25,7,25,10]]}
[]
[]
[]
[null,null,null,null,null,"Notes",null,null,null,"Other"]
[null,null,null,500,null,null,null,null,null,"monetary"]
[null,null,null,200,null,null,null,null,null,"values"]
[null,null,null,100]
[null,null,null,50]
[null,null,null,20]
[null,null,null,10]
[null,null,null,5]
[]
[null,null,null,null,null,"Coins","Rolls"]
[null,null,null,2]
[null,null,null,1]
[null,null,null,0.5]
[null,null,null,0.2]
[null,null,null,0.1]
[null,null,null,0.05]
[null,null,null,0.02]
[null,null,null,0.01]
[]
[]
[null,null,null,null,null,null,null,null,null,"Total value :",{"$f":"ROUND(F5*D5+F6*D6+F7*D7+F8*D8+F9*D9+F10*D10+F11*D11+(F14+G14*Roll2)*D14+(F15+G15*Roll1)*D15+(F16+G16*Roll05)*D16+(F17+G17*Roll02)*D17+(F18+G18*Roll01)*D18+(F19+G19*Roll005)*D19+(F20+G20*Roll002)*D20+(F21+G21*Roll001)*D21+SUM(J7:J21),2)","v":0}]

{"sheet":"Setup","index":2,"n_rows":56,"n_cols":40,"rows_kept":56,"cut":false,"hidden":true,"merged":[[1,1,2,1],[1,3,2,3],[1,2,2,2]]}
[]
[null,"Expense category","Order","Account","Front Office","Housekeeping Rooms","Restaurant","Other Income","Banqueting","Administration","Sales Hotel","Proyects, Construtions, Engineering & Maintenance","Operations Control"]
[null,null,null,null,"01","02",11,99,80,"AD","SA","PM","OP",null,null,null,null,null,null,null,null,null,null,null,null,null,null,null,"Hotel name","Company","B.A.","Country","City",null,null,null,null,null,"Other parameters"]
[null,"Purchase Food",10,61100001,null,null,"x",null,null,null,null,null,null,61100001,null,null,"Restaurant",null,null,null,null,null,null,null,null,null,null,null,"NH GRONINGEN","NL46","0200","THE NETHERLANDS","GRONINGEN",null,null,null,null,null,"A/P clearance account",40000001]
[null,"Purchase Beverage",11,61101001,null,null,"x",null,null,null,null,null,null,61101001,null,null,"Restaurant",null,null,null,null,null,null,null,null,null,null,null,"NH JAN TABAK","NL40","0207","THE NETHERLANDS","BUSSUM",null,null,null,null,null,"A/P clearance acc. departm.","00000"]
[null,"Guest Supplies Rooms",12,61110001,null,"x",null,null,null,null,null,null,null,61110001,null,null,"Housekeeping Rooms",null,null,null,null,null,null,null,null,null,null,null,"NH GALAXY","NL36","0208","THE NETHERLANDS","AMSTERDAM",null,null,null,null,null,"Petty cash account","57000001"]
[null,"Guest supplies F&B",13,61115001,null,null,"x",null,null,null,null,null,null,61115001,null,null,"Restaurant",null,null,null,null,null,null,null,null,null,null,null,"NH CARANSA","NL34","0209","THE NETHERLANDS","AMSTERDAM",null,null,null,null,null,"Petty cash acc. departm.","00000"]
[null,"Cleaning Supplies",14,62920000,"x",null,"x",null,null,null,null,null,null,62920000,null,null,"Front Office","Restaurant",null,null,null,null,null,null,null,null,null,null,"NH SCHILLER","NL34","0210","THE NETHERLANDS","AMSTERDAM",null,null,null,null,null,"VAT account","47700003"]
[null,"Guest Transfer Expenses - Rooms, F&B & Transport",15,62050000,"x",null,null,null,null,null,null,null,null,62050000,null,null,"Front Office",null,null,null,null,null,null,null,null,null,null,null,"NH DOELEN","NL33","0211","THE NETHERLANDS","AMSTERDAM",null,null,null,null,null,"VAT acc. Departm.","00000"]
[null,"Decoration",30,62924000,"x",null,"x",null,"x",null,null,null,null,62924000,null,null,"Front Office","Restaurant","Banqueting",null,null,null,null,null,null,null,null,null,"NH TROPEN","NL56","0212","THE NETHERLANDS","AMSTERDAM",null,null,null,null,null,"First year in list",2016]
[null,"China, Glassware & Silverware",31,62922000,null,null,"x",null,null,null,null,null,null,62922000,null,null,"Restaurant",null,null,null,null,null,null,null,null,null,null,null,"NH MUSEUM QUARTER","NL26","0213","THE NETHERLANDS","AMSTERDAM",null,null,null,null,null,null,{"$f":"1+AN10","v":2017}]
[null,"Small Repairs & Material",33,62207000,null,null,null,null,null,null,null,"x",null,62207000,null,null,"Proyects, Construtions, Engineering & Maintenance",null,null,null,null,null,null,null,null,null,null,null,"NH CITY CENTRE AMSTERDAM","NL42","0214","THE NETHERLANDS","AMSTERDAM",null,null,null,null,null,null,{"$f":"1+AN11","v":2018}]
[null,"Printing And Stationary",34,62921000,"x",null,"x",null,null,"x",null,null,null,62921000,null,null,"Front Office","Restaurant","Administration",null,null,null,null,null,null,null,null,null,"NH AMSTERDAM CENTRE","NL22","0215","THE NETHERLANDS","AMSTERDAM",null,null,null,null,null,null,{"$f":"1+AN12","v":2019}]
[null,"Mail and Courier",36,62941000,null,null,null,null,null,"x",null,null,null,62941000,null,null,"Administration",null,null,null,null,null,null,null,null,null,null,null,"NH BARBIZON PALACE","NL13","0216","THE NETHERLANDS","AMSTERDAM",null,null,null,null,null,null,{"$f":"1+AN13","v":2020}]
[null,"Drugstore, pharmacy staff",40,64920000,null,null,null,null,null,"x",null,null,null,64920000,null,null,"Administration",null,null,null,null,null,null,null,null,null,null,null,"NH SCHIPHOL AIRPORT","NL24","0217","THE NETHERLANDS","HOOFDDORP",null,null,null,null,null,"Document sources","Invoice"]
[null,"Drugstore, pharmacy Guest",41,62929000,null,null,null,null,null,null,"x",null,null,62929000,null,null,"Sales Hotel",null,null,null,null,null,null,null,null,null,null,null,"NH GRAND HOTEL KRASNAPOLSKY","NL49","0218","THE NETHERLANDS","AMSTERDAM",null,null,null,null,null,null,"Other than invoice"]
[null,"Newspapers Guests",50,60110000,null,"x",null,null,null,null,null,null,null,60110000,null,null,"Housekeeping Rooms",null,null,null,null,null,null,null,null,null,null,null,"NH NAARDEN","NL45","0219","THE NETHERLANDS","NAARDEN"]
[null,"Music & entertainment",55,62952000,"x",null,null,null,null,null,null,null,null,62952000,null,null,"Front Office",null,null,null,null,null,null,null,null,null,null,null,"NH UTRECHT","NL35","0221","THE NETHERLANDS","UTRECHT",null,null,null,null,null,"Number of coins in roll:"]
[null,"Uniforms",60,64900000,"x","x","x",null,"x",null,"x","x","x",64900000,null,null,"Front Office","Housekeeping Rooms","Restaurant","Banqueting","Sales Hotel","Proyects, Construtions, Engineering & Maintenance","Operations Control",null,null,null,null,null,"NH ZANDVOORT","NL27","0222","THE NETHERLANDS","ZANDVOORT",null,null,null,null,null,2,25]
[null,"Taxi Guest (non Guest Transfer)",81,62400000,null,null,null,null,null,null,null,null,"x",62400000,null,null,"Operations Control",null,null,null,null,null,null,null,null,null,null,null,"NH ZOETERMEER","NL28","0232","THE NETHERLANDS","ZOETERMEER",null,null,null,null,null,1,25]
[null,"Parking Cost For Guest",83,62915000,null,null,null,"x",null,null,null,null,null,62915000,null,null,"Other Income",null,null,null,null,null,null,null,null,null,null,null,"NH CENTRE UTRECHT","NL43","0234","THE NETHERLANDS","UTRECHT",null,null,null,null,null,0.5,40]
[null,"Gift And Flowers Guests comlementary",103,62929000,null,null,null,null,null,null,"x",null,null,62929000,null,null,"Sales Hotel",null,null,null,null,null,null,null,null,null,null,null,"NH ATLANTA ROTTERDAM","NL29","0235","THE NETHERLANDS","ROTTERDAM",null,null,null,null,null,0.2,40]
[null,"Gift And Flowers Guests paid by guest",104,62929000,null,null,null,"x",null,null,null,null,null,62929000,null,null,"Other Income",null,null,null,null,null,null,null,null,null,null,null,"NH MARQUETTE","NL39","0241","THE NETHERLANDS","HEEMSKERK",null,null,null,null,null,0.1,40]
[null,"Flowers And Gifts Staff",104,64920004,null,null,null,null,null,"x",null,null,null,64920004,null,null,"Administration",null,null,null,null,null,null,null,null,null,null,null,"NH MAASTRICHT","NL23","0243","THE NETHERLANDS","MAASTRICHT",null,null,null,null,null,0.05,50]
[null,"Miscellaneous",200,62929000,"x",null,"x",null,null,"x","x","x",null,62929000,null,null,"Front Office","Restaurant","Administration","Sales Hotel","Proyects, Construtions, Engineering & Maintenance",null,null,null,null,null,null,null,"NH CAPELLE","NL25","0244","THE NETHERLANDS","CAPELLE AAN DEN IJSSEL",null,null,null,null,null,0.02,50]
[null,null,null,null,null,null,null,null,null,null,null,null,null,null,null,null,null,null,null,null,null,null,null,null,null,null,null,null,"NH GELDROP","NL15","0245","THE NETHERLANDS","GELDROP",null,null,null,null,null,0.01,50]
[null,null,null,null,null,null,null,null,null,null,null,null,null,null,null,null,null,null,null,null,null,null,null,null,null,null,null,null,"NH BEST","NL44","0246","THE NETHERLANDS","BEST",null,null,null,null,null,"Setup sheet changed ?",false]
[null,null,null,null,null,null,null,null,null,null,null,null,null,null,null,null,null,null,null,null,null,null,null,null,null,null,null,null,"NH RIJNHOTEL","NL14","0247","THE NETHERLANDS","ARNHEM",null,null,null,null,null,"Error handler active ?",true]
[null,null,null,null,null,null,null,null,null,null,null,null,null,null,null,null,null,null,null,null,null,null,null,null,null,null,null,null,"NH HOTEL DE VILLE","NL47","0250","THE NETHERLANDS","GRONINGEN",null,null,null,null,null,"Email in case of errors"]
[null,null,null,null,null,null,null,null,null,null,null,null,null,null,null,null,null,null,null,null,null,null,null,null,null,null,null,null,"NH DEN HAAG","NL30","0315","THE NETHERLANDS","DEN HAAG"]
[null,null,null,null,null,null,null,null,null,null,null,null,null,null,null,null,null,null,null,null,null,null,null,null,null,null,null,null,"NH WAALWIJK","NL58","0340","THE NETHERLANDS","WAALWIJK"]
[null,null,null,null,null,null,null,null,null,null,null,null,null,null,null,null,null,null,null,null,null,null,null,null,null,null,null,null,"NH MUSICA","NL31","0372","THE NETHERLANDS","AMSTERDAM"]
[null,null,null,null,null,null,null,null,null,null,null,null,null,null,null,null,null,null,null,null,null,null,null,null,null,null,null,null,"NH ATLANTIC DEN HAAG","NL11","0375","THE NETHERLANDS","DEN HAAG"]
[null,null,null,null,null,null,null,null,null,null,null,null,null,null,null,null,null,null,null,null,null,null,null,null,null,null,null,null,"NHOW ROTTERDAM HOTEL","NL41","0471","THE NETHERLANDS","Den Haag"]
[null,null,null,null,null,null,null,null,null,null,null,null,null,null,null,null,null,null,null,null,null,null,null,null,null,null,null,null,"DAM 9 B.V.","NL72","0623","THE NETHERLANDS","HILVERSUM"]
[null,null,null,null,null,null,null,null,null,null,null,null,null,null,null,null,null,null,null,null,null,null,null,null,null,null,null,null,"NH SPARRENHORST","NL48","0660","THE NETHERLANDS","NUNSPEET"]
[null,null,null,null,null,null,null,null,null,null,null,null,null,null,null,null,null,null,null,null,null,null,null,null,null,null,null,null,"NH AMERSFOORT","NL71","0662","THE NETHERLANDS","AMSTERFOORT"]
[null,null,null,null,null,null,null,null,null,null,null,null,null,null,null,null,null,null,null,null,null,null,null,null,null,null,null,null,"NH CARLTON AMSTERDAM","NL59","0759","THE NETHERLANDS","AMSTERDAM"]
[null,null,null,null,null,null,null,null,null,null,null,null,null,null,null,null,null,null,null,null,null,null,null,null,null,null,null,null,"NH KONINGSHOF","NL37","0948","THE NETHERLANDS","VELDHOVEN"]
[null,null,null,null,null,null,null,null,null,null,null,null,null,null,null,null,null,null,null,null,null,null,null,null,null,null,null,null,"NH LEEUWENHORST","NL38","0949","THE NETHERLANDS","NOORDWIJKERHOUT"]
[null,null,null,null,null,null,null,null,null,null,null,null,null,null,null,null,null,null,null,null,null,null,null,null,null,null,null,null,"NH STEPHANIE","BE02","0201","BELGIUM","BRUXELLES"]
[null,null,null,null,null,null,null,null,null,null,null,null,null,null,null,null,null,null,null,null,null,null,null,null,null,null,null,null,"NH BRUSSELS CITY CENTRE","BE02","0202","BELGIUM","BRUXELLES"]
[null,null,null,null,null,null,null,null,null,null,null,null,null,null,null,null,null,null,null,null,null,null,null,null,null,null,null,null,"NH BRUSSELS AIRPORT","BE02","0203","BELGIUM","DIEGEM"]
[null,null,null,null,null,null,null,null,null,null,null,null,null,null,null,null,null,null,null,null,null,null,null,null,null,null,null,null,"NH GRAND PLACE ARENBERG","BE02","0204","BELGIUM","BRUXELLES"]
[null,null,null,null,null,null,null,null,null,null,null,null,null,null,null,null,null,null,null,null,null,null,null,null,null,null,null,null,"NH ATLANTA BRUSSELS","BE02","0242","BELGIUM","DIEGEM"]
[null,null,null,null,null,null,null,null,null,null,null,null,null,null,null,null,null,null,null,null,null,null,null,null,null,null,null,null,"NH GENT BELFORT","BE02","0345","BELGIUM","GENT"]
[null,null,null,null,null,null,null,null,null,null,null,null,null,null,null,null,null,null,null,null,null,null,null,null,null,null,null,null,"NH BRUGGE","BE02","0346","BELGIUM","DIEGEM"]
[null,null,null,null,null,null,null,null,null,null,null,null,null,null,null,null,null,null,null,null,null,null,null,null,null,null,null,null,"NH GENT SINT PIETERS","BE02","0407","BELGIUM","GENT"]
[null,null,null,null,null,null,null,null,null,null,null,null,null,null,null,null,null,null,null,null,null,null,null,null,null,null,null,null,"NH MECHELEN","BE02","0408","BELGIUM","MECHELEN"]
[null,null,null,null,null,null,null,null,null,null,null,null,null,null,null,null,null,null,null,null,null,null,null,null,null,null,null,null,"NH HOTEL DU GRAND SABLON","BE03","0760","BELGIUM","BRUXELLES"]
[null,null,null,null,null,null,null,null,null,null,null,null,null,null,null,null,null,null,null,null,null,null,null,null,null,null,null,null,"NH NICE","FR01","0753","FRANCE","NICE"]
[null,null,null,null,null,null,null,null,null,null,null,null,null,null,null,null,null,null,null,null,null,null,null,null,null,null,null,null,"NH LYON AEROPORT","FR01","0758","FRANCE","LYON-SAINT EXUPÉRY AÉROPORT"]
[null,null,null,null,null,null,null,null,null,null,null,null,null,null,null,null,null,null,null,null,null,null,null,null,null,null,null,null,"NH LUXEMBOURG","LU03","0339","LUXEMBOURG","SENNINGERBERG"]
[null,null,null,null,null,null,null,null,null,null,null,null,null,null,null,null,null,null,null,null,null,null,null,null,null,null,null,null,"NH HARRINGTON HALL","UK01","0750","UNITED KINGDOM","LONDON"]
[null,null,null,null,null,null,null,null,null,null,null,null,null,null,null,null,null,null,null,null,null,null,null,null,null,null,null,null,"NH KENSINGTON","UK02","0751","UNITED KINGDOM","LONDON"]
[null,null,null,null,null,null,null,null,null,null,null,null,null,null,null,null,null,null,null,null,null,null,null,null,null,null,null,null,"NH PALM BEACH","FR03","0754","FRANCE","MARSEILLE"]

{"sheet":"SETUP2","index":3,"n_rows":198,"n_cols":138,"rows_kept":198,"cut":false,"hidden":true,"merged":[[37,19,37,45],[37,46,37,53],[39,62,39,90]]}
[]
[null,null,null,null,null,"BENELUX"]
[]
[null,"Parameters",null,null,null,"BA Name","Country","Type","Company","BA number"]
[null,"Business Unit",null,"BU_BENELUX",null,"Belgium"]
[null,null,"Central Europe","BU_CENTRAL_EUROPE"]
[null,null,"Italy","BU_ITALY"]
[null,null,"Spain","BU_SPAIN"]
[null,null,"Mexico","BU_MEXICO"]
[null,null,"Mercosur","BU_MERCOSUR"]
[null,"BU Countries"]
[null,"Benelux"]
[]
[]
[]
[]
[null,null,null,null,null,"France"]
[null,"Central Europe"]
[null,null,"Germany"]
[]
[null,null,null,null,null,"Luxemboug"]
[]
[null,null,null,null,null,"The Netherlands"]
[null,"Mexico","Mexico"]
[]
[null,"Italy","Italy"]
[]
[null,"Spain","Spain"]
[]
[null,"Mercosur"]
[null,null,"Uruguay"]
[null,null,"Argentina"]
[]
[]
[]
[null,"First year in list",null,2016]
[null,null,null,{"$f":"1+D36","v":2017}]
[null,null,null,{"$f":"1+D37","v":2018},null,null,null,null,null,null,null,null,null,null,null,null,null,null,null,"Cuentas para todos CSS",null,null,null,null,null,null,null,null,null,null,null,null,null,null,null,null,null,null,null,null,null,null,null,null,null,null,"Only 9039"]
[null,null,null,{"$f":"1+D38","v":2019},null,null,null,null,null,null,null,null,null,null,null,null,null,null,null,"Operations control","Human Resources","Projects, Constructions, Engineering & Maintenance","IT","Administration","Sales","Revenue Management","CRM & Loyalty","Quality & Competition","Internal Audit ","Legal","Assets, Rents & Expansion","Development","General Services","Purchasing","Front Office Project","Finance","Control and Financial Planning","Treasury","Business Intelligence","Reservation","Other commercial","Distribution","Marketing","Ecommerce","Product & Brand","RRPP & Social Media","Management Comitee","Corporate Affairs ","Special Investments","Board of Directors","Organization","Consolidation","Investment Analysis & Inverstor Relations","Digital Sales"]
[null,null,null,{"$f":"1+D39","v":2020},null,null,null,null,null,null,null,null,null,null,"Concepto","Orden","Cuenta","Ref.:",null,"OP","HR","PM","IT","AD","SA","RV","CL","QC","IA","LE","AR","DE","GS","PU","FP","FI","CF","TR","BI","RE","OC","DI","MK","EC","PB","RS","MC","CA","SI","BD","OR","CO ","II","DS",null,null,null,null,null,null,null,null,"Departamentos",null,null,null,null,null,null,null,null,null,null,null,null,null,null,null,null,null,null,null,null,null,null,null,null,null,null,null,null,null,null,null,null,null,null,null,null,"DEPARTAMENTOS (OJO NO MODIFICAR ESTE CUADRO)"]
[null,"Currencies",{"$f":"D5","v":"BU_BENELUX"},"EUR",null,null,null,null,null,null,null,null,null,null,"Tax/Stamp Duty/Other Licenses/Mercantile Register/SIAE",208,63120000,"Dpto_linea_41","Dpto_linea_41_9039","x","x","x","x","x","x","x","x","x","x","x","x","x","x","x","x","x","x","x","x","x","x","x","x","x","x","x",null,"x","x",null,"x","x","x","x",null,null,null,null,null,null,null,null,{"$f":"IF(T41=\"\",\"\",T$39)","v":"Operations control"},"Human Resources","Projects, Constructions, Engineering & Maintenance","IT","Administration","Sales",{"$f":"IF(Z41=\"\",\"\",Z$39)","v":"Revenue Management"},"CRM & Loyalty","Quality & Competition","Internal Audit ","Legal","Assets, Rents & Expansion","Development","General Services","Purchasing","Front Office Project","Finance",{"$f":"IF(AK41=\"\",\"\",AK$39)","v":"Control and Financial Planning"},{"$f":"IF(AL41=\"\",\"\",AL$39)","v":"Treasury"},{"$f":"IF(AM41=\"\",\"\",AM$39)","v":"Business Intelligence"},{"$f":"IF(AN41=\"\",\"\",AN$39)","v":"Reservation"},{"$f":"IF(AO41=\"\",\"\",AO$39)","v":"Other commercial"},{"$f":"IF(AP41=\"\",\"\",AP$39)","v":"Distribution"},{"$f":"IF(AQ41=\"\",\"\",AQ$39)","v":"Marketing"},{"$f":"IF(AR41=\"\",\"\",AR$39)","v":"Ecommerce"},{"$f":"IF(AS41=\"\",\"\",AS$39)","v":"Product & Brand"},{"$f":"IF(AT41=\"\",\"\",AT$39)","v":"RRPP & Social Media"},{"$f":"IF(AU41=\"\",\"\",AU$39)","v":""},{"$f":"IF(AV41=\"\",\"\",AV$39)","v":"Corporate Affairs "},{"$f":"IF(AW41=\"\",\"\",AW$39)","v":"Special Investments"},{"$f":"IF(AX41=\"\",\"\",AX$39)","v":""},{"$f":"IF(AY41=\"\",\"\",AY$39)","v":"Organization"},{"$f":"IF(AZ41=\"\",\"\",AZ$39)","v":"Consolidation"},{"$f":"IF(BA41=\"\",\"\",BA$39)","v":"Investment Analysis & Inverstor Relations"},{"$f":"IF(BB41=\"\",\"\",BB$39)","v":"Digital Sales"},{"$f":"IF(BC41=\"\",\"\",BC$39)","v":""},null,{"$f":"IFERROR(INDEX(BK41:$CT41,MATCH(0,INDEX(COUNTIF($CU41:CU41,BK41:$CT41),),)),\"\")","v":"Operations control"},{"$f":"IFERROR(INDEX(BK41:$CT41,MATCH(0,INDEX(COUNTIF($CU41:CV41,BK41:$CT41),),)),\"\")","v":"Human Resources"},{"$f":"IFERROR(INDEX(BK41:$CT41,MATCH(0,INDEX(COUNTIF($CU41:CW41,BK41:$CT41),),)),\"\")","v":"Projects, Constructions, Engineering & Maintenance"},{"$f":"IFERROR(INDEX(BK41:$CT41,MATCH(0,INDEX(COUNTIF($CU41:CX41,BK41:$CT41),),)),\"\")","v":"IT"},{"$f":"IFERROR(INDEX(BK41:$CT41,MATCH(0,INDEX(COUNTIF($CU41:CY41,BK41:$CT41),),)),\"\")","v":"Administration"},{"$f":"IFERROR(INDEX(BK41:$CT41,MATCH(0,INDEX(COUNTIF($CU41:CZ41,BK41:$CT41),),)),\"\")","v":"Sales"},{"$f":"IFERROR(INDEX(BK41:$CT41,MATCH(0,INDEX(COUNTIF($CU41:DA41,BK41:$CT41),),)),\"\")","v":"Revenue Management"},{"$f":"IFERROR(INDEX(BK41:$CT41,MATCH(0,INDEX(COUNTIF($CU41:DB41,BK41:$CT41),),)),\"\")","v":"CRM & Loyalty"},{"$f":"IFERROR(INDEX(BK41:$CT41,MATCH(0,INDEX(COUNTIF($CU41:DC41,BK41:$CT41),),)),\"\")","v":"Quality & Competition"},{"$f":"IFERROR(INDEX(BL41:$CT41,MATCH(0,INDEX(COUNTIF($CU41:DD41,BL41:$CT41),),)),\"\")","v":"Internal Audit "},{"$f":"IFERROR(INDEX(BM41:$CT41,MATCH(0,INDEX(COUNTIF($CU41:DE41,BM41:$CT41),),)),\"\")","v":"Legal"},{"$f":"IFERROR(INDEX(BN41:$CT41,MATCH(0,INDEX(COUNTIF($CU41:DF41,BN41:$CT41),),)),\"\")","v":"Assets, Rents & Expansion"},{"$f":"IFERROR(INDEX(BO41:$CT41,MATCH(0,INDEX(COUNTIF($CU41:DG41,BO41:$CT41),),)),\"\")","v":"Development"},{"$f":"IFERROR(INDEX(BP41:$CT41,MATCH(0,INDEX(COUNTIF($CU41:DH41,BP41:$CT41),),)),\"\")","v":"General Services"},{"$f":"IFERROR(INDEX(BQ41:$CT41,MATCH(0,INDEX(COUNTIF($CU41:DI41,BQ41:$CT41),),)),\"\")","v":"Purchasing"},{"$f":"IFERROR(INDEX(BR41:$CT41,MATCH(0,INDEX(COUNTIF($CU41:DJ41,BR41:$CT41),),)),\"\")","v":"Front Office Project"},{"$f":"IFERROR(INDEX(BS41:$CT41,MATCH(0,INDEX(COUNTIF($CU41:DK41,BS41:$CT41),),)),\"\")","v":"Finance"},{"$f":"IFERROR(INDEX(BT41:$CT41,MATCH(0,INDEX(COUNTIF($CU41:DL41,BT41:$CT41),),)),\"\")","v":"Control and Financial Planning"},{"$f":"IFERROR(INDEX(BU41:$CT41,MATCH(0,INDEX(COUNTIF($CU41:DM41,BU41:$CT41),),)),\"\")","v":"Treasury"},{"$f":"IFERROR(INDEX(BV41:$CT41,MATCH(0,INDEX(COUNTIF($CU41:DN41,BV41:$CT41),),)),\"\")","v":"Business Intelligence"},{"$f":"IFERROR(INDEX(BW41:$CT41,MATCH(0,INDEX(COUNTIF($CU41:DO41,BW41:$CT41),),)),\"\")","v":"Reservation"},{"$f":"IFERROR(INDEX(BX41:$CT41,MATCH(0,INDEX(COUNTIF($CU41:DP41,BX41:$CT41),),)),\"\")","v":"Other commercial"},{"$f":"IFERROR(INDEX(BY41:$CT41,MATCH(0,INDEX(COUNTIF($CU41:DQ41,BY41:$CT41),),)),\"\")","v":"Distribution"},{"$f":"IFERROR(INDEX(BZ41:$CT41,MATCH(0,INDEX(COUNTIF($CU41:DR41,BZ41:$CT41),),)),\"\")","v":"Marketing"},{"$f":"IFERROR(INDEX(CA41:$CT41,MATCH(0,INDEX(COUNTIF($CU41:DS41,CA41:$CT41),),)),\"\")","v":"Ecommerce"},{"$f":"IFERROR(INDEX(CK41:$CT41,MATCH(0,INDEX(COUNTIF($CU41:DT41,CK41:$CT41),),)),\"\")","v":"RRPP & Social Media"},{"$f":"IFERROR(INDEX(CL41:$CT41,MATCH(0,INDEX(COUNTIF($CU41:DU41,CL41:$CT41),),)),\"\")","v":"Corporate Affairs "},{"$f":"IFERROR(INDEX(CM41:$CT41,MATCH(0,INDEX(COUNTIF($CU41:DV41,CM41:$CT41),),)),\"\")","v":"Special Investments"},{"$f":"IFERROR(INDEX(CN41:$CT41,MATCH(0,INDEX(COUNTIF($CU41:DW41,CN41:$CT41),),)),\"\")","v":"Organization"},{"$f":"IFERROR(INDEX(CO41:$CT41,MATCH(0,INDEX(COUNTIF($CU41:DX41,CO41:$CT41),),)),\"\")","v":"Consolidation"},{"$f":"IFERROR(INDEX(CP41:$CT41,MATCH(0,INDEX(COUNTIF($CU41:DY41,CP41:$CT41),),)),\"\")","v":"Investment Analysis & Inverstor Relations"},{"$f":"IFERROR(INDEX(CQ41:$CT41,MATCH(0,INDEX(COUNTIF($CU41:DZ41,CQ41:$CT41),),)),\"\")","v":"Digital Sales"},{"$f":"IFERROR(INDEX(CR41:$CT41,MATCH(0,INDEX(COUNTIF($CU41:EA41,CR41:$CT41),),)),\"\")","v":""},{"$f":"IFERROR(INDEX(CS41:$CT41,MATCH(0,INDEX(COUNTIF($CU41:EB41,CS41:$CT41),),)),\"\")","v":""},{"$f":"IFERROR(INDEX(CT41:$CT41,MATCH(0,INDEX(COUNTIF($CU41:EC41,CT41:$CT41),),)),\"\")","v":""},{"$f":"IFERROR(INDEX($CT41:CU41,MATCH(0,INDEX(COUNTIF($CU41:ED41,$CT41:CU41),),)),\"\")","v":0},{"$f":"IFERROR(INDEX($CT41:CV41,MATCH(0,INDEX(COUNTIF($CU41:EE41,$CT41:CV41),),)),\"\")","v":""},{"$f":"IFERROR(INDEX($CT41:CW41,MATCH(0,INDEX(COUNTIF($CU41:EF41,$CT41:CW41),),)),\"\")","v":""},{"$f":"IFERROR(INDEX($CT41:CX41,MATCH(0,INDEX(COUNTIF($CU41:EG41,$CT41:CX41),),)),\"\")","v":""}]
[null,null,{"$f":"CONCATENATE(\"CURR\",C41)","v":"CURRBU_BENELUX"},"GBP",null,null,null,null,null,null,null,null,null,null,"Mail, Stamps, Burofax and Courier",208,62941000,"Dpto_linea_42","Dpto_linea_42_9039","x","x","x","x","x","x","x","x","x","x","x","x","x","x","x","x","x","x","x","x","x","x","x","x","x","x","x",null,"x","x",null,"x","x","x","x",null,null,null,null,null,null,null,null,{"$f":"IF(T42=\"\",\"\",T$39)","v":"Operations control"},{"$f":"IF(U42=\"\",\"\",U$39)","v":"Human Resources"},{"$f":"IF(V42=\"\",\"\",V$39)","v":"Projects, Constructions, Engineering & Maintenance"},{"$f":"IF(W42=\"\",\"\",W$39)","v":"IT"},{"$f":"IF(X42=\"\",\"\",X$39)","v":"Administration"},{"$f":"IF(Y42=\"\",\"\",Y$39)","v":"Sales"},{"$f":"IF(Z42=\"\",\"\",Z$39)","v":"Revenue Management"},{"$f":"IF(AA42=\"\",\"\",AA$39)","v":"CRM & Loyalty"},{"$f":"IF(AB42=\"\",\"\",AB$39)","v":"Quality & Competition"},{"$f":"IF(AC42=\"\",\"\",AC$39)","v":"Internal Audit "},{"$f":"IF(AD42=\"\",\"\",AD$39)","v":"Legal"},{"$f":"IF(AE42=\"\",\"\",AE$39)","v":"Assets, Rents & Expansion"},{"$f":"IF(AF42=\"\",\"\",AF$39)","v":"Development"},{"$f":"IF(AG42=\"\",\"\",AG$39)","v":"General Services"},{"$f":"IF(AH42=\"\",\"\",AH$39)","v":"Purchasing"},{"$f":"IF(AI42=\"\",\"\",AI$39)","v":"Front Office Project"},{"$f":"IF(AJ42=\"\",\"\",AJ$39)","v":"Finance"},"Control and Financial Planning","Treasury","Business Intelligence","Reservation","Other commercial","Distribution","Marketing","Ecommerce","Product & Brand","RRPP & Social Media","","Corporate Affairs ","Special Investments","","Organization","Consolidation","Investment Analysis & Inverstor Relations","Digital Sales","",null,{"$f":"IFERROR(INDEX(BK42:$CT42,MATCH(0,INDEX(COUNTIF($CU42:CU42,BK42:$CT42),),)),\"\")","v":"Operations control"},{"$f":"IFERROR(INDEX(BK42:$CT42,MATCH(0,INDEX(COUNTIF($CU42:CV42,BK42:$CT42),),)),\"\")","v":"Human Resources"},{"$f":"IFERROR(INDEX(BK42:$CT42,MATCH(0,INDEX(COUNTIF($CU42:CW42,BK42:$CT42),),)),\"\")","v":"Projects, Constructions, Engineering & Maintenance"},{"$f":"IFERROR(INDEX(BK42:$CT42,MATCH(0,INDEX(COUNTIF($CU42:CX42,BK42:$CT42),),)),\"\")","v":"IT"},{"$f":"IFERROR(INDEX(BK42:$CT42,MATCH(0,INDEX(COUNTIF($CU42:CY42,BK42:$CT42),),)),\"\")","v":"Administration"},{"$f":"IFERROR(INDEX(BK42:$CT42,MATCH(0,INDEX(COUNTIF($CU42:CZ42,BK42:$CT42),),)),\"\")","v":"Sales"},{"$f":"IFERROR(INDEX(BK42:$CT42,MATCH(0,INDEX(COUNTIF($CU42:DA42,BK42:$CT42),),)),\"\")","v":"Revenue Management"},{"$f":"IFERROR(INDEX(BK42:$CT42,MATCH(0,INDEX(COUNTIF($CU42:DB42,BK42:$CT42),),)),\"\")","v":"CRM & Loyalty"},{"$f":"IFERROR(INDEX(BK42:$CT42,MATCH(0,INDEX(COUNTIF($CU42:DC42,BK42:$CT42),),)),\"\")","v":"Quality & Competition"},{"$f":"IFERROR(INDEX(BL42:$CT42,MATCH(0,INDEX(COUNTIF($CU42:DD42,BL42:$CT42),),)),\"\")","v":"Internal Audit "},{"$f":"IFERROR(INDEX(BM42:$CT42,MATCH(0,INDEX(COUNTIF($CU42:DE42,BM42:$CT42),),)),\"\")","v":"Legal"},{"$f":"IFERROR(INDEX(BN42:$CT42,MATCH(0,INDEX(COUNTIF($CU42:DF42,BN42:$CT42),),)),\"\")","v":"Assets, Rents & Expansion"},{"$f":"IFERROR(INDEX(BO42:$CT42,MATCH(0,INDEX(COUNTIF($CU42:DG42,BO42:$CT42),),)),\"\")","v":"Development"},{"$f":"IFERROR(INDEX(BP42:$CT42,MATCH(0,INDEX(COUNTIF($CU42:DH42,BP42:$CT42),),)),\"\")","v":"General Services"},{"$f":"IFERROR(INDEX(BQ42:$CT42,MATCH(0,INDEX(COUNTIF($CU42:DI42,BQ42:$CT42),),)),\"\")","v":"Purchasing"},{"$f":"IFERROR(INDEX(BR42:$CT42,MATCH(0,INDEX(COUNTIF($CU42:DJ42,BR42:$CT42),),)),\"\")","v":"Front Office Project"},{"$f":"IFERROR(INDEX(BS42:$CT42,MATCH(0,INDEX(COUNTIF($CU42:DK42,BS42:$CT42),),)),\"\")","v":"Finance"},{"$f":"IFERROR(INDEX(BT42:$CT42,MATCH(0,INDEX(COUNTIF($CU42:DL42,BT42:$CT42),),)),\"\")","v":"Control and Financial Planning"},{"$f":"IFERROR(INDEX(BU42:$CT42,MATCH(0,INDEX(COUNTIF($CU42:DM42,BU42:$CT42),),)),\"\")","v":"Treasury"},{"$f":"IFERROR(INDEX(BV42:$CT42,MATCH(0,INDEX(COUNTIF($CU42:DN42,BV42:$CT42),),)),\"\")","v":"Business Intelligence"},{"$f":"IFERROR(INDEX(BW42:$CT42,MATCH(0,INDEX(COUNTIF($CU42:DO42,BW42:$CT42),),)),\"\")","v":"Reservation"},{"$f":"IFERROR(INDEX(BX42:$CT42,MATCH(0,INDEX(COUNTIF($CU42:DP42,BX42:$CT42),),)),\"\")","v":"Other commercial"},{"$f":"IFERROR(INDEX(BY42:$CT42,MATCH(0,INDEX(COUNTIF($CU42:DQ42,BY42:$CT42),),)),\"\")","v":"Distribution"},{"$f":"IFERROR(INDEX(BZ42:$CT42,MATCH(0,INDEX(COUNTIF($CU42:DR42,BZ42:$CT42),),)),\"\")","v":"Marketing"},{"$f":"IFERROR(INDEX(CA42:$CT42,MATCH(0,INDEX(COUNTIF($CU42:DS42,CA42:$CT42),),)),\"\")","v":"Ecommerce"},{"$f":"IFERROR(INDEX(CK42:$CT42,MATCH(0,INDEX(COUNTIF($CU42:DT42,CK42:$CT42),),)),\"\")","v":"RRPP & Social Media"},{"$f":"IFERROR(INDEX(CL42:$CT42,MATCH(0,INDEX(COUNTIF($CU42:DU42,CL42:$CT42),),)),\"\")","v":"Corporate Affairs "},{"$f":"IFERROR(INDEX(CM42:$CT42,MATCH(0,INDEX(COUNTIF($CU42:DV42,CM42:$CT42),),)),\"\")","v":"Special Investments"},{"$f":"IFERROR(INDEX(CN42:$CT42,MATCH(0,INDEX(COUNTIF($CU42:DW42,CN42:$CT42),),)),\"\")","v":"Organization"},{"$f":"IFERROR(INDEX(CO42:$CT42,MATCH(0,INDEX(COUNTIF($CU42:DX42,CO42:$CT42),),)),\"\")","v":"Consolidation"},{"$f":"IFERROR(INDEX(CP42:$CT42,MATCH(0,INDEX(COUNTIF($CU42:DY42,CP42:$CT42),),)),\"\")","v":"Investment Analysis & Inverstor Relations"},{"$f":"IFERROR(INDEX(CQ42:$CT42,MATCH(0,INDEX(COUNTIF($CU42:DZ42,CQ42:$CT42),),)),\"\")","v":"Digital Sales"},{"$f":"IFERROR(INDEX(CR42:$CT42,MATCH(0,INDEX(COUNTIF($CU42:EA42,CR42:$CT42),),)),\"\")","v":""},{"$f":"IFERROR(INDEX(CS42:$CT42,MATCH(0,INDEX(COUNTIF($CU42:EB42,CS42:$CT42),),)),\"\")","v":""},{"$f":"IFERROR(INDEX(CT42:$CT42,MATCH(0,INDEX(COUNTIF($CU42:EC42,CT42:$CT42),),)),\"\")","v":""},{"$f":"IFERROR(INDEX($CT42:CU42,MATCH(0,INDEX(COUNTIF($CU42:ED42,$CT42:CU42),),)),\"\")","v":0},{"$f":"IFERROR(INDEX($CT42:CV42,MATCH(0,INDEX(COUNTIF($CU42:EE42,$CT42:CV42),),)),\"\")","v":""},{"$f":"IFERROR(INDEX($CT42:CW42,MATCH(0,INDEX(COUNTIF($CU42:EF42,$CT42:CW42),),)),\"\")","v":""},{"$f":"IFERROR(INDEX($CT42:CX42,MATCH(0,INDEX(COUNTIF($CU42:EG42,$CT42:CX42),),)),\"\")","v":""}]
[null,null,null,null,null,null,null,null,null,null,null,null,null,null,"Newspaper, Books, Magazines, Association fees ",209,62923000,"Dpto_linea_43","Dpto_linea_43_9039","x","x","x","x","x","x","x","x","x","x","x","x","x","x","x","x","x","x","x","x","x","x","x","x","x","x","x",null,"x","x",null,"x","x","x","x",null,null,null,null,null,null,null,null,"Operations control","Human Resources","Projects, Constructions, Engineering & Maintenance","IT","Administration","Sales","Revenue Management","CRM & Loyalty","Quality & Competition","Internal Audit ","Legal","Assets, Rents & Expansion","Development","General Services","Purchasing","Front Office Project","Finance","Control and Financial Planning","Treasury","Business Intelligence","Reservation","Other commercial","Distribution","Marketing","Ecommerce","Product & Brand","RRPP & Social Media","","Corporate Affairs ","Special Investments","","Organization","Consolidation","Investment Analysis & Inverstor Relations","Digital Sales","",null,{"$f":"IFERROR(INDEX(BK43:$CT43,MATCH(0,INDEX(COUNTIF($CU43:CU43,BK43:$CT43),),)),\"\")","v":"Operations control"},{"$f":"IFERROR(INDEX(BK43:$CT43,MATCH(0,INDEX(COUNTIF($CU43:CV43,BK43:$CT43),),)),\"\")","v":"Human Resources"},{"$f":"IFERROR(INDEX(BK43:$CT43,MATCH(0,INDEX(COUNTIF($CU43:CW43,BK43:$CT43),),)),\"\")","v":"Projects, Constructions, Engineering & Maintenance"},{"$f":"IFERROR(INDEX(BK43:$CT43,MATCH(0,INDEX(COUNTIF($CU43:CX43,BK43:$CT43),),)),\"\")","v":"IT"},{"$f":"IFERROR(INDEX(BK43:$CT43,MATCH(0,INDEX(COUNTIF($CU43:CY43,BK43:$CT43),),)),\"\")","v":"Administration"},{"$f":"IFERROR(INDEX(BK43:$CT43,MATCH(0,INDEX(COUNTIF($CU43:CZ43,BK43:$CT43),),)),\"\")","v":"Sales"},{"$f":"IFERROR(INDEX(BK43:$CT43,MATCH(0,INDEX(COUNTIF($CU43:DA43,BK43:$CT43),),)),\"\")","v":"Revenue Management"},{"$f":"IFERROR(INDEX(BK43:$CT43,MATCH(0,INDEX(COUNTIF($CU43:DB43,BK43:$CT43),),)),\"\")","v":"CRM & Loyalty"},{"$f":"IFERROR(INDEX(BK43:$CT43,MATCH(0,INDEX(COUNTIF($CU43:DC43,BK43:$CT43),),)),\"\")","v":"Quality & Competition"},{"$f":"IFERROR(INDEX(BL43:$CT43,MATCH(0,INDEX(COUNTIF($CU43:DD43,BL43:$CT43),),)),\"\")","v":"Internal Audit "},{"$f":"IFERROR(INDEX(BM43:$CT43,MATCH(0,INDEX(COUNTIF($CU43:DE43,BM43:$CT43),),)),\"\")","v":"Legal"},{"$f":"IFERROR(INDEX(BN43:$CT43,MATCH(0,INDEX(COUNTIF($CU43:DF43,BN43:$CT43),),)),\"\")","v":"Assets, Rents & Expansion"},{"$f":"IFERROR(INDEX(BO43:$CT43,MATCH(0,INDEX(COUNTIF($CU43:DG43,BO43:$CT43),),)),\"\")","v":"Development"},{"$f":"IFERROR(INDEX(BP43:$CT43,MATCH(0,INDEX(COUNTIF($CU43:DH43,BP43:$CT43),),)),\"\")","v":"General Services"},{"$f":"IFERROR(INDEX(BQ43:$CT43,MATCH(0,INDEX(COUNTIF($CU43:DI43,BQ43:$CT43),),)),\"\")","v":"Purchasing"},{"$f":"IFERROR(INDEX(BR43:$CT43,MATCH(0,INDEX(COUNTIF($CU43:DJ43,BR43:$CT43),),)),\"\")","v":"Front Office Project"},{"$f":"IFERROR(INDEX(BS43:$CT43,MATCH(0,INDEX(COUNTIF($CU43:DK43,BS43:$CT43),),)),\"\")","v":"Finance"},{"$f":"IFERROR(INDEX(BT43:$CT43,MATCH(0,INDEX(COUNTIF($CU43:DL43,BT43:$CT43),),)),\"\")","v":"Control and Financial Planning"},{"$f":"IFERROR(INDEX(BU43:$CT43,MATCH(0,INDEX(COUNTIF($CU43:DM43,BU43:$CT43),),)),\"\")","v":"Treasury"},{"$f":"IFERROR(INDEX(BV43:$CT43,MATCH(0,INDEX(COUNTIF($CU43:DN43,BV43:$CT43),),)),\"\")","v":"Business Intelligence"},{"$f":"IFERROR(INDEX(BW43:$CT43,MATCH(0,INDEX(COUNTIF($CU43:DO43,BW43:$CT43),),)),\"\")","v":"Reservation"},{"$f":"IFERROR(INDEX(BX43:$CT43,MATCH(0,INDEX(COUNTIF($CU43:DP43,BX43:$CT43),),)),\"\")","v":"Other commercial"},{"$f":"IFERROR(INDEX(BY43:$CT43,MATCH(0,INDEX(COUNTIF($CU43:DQ43,BY43:$CT43),),)),\"\")","v":"Distribution"},{"$f":"IFERROR(INDEX(BZ43:$CT43,MATCH(0,INDEX(COUNTIF($CU43:DR43,BZ43:$CT43),),)),\"\")","v":"Marketing"},{"$f":"IFERROR(INDEX(CA43:$CT43,MATCH(0,INDEX(COUNTIF($CU43:DS43,CA43:$CT43),),)),\"\")","v":"Ecommerce"},{"$f":"IFERROR(INDEX(CK43:$CT43,MATCH(0,INDEX(COUNTIF($CU43:DT43,CK43:$CT43),),)),\"\")","v":"RRPP & Social Media"},{"$f":"IFERROR(INDEX(CL43:$CT43,MATCH(0,INDEX(COUNTIF($CU43:DU43,CL43:$CT43),),)),\"\")","v":"Corporate Affairs "},{"$f":"IFERROR(INDEX(CM43:$CT43,MATCH(0,INDEX(COUNTIF($CU43:DV43,CM43:$CT43),),)),\"\")","v":"Special Investments"},{"$f":"IFERROR(INDEX(CN43:$CT43,MATCH(0,INDEX(COUNTIF($CU43:DW43,CN43:$CT43),),)),\"\")","v":"Organization"},{"$f":"IFERROR(INDEX(CO43:$CT43,MATCH(0,INDEX(COUNTIF($CU43:DX43,CO43:$CT43),),)),\"\")","v":"Consolidation"},{"$f":"IFERROR(INDEX(CP43:$CT43,MATCH(0,INDEX(COUNTIF($CU43:DY43,CP43:$CT43),),)),\"\")","v":"Investment Analysis & Inverstor Relations"},{"$f":"IFERROR(INDEX(CQ43:$CT43,MATCH(0,INDEX(COUNTIF($CU43:DZ43,CQ43:$CT43),),)),\"\")","v":"Digital Sales"},{"$f":"IFERROR(INDEX(CR43:$CT43,MATCH(0,INDEX(COUNTIF($CU43:EA43,CR43:$CT43),),)),\"\")","v":""},{"$f":"IFERROR(INDEX(CS43:$CT43,MATCH(0,INDEX(COUNTIF($CU43:EB43,CS43:$CT43),),)),\"\")","v":""},{"$f":"IFERROR(INDEX(CT43:$CT43,MATCH(0,INDEX(COUNTIF($CU43:EC43,CT43:$CT43),),)),\"\")","v":""},{"$f":"IFERROR(INDEX($CT43:CU43,MATCH(0,INDEX(COUNTIF($CU43:ED43,$CT43:CU43),),)),\"\")","v":0},{"$f":"IFERROR(INDEX($CT43:CV43,MATCH(0,INDEX(COUNTIF($CU43:EE43,$CT43:CV43),),)),\"\")","v":""},{"$f":"IFERROR(INDEX($CT43:CW43,MATCH(0,INDEX(COUNTIF($CU43:EF43,$CT43:CW43),),)),\"\")","v":""},{"$f":"IFERROR(INDEX($CT43:CX43,MATCH(0,INDEX(COUNTIF($CU43:EG43,$CT43:CX43),),)),\"\")","v":""}]
[null,null,{"$f":"D6","v":"BU_CENTRAL_EUROPE"},"EUR",null,null,null,null,null,null,null,null,null,null,"Penalties/Fines/Other taxes",210,62929001,"Dpto_linea_44","Dpto_linea_44_9039","x","x","x","x","x","x","x","x","x","x","x","x","x","x","x","x","x","x","x","x","x","x","x","x","x","x","x",null,"x","x",null,"x","x","x","x",null,null,null,null,null,null,null,null,"Operations control","Human Resources","Projects, Constructions, Engineering & Maintenance","IT","Administration","Sales","Revenue Management","CRM & Loyalty","Quality & Competition","Internal Audit ","Legal","Assets, Rents & Expansion","Development","General Services","Purchasing","Front Office Project","Finance","Control and Financial Planning","Treasury","Business Intelligence","Reservation","Other commercial","Distribution","Marketing","Ecommerce","Product & Brand","RRPP & Social Media","","Corporate Affairs ","Special Investments","","Organization","Consolidation","Investment Analysis & Inverstor Relations","Digital Sales","",null,{"$f":"IFERROR(INDEX(BK44:$CT44,MATCH(0,INDEX(COUNTIF($CU44:CU44,BK44:$CT44),),)),\"\")","v":"Operations control"},{"$f":"IFERROR(INDEX(BK44:$CT44,MATCH(0,INDEX(COUNTIF($CU44:CV44,BK44:$CT44),),)),\"\")","v":"Human Resources"},{"$f":"IFERROR(INDEX(BK44:$CT44,MATCH(0,INDEX(COUNTIF($CU44:CW44,BK44:$CT44),),)),\"\")","v":"Projects, Constructions, Engineering & Maintenance"},{"$f":"IFERROR(INDEX(BK44:$CT44,MATCH(0,INDEX(COUNTIF($CU44:CX44,BK44:$CT44),),)),\"\")","v":"IT"},{"$f":"IFERROR(INDEX(BK44:$CT44,MATCH(0,INDEX(COUNTIF($CU44:CY44,BK44:$CT44),),)),\"\")","v":"Administration"},{"$f":"IFERROR(INDEX(BK44:$CT44,MATCH(0,INDEX(COUNTIF($CU44:CZ44,BK44:$CT44),),)),\"\")","v":"Sales"},{"$f":"IFERROR(INDEX(BK44:$CT44,MATCH(0,INDEX(COUNTIF($CU44:DA44,BK44:$CT44),),)),\"\")","v":"Revenue Management"},{"$f":"IFERROR(INDEX(BK44:$CT44,MATCH(0,INDEX(COUNTIF($CU44:DB44,BK44:$CT44),),)),\"\")","v":"CRM & Loyalty"},{"$f":"IFERROR(INDEX(BK44:$CT44,MATCH(0,INDEX(COUNTIF($CU44:DC44,BK44:$CT44),),)),\"\")","v":"Quality & Competition"},{"$f":"IFERROR(INDEX(BL44:$CT44,MATCH(0,INDEX(COUNTIF($CU44:DD44,BL44:$CT44),),)),\"\")","v":"Internal Audit "},{"$f":"IFERROR(INDEX(BM44:$CT44,MATCH(0,INDEX(COUNTIF($CU44:DE44,BM44:$CT44),),)),\"\")","v":"Legal"},{"$f":"IFERROR(INDEX(BN44:$CT44,MATCH(0,INDEX(COUNTIF($CU44:DF44,BN44:$CT44),),)),\"\")","v":"Assets, Rents & Expansion"},{"$f":"IFERROR(INDEX(BO44:$CT44,MATCH(0,INDEX(COUNTIF($CU44:DG44,BO44:$CT44),),)),\"\")","v":"Development"},{"$f":"IFERROR(INDEX(BP44:$CT44,MATCH(0,INDEX(COUNTIF($CU44:DH44,BP44:$CT44),),)),\"\")","v":"General Services"},{"$f":"IFERROR(INDEX(BQ44:$CT44,MATCH(0,INDEX(COUNTIF($CU44:DI44,BQ44:$CT44),),)),\"\")","v":"Purchasing"},{"$f":"IFERROR(INDEX(BR44:$CT44,MATCH(0,INDEX(COUNTIF($CU44:DJ44,BR44:$CT44),),)),\"\")","v":"Front Office Project"},{"$f":"IFERROR(INDEX(BS44:$CT44,MATCH(0,INDEX(COUNTIF($CU44:DK44,BS44:$CT44),),)),\"\")","v":"Finance"},{"$f":"IFERROR(INDEX(BT44:$CT44,MATCH(0,INDEX(COUNTIF($CU44:DL44,BT44:$CT44),),)),\"\")","v":"Control and Financial Planning"},{"$f":"IFERROR(INDEX(BU44:$CT44,MATCH(0,INDEX(COUNTIF($CU44:DM44,BU44:$CT44),),)),\"\")","v":"Treasury"},{"$f":"IFERROR(INDEX(BV44:$CT44,MATCH(0,INDEX(COUNTIF($CU44:DN44,BV44:$CT44),),)),\"\")","v":"Business Intelligence"},{"$f":"IFERROR(INDEX(BW44:$CT44,MATCH(0,INDEX(COUNTIF($CU44:DO44,BW44:$CT44),),)),\"\")","v":"Reservation"},{"$f":"IFERROR(INDEX(BX44:$CT44,MATCH(0,INDEX(COUNTIF($CU44:DP44,BX44:$CT44),),)),\"\")","v":"Other commercial"},{"$f":"IFERROR(INDEX(BY44:$CT44,MATCH(0,INDEX(COUNTIF($CU44:DQ44,BY44:$CT44),),)),\"\")","v":"Distribution"},{"$f":"IFERROR(INDEX(BZ44:$CT44,MATCH(0,INDEX(COUNTIF($CU44:DR44,BZ44:$CT44),),)),\"\")","v":"Marketing"},{"$f":"IFERROR(INDEX(CA44:$CT44,MATCH(0,INDEX(COUNTIF($CU44:DS44,CA44:$CT44),),)),\"\")","v":"Ecommerce"},{"$f":"IFERROR(INDEX(CK44:$CT44,MATCH(0,INDEX(COUNTIF($CU44:DT44,CK44:$CT44),),)),\"\")","v":"RRPP & Social Media"},{"$f":"IFERROR(INDEX(CL44:$CT44,MATCH(0,INDEX(COUNTIF($CU44:DU44,CL44:$CT44),),)),\"\")","v":"Corporate Affairs "},{"$f":"IFERROR(INDEX(CM44:$CT44,MATCH(0,INDEX(COUNTIF($CU44:DV44,CM44:$CT44),),)),\"\")","v":"Special Investments"},{"$f":"IFERROR(INDEX(CN44:$CT44,MATCH(0,INDEX(COUNTIF($CU44:DW44,CN44:$CT44),),)),\"\")","v":"Organization"},{"$f":"IFERROR(INDEX(CO44:$CT44,MATCH(0,INDEX(COUNTIF($CU44:DX44,CO44:$CT44),),)),\"\")","v":"Consolidation"},{"$f":"IFERROR(INDEX(CP44:$CT44,MATCH(0,INDEX(COUNTIF($CU44:DY44,CP44:$CT44),),)),\"\")","v":"Investment Analysis & Inverstor Relations"},{"$f":"IFERROR(INDEX(CQ44:$CT44,MATCH(0,INDEX(COUNTIF($CU44:DZ44,CQ44:$CT44),),)),\"\")","v":"Digital Sales"},{"$f":"IFERROR(INDEX(CR44:$CT44,MATCH(0,INDEX(COUNTIF($CU44:EA44,CR44:$CT44),),)),\"\")","v":""},{"$f":"IFERROR(INDEX(CS44:$CT44,MATCH(0,INDEX(COUNTIF($CU44:EB44,CS44:$CT44),),)),\"\")","v":""},{"$f":"IFERROR(INDEX(CT44:$CT44,MATCH(0,INDEX(COUNTIF($CU44:EC44,CT44:$CT44),),)),\"\")","v":""},{"$f":"IFERROR(INDEX($CT44:CU44,MATCH(0,INDEX(COUNTIF($CU44:ED44,$CT44:CU44),),)),\"\")","v":0},{"$f":"IFERROR(INDEX($CT44:CV44,MATCH(0,INDEX(COUNTIF($CU44:EE44,$CT44:CV44),),)),\"\")","v":""},{"$f":"IFERROR(INDEX($CT44:CW44,MATCH(0,INDEX(COUNTIF($CU44:EF44,$CT44:CW44),),)),\"\")","v":""},{"$f":"IFERROR(INDEX($CT44:CX44,MATCH(0,INDEX(COUNTIF($CU44:EG44,$CT44:CX44),),)),\"\")","v":""}]
[null,null,{"$f":"CONCATENATE(\"CURR\",C44)","v":"CURRBU_CENTRAL_EUROPE"},"RON",null,null,null,null,null,null,null,null,null,null,"Small Repairs & Material Central Services",211,62207000,"Dpto_linea_45","Dpto_linea_45_9039",null,null,"x",null,null,null,null,null,null,null,null,null,null,null,null,null,null,null,null,null,null,null,null,null,null,null,null,null,null,null,null,null,null,null,null,null,null,null,null,null,null,null,null,"","","Projects, Constructions, Engineering & Maintenance","","","","","","","","","","","","","","","","","","","","","","","","","","","","","","","","","",null,{"$f":"IFERROR(INDEX(BK45:$CT45,MATCH(0,INDEX(COUNTIF($CU45:CU45,BK45:$CT45),),)),\"\")","v":"Projects, Constructions, Engineering & Maintenance"},{"$f":"IFERROR(INDEX(BK45:$CT45,MATCH(0,INDEX(COUNTIF($CU45:CV45,BK45:$CT45),),)),\"\")","v":""},{"$f":"IFERROR(INDEX(BK45:$CT45,MATCH(0,INDEX(COUNTIF($CU45:CW45,BK45:$CT45),),)),\"\")","v":""},{"$f":"IFERROR(INDEX(BK45:$CT45,MATCH(0,INDEX(COUNTIF($CU45:CX45,BK45:$CT45),),)),\"\")","v":""},{"$f":"IFERROR(INDEX(BK45:$CT45,MATCH(0,INDEX(COUNTIF($CU45:CY45,BK45:$CT45),),)),\"\")","v":""},{"$f":"IFERROR(INDEX(BK45:$CT45,MATCH(0,INDEX(COUNTIF($CU45:CZ45,BK45:$CT45),),)),\"\")","v":""},{"$f":"IFERROR(INDEX(BK45:$CT45,MATCH(0,INDEX(COUNTIF($CU45:DA45,BK45:$CT45),),)),\"\")","v":""},{"$f":"IFERROR(INDEX(BK45:$CT45,MATCH(0,INDEX(COUNTIF($CU45:DB45,BK45:$CT45),),)),\"\")","v":""},{"$f":"IFERROR(INDEX(BK45:$CT45,MATCH(0,INDEX(COUNTIF($CU45:DC45,BK45:$CT45),),)),\"\")","v":""},{"$f":"IFERROR(INDEX(BL45:$CT45,MATCH(0,INDEX(COUNTIF($CU45:DD45,BL45:$CT45),),)),\"\")","v":""},{"$f":"IFERROR(INDEX(BM45:$CT45,MATCH(0,INDEX(COUNTIF($CU45:DE45,BM45:$CT45),),)),\"\")","v":""},{"$f":"IFERROR(INDEX(BN45:$CT45,MATCH(0,INDEX(COUNTIF($CU45:DF45,BN45:$CT45),),)),\"\")","v":""},{"$f":"IFERROR(INDEX(BO45:$CT45,MATCH(0,INDEX(COUNTIF($CU45:DG45,BO45:$CT45),),)),\"\")","v":""},{"$f":"IFERROR(INDEX(BP45:$CT45,MATCH(0,INDEX(COUNTIF($CU45:DH45,BP45:$CT45),),)),\"\")","v":""},{"$f":"IFERROR(INDEX(BQ45:$CT45,MATCH(0,INDEX(COUNTIF($CU45:DI45,BQ45:$CT45),),)),\"\")","v":""},{"$f":"IFERROR(INDEX(BR45:$CT45,MATCH(0,INDEX(COUNTIF($CU45:DJ45,BR45:$CT45),),)),\"\")","v":""},{"$f":"IFERROR(INDEX(BS45:$CT45,MATCH(0,INDEX(COUNTIF($CU45:DK45,BS45:$CT45),),)),\"\")","v":""},{"$f":"IFERROR(INDEX(BT45:$CT45,MATCH(0,INDEX(COUNTIF($CU45:DL45,BT45:$CT45),),)),\"\")","v":""},{"$f":"IFERROR(INDEX(BU45:$CT45,MATCH(0,INDEX(COUNTIF($CU45:DM45,BU45:$CT45),),)),\"\")","v":""},{"$f":"IFERROR(INDEX(BV45:$CT45,MATCH(0,INDEX(COUNTIF($CU45:DN45,BV45:$CT45),),)),\"\")","v":""},{"$f":"IFERROR(INDEX(BW45:$CT45,MATCH(0,INDEX(COUNTIF($CU45:DO45,BW45:$CT45),),)),\"\")","v":""},{"$f":"IFERROR(INDEX(BX45:$CT45,MATCH(0,INDEX(COUNTIF($CU45:DP45,BX45:$CT45),),)),\"\")","v":""},{"$f":"IFERROR(INDEX(BY45:$CT45,MATCH(0,INDEX(COUNTIF($CU45:DQ45,BY45:$CT45),),)),\"\")","v":""},{"$f":"IFERROR(INDEX(BZ45:$CT45,MATCH(0,INDEX(COUNTIF($CU45:DR45,BZ45:$CT45),),)),\"\")","v":""},{"$f":"IFERROR(INDEX(CA45:$CT45,MATCH(0,INDEX(COUNTIF($CU45:DS45,CA45:$CT45),),)),\"\")","v":""},{"$f":"IFERROR(INDEX(CK45:$CT45,MATCH(0,INDEX(COUNTIF($CU45:DT45,CK45:$CT45),),)),\"\")","v":""},{"$f":"IFERROR(INDEX(CL45:$CT45,MATCH(0,INDEX(COUNTIF($CU45:DU45,CL45:$CT45),),)),\"\")","v":""},{"$f":"IFERROR(INDEX(CM45:$CT45,MATCH(0,INDEX(COUNTIF($CU45:DV45,CM45:$CT45),),)),\"\")","v":""},{"$f":"IFERROR(INDEX(CN45:$CT45,MATCH(0,INDEX(COUNTIF($CU45:DW45,CN45:$CT45),),)),\"\")","v":""},{"$f":"IFERROR(INDEX(CO45:$CT45,MATCH(0,INDEX(COUNTIF($CU45:DX45,CO45:$CT45),),)),\"\")","v":""},{"$f":"IFERROR(INDEX(CP45:$CT45,MATCH(0,INDEX(COUNTIF($CU45:DY45,CP45:$CT45),),)),\"\")","v":""},{"$f":"IFERROR(INDEX(CQ45:$CT45,MATCH(0,INDEX(COUNTIF($CU45:DZ45,CQ45:$CT45),),)),\"\")","v":""},{"$f":"IFERROR(INDEX(CR45:$CT45,MATCH(0,INDEX(COUNTIF($CU45:EA45,CR45:$CT45),),)),\"\")","v":""},{"$f":"IFERROR(INDEX(CS45:$CT45,MATCH(0,INDEX(COUNTIF($CU45:EB45,CS45:$CT45),),)),\"\")","v":""},{"$f":"IFERROR(INDEX(CT45:$CT45,MATCH(0,INDEX(COUNTIF($CU45:EC45,CT45:$CT45),),)),\"\")","v":""},{"$f":"IFERROR(INDEX($CT45:CU45,MATCH(0,INDEX(COUNTIF($CU45:ED45,$CT45:CU45),),)),\"\")","v":0},{"$f":"IFERROR(INDEX($CT45:CV45,MATCH(0,INDEX(COUNTIF($CU45:EE45,$CT45:CV45),),)),\"\")","v":""},{"$f":"IFERROR(INDEX($CT45:CW45,MATCH(0,INDEX(COUNTIF($CU45:EF45,$CT45:CW45),),)),\"\")","v":""},{"$f":"IFERROR(INDEX($CT45:CX45,MATCH(0,INDEX(COUNTIF($CU45:EG45,$CT45:CX45),),)),\"\")","v":""}]
[null,null,null,"HUF",null,null,null,null,null,null,null,null,null,null,"Other needs of small values Central Services",212,62929000,"Dpto_linea_46","Dpto_linea_46_9039","x","x","x","x","x","x","x","x","x","x","x","x","x","x","x","x","x","x","x","x","x","x","x","x","x","x","x",null,"x","x",null,"x","x","x","x",null,null,null,null,null,null,null,null,"Operations control","Human Resources","Projects, Constructions, Engineering & Maintenance","IT","Administration","Sales","Revenue Management","CRM & Loyalty","Quality & Competition","Internal Audit ","Legal","Assets, Rents & Expansion","Development","General Services","Purchasing","Front Office Project","Finance","Control and Financial Planning","Treasury","Business Intelligence","Reservation","Other commercial","Distribution","Marketing","Ecommerce","Product & Brand","RRPP & Social Media","","Corporate Affairs ","Special Investments","","Organization","Consolidation","Investment Analysis & Inverstor Relations","Digital Sales","",null,{"$f":"IFERROR(INDEX(BK46:$CT46,MATCH(0,INDEX(COUNTIF($CU46:CU46,BK46:$CT46),),)),\"\")","v":"Operations control"},{"$f":"IFERROR(INDEX(BK46:$CT46,MATCH(0,INDEX(COUNTIF($CU46:CV46,BK46:$CT46),),)),\"\")","v":"Human Resources"},{"$f":"IFERROR(INDEX(BK46:$CT46,MATCH(0,INDEX(COUNTIF($CU46:CW46,BK46:$CT46),),)),\"\")","v":"Projects, Constructions, Engineering & Maintenance"},{"$f":"IFERROR(INDEX(BK46:$CT46,MATCH(0,INDEX(COUNTIF($CU46:CX46,BK46:$CT46),),)),\"\")","v":"IT"},{"$f":"IFERROR(INDEX(BK46:$CT46,MATCH(0,INDEX(COUNTIF($CU46:CY46,BK46:$CT46),),)),\"\")","v":"Administration"},{"$f":"IFERROR(INDEX(BK46:$CT46,MATCH(0,INDEX(COUNTIF($CU46:CZ46,BK46:$CT46),),)),\"\")","v":"Sales"},{"$f":"IFERROR(INDEX(BK46:$CT46,MATCH(0,INDEX(COUNTIF($CU46:DA46,BK46:$CT46),),)),\"\")","v":"Revenue Management"},{"$f":"IFERROR(INDEX(BK46:$CT46,MATCH(0,INDEX(COUNTIF($CU46:DB46,BK46:$CT46),),)),\"\")","v":"CRM & Loyalty"},{"$f":"IFERROR(INDEX(BK46:$CT46,MATCH(0,INDEX(COUNTIF($CU46:DC46,BK46:$CT46),),)),\"\")","v":"Quality & Competition"},{"$f":"IFERROR(INDEX(BL46:$CT46,MATCH(0,INDEX(COUNTIF($CU46:DD46,BL46:$CT46),),)),\"\")","v":"Internal Audit "},{"$f":"IFERROR(INDEX(BM46:$CT46,MATCH(0,INDEX(COUNTIF($CU46:DE46,BM46:$CT46),),)),\"\")","v":"Legal"},{"$f":"IFERROR(INDEX(BN46:$CT46,MATCH(0,INDEX(COUNTIF($CU46:DF46,BN46:$CT46),),)),\"\")","v":"Assets, Rents & Expansion"},{"$f":"IFERROR(INDEX(BO46:$CT46,MATCH(0,INDEX(COUNTIF($CU46:DG46,BO46:$CT46),),)),\"\")","v":"Development"},{"$f":"IFERROR(INDEX(BP46:$CT46,MATCH(0,INDEX(COUNTIF($CU46:DH46,BP46:$CT46),),)),\"\")","v":"General Services"},{"$f":"IFERROR(INDEX(BQ46:$CT46,MATCH(0,INDEX(COUNTIF($CU46:DI46,BQ46:$CT46),),)),\"\")","v":"Purchasing"},{"$f":"IFERROR(INDEX(BR46:$CT46,MATCH(0,INDEX(COUNTIF($CU46:DJ46,BR46:$CT46),),)),\"\")","v":"Front Office Project"},{"$f":"IFERROR(INDEX(BS46:$CT46,MATCH(0,INDEX(COUNTIF($CU46:DK46,BS46:$CT46),),)),\"\")","v":"Finance"},{"$f":"IFERROR(INDEX(BT46:$CT46,MATCH(0,INDEX(COUNTIF($CU46:DL46,BT46:$CT46),),)),\"\")","v":"Control and Financial Planning"},{"$f":"IFERROR(INDEX(BU46:$CT46,MATCH(0,INDEX(COUNTIF($CU46:DM46,BU46:$CT46),),)),\"\")","v":"Treasury"},{"$f":"IFERROR(INDEX(BV46:$CT46,MATCH(0,INDEX(COUNTIF($CU46:DN46,BV46:$CT46),),)),\"\")","v":"Business Intelligence"},{"$f":"IFERROR(INDEX(BW46:$CT46,MATCH(0,INDEX(COUNTIF($CU46:DO46,BW46:$CT46),),)),\"\")","v":"Reservation"},{"$f":"IFERROR(INDEX(BX46:$CT46,MATCH(0,INDEX(COUNTIF($CU46:DP46,BX46:$CT46),),)),\"\")","v":"Other commercial"},{"$f":"IFERROR(INDEX(BY46:$CT46,MATCH(0,INDEX(COUNTIF($CU46:DQ46,BY46:$CT46),),)),\"\")","v":"Distribution"},{"$f":"IFERROR(INDEX(BZ46:$CT46,MATCH(0,INDEX(COUNTIF($CU46:DR46,BZ46:$CT46),),)),\"\")","v":"Marketing"},{"$f":"IFERROR(INDEX(CA46:$CT46,MATCH(0,INDEX(COUNTIF($CU46:DS46,CA46:$CT46),),)),\"\")","v":"Ecommerce"},{"$f":"IFERROR(INDEX(CK46:$CT46,MATCH(0,INDEX(COUNTIF($CU46:DT46,CK46:$CT46),),)),\"\")","v":"RRPP & Social Media"},{"$f":"IFERROR(INDEX(CL46:$CT46,MATCH(0,INDEX(COUNTIF($CU46:DU46,CL46:$CT46),),)),\"\")","v":"Corporate Affairs "},{"$f":"IFERROR(INDEX(CM46:$CT46,MATCH(0,INDEX(COUNTIF($CU46:DV46,CM46:$CT46),),)),\"\")","v":"Special Investments"},{"$f":"IFERROR(INDEX(CN46:$CT46,MATCH(0,INDEX(COUNTIF($CU46:DW46,CN46:$CT46),),)),\"\")","v":"Organization"},{"$f":"IFERROR(INDEX(CO46:$CT46,MATCH(0,INDEX(COUNTIF($CU46:DX46,CO46:$CT46),),)),\"\")","v":"Consolidation"},{"$f":"IFERROR(INDEX(CP46:$CT46,MATCH(0,INDEX(COUNTIF($CU46:DY46,CP46:$CT46),),)),\"\")","v":"Investment Analysis & Inverstor Relations"},{"$f":"IFERROR(INDEX(CQ46:$CT46,MATCH(0,INDEX(COUNTIF($CU46:DZ46,CQ46:$CT46),),)),\"\")","v":"Digital Sales"},{"$f":"IFERROR(INDEX(CR46:$CT46,MATCH(0,INDEX(COUNTIF($CU46:EA46,CR46:$CT46),),)),\"\")","v":""},{"$f":"IFERROR(INDEX(CS46:$CT46,MATCH(0,INDEX(COUNTIF($CU46:EB46,CS46:$CT46),),)),\"\")","v":""},{"$f":"IFERROR(INDEX(CT46:$CT46,MATCH(0,INDEX(COUNTIF($CU46:EC46,CT46:$CT46),),)),\"\")","v":""},{"$f":"IFERROR(INDEX($CT46:CU46,MATCH(0,INDEX(COUNTIF($CU46:ED46,$CT46:CU46),),)),\"\")","v":0},{"$f":"IFERROR(INDEX($CT46:CV46,MATCH(0,INDEX(COUNTIF($CU46:EE46,$CT46:CV46),),)),\"\")","v":""},{"$f":"IFERROR(INDEX($CT46:CW46,MATCH(0,INDEX(COUNTIF($CU46:EF46,$CT46:CW46),),)),\"\")","v":""},{"$f":"IFERROR(INDEX($CT46:CX46,MATCH(0,INDEX(COUNTIF($CU46:EG46,$CT46:CX46),),)),\"\")","v":""}]
[null,null,null,null,null,null,null,null,null,null,null,null,null,null,"All expenses related to MC (Only 9039)",213,62360000,"Dpto_linea_47","Dpto_linea_47_9039",null,null,null,null,null,null,null,null,null,null,null,null,null,null,null,null,null,null,null,null,null,null,null,null,null,null,null,"x",null,null,null,null,null,null,null,null,null,null,null,null,null,null,null,"","","","","","","","","","","","","","","","","","","","","","","","","","","","Management Comitee","","","","","","","","",null,{"$f":"IFERROR(INDEX(BK47:$CT47,MATCH(0,INDEX(COUNTIF($CU47:CU47,BK47:$CT47),),)),\"\")","v":"Management Comitee"},{"$f":"IFERROR(INDEX(BK47:$CT47,MATCH(0,INDEX(COUNTIF($CU47:CV47,BK47:$CT47),),)),\"\")","v":""},{"$f":"IFERROR(INDEX(BK47:$CT47,MATCH(0,INDEX(COUNTIF($CU47:CW47,BK47:$CT47),),)),\"\")","v":""},{"$f":"IFERROR(INDEX(BK47:$CT47,MATCH(0,INDEX(COUNTIF($CU47:CX47,BK47:$CT47),),)),\"\")","v":""},{"$f":"IFERROR(INDEX(BK47:$CT47,MATCH(0,INDEX(COUNTIF($CU47:CY47,BK47:$CT47),),)),\"\")","v":""},{"$f":"IFERROR(INDEX(BK47:$CT47,MATCH(0,INDEX(COUNTIF($CU47:CZ47,BK47:$CT47),),)),\"\")","v":""},{"$f":"IFERROR(INDEX(BK47:$CT47,MATCH(0,INDEX(COUNTIF($CU47:DA47,BK47:$CT47),),)),\"\")","v":""},{"$f":"IFERROR(INDEX(BK47:$CT47,MATCH(0,INDEX(COUNTIF($CU47:DB47,BK47:$CT47),),)),\"\")","v":""},{"$f":"IFERROR(INDEX(BK47:$CT47,MATCH(0,INDEX(COUNTIF($CU47:DC47,BK47:$CT47),),)),\"\")","v":""},{"$f":"IFERROR(INDEX(BL47:$CT47,MATCH(0,INDEX(COUNTIF($CU47:DD47,BL47:$CT47),),)),\"\")","v":""},{"$f":"IFERROR(INDEX(BM47:$CT47,MATCH(0,INDEX(COUNTIF($CU47:DE47,BM47:$CT47),),)),\"\")","v":""},{"$f":"IFERROR(INDEX(BN47:$CT47,MATCH(0,INDEX(COUNTIF($CU47:DF47,BN47:$CT47),),)),\"\")","v":""},{"$f":"IFERROR(INDEX(BO47:$CT47,MATCH(0,INDEX(COUNTIF($CU47:DG47,BO47:$CT47),),)),\"\")","v":""},{"$f":"IFERROR(INDEX(BP47:$CT47,MATCH(0,INDEX(COUNTIF($CU47:DH47,BP47:$CT47),),)),\"\")","v":""},{"$f":"IFERROR(INDEX(BQ47:$CT47,MATCH(0,INDEX(COUNTIF($CU47:DI47,BQ47:$CT47),),)),\"\")","v":""},{"$f":"IFERROR(INDEX(BR47:$CT47,MATCH(0,INDEX(COUNTIF($CU47:DJ47,BR47:$CT47),),)),\"\")","v":""},{"$f":"IFERROR(INDEX(BS47:$CT47,MATCH(0,INDEX(COUNTIF($CU47:DK47,BS47:$CT47),),)),\"\")","v":""},{"$f":"IFERROR(INDEX(BT47:$CT47,MATCH(0,INDEX(COUNTIF($CU47:DL47,BT47:$CT47),),)),\"\")","v":""},{"$f":"IFERROR(INDEX(BU47:$CT47,MATCH(0,INDEX(COUNTIF($CU47:DM47,BU47:$CT47),),)),\"\")","v":""},{"$f":"IFERROR(INDEX(BV47:$CT47,MATCH(0,INDEX(COUNTIF($CU47:DN47,BV47:$CT47),),)),\"\")","v":""},{"$f":"IFERROR(INDEX(BW47:$CT47,MATCH(0,INDEX(COUNTIF($CU47:DO47,BW47:$CT47),),)),\"\")","v":""},{"$f":"IFERROR(INDEX(BX47:$CT47,MATCH(0,INDEX(COUNTIF($CU47:DP47,BX47:$CT47),),)),\"\")","v":""},{"$f":"IFERROR(INDEX(BY47:$CT47,MATCH(0,INDEX(COUNTIF($CU47:DQ47,BY47:$CT47),),)),\"\")","v":""},{"$f":"IFERROR(INDEX(BZ47:$CT47,MATCH(0,INDEX(COUNTIF($CU47:DR47,BZ47:$CT47),),)),\"\")","v":""},{"$f":"IFERROR(INDEX(CA47:$CT47,MATCH(0,INDEX(COUNTIF($CU47:DS47,CA47:$CT47),),)),\"\")","v":""},{"$f":"IFERROR(INDEX(CK47:$CT47,MATCH(0,INDEX(COUNTIF($CU47:DT47,CK47:$CT47),),)),\"\")","v":""},{"$f":"IFERROR(INDEX(CL47:$CT47,MATCH(0,INDEX(COUNTIF($CU47:DU47,CL47:$CT47),),)),\"\")","v":""},{"$f":"IFERROR(INDEX(CM47:$CT47,MATCH(0,INDEX(COUNTIF($CU47:DV47,CM47:$CT47),),)),\"\")","v":""},{"$f":"IFERROR(INDEX(CN47:$CT47,MATCH(0,INDEX(COUNTIF($CU47:DW47,CN47:$CT47),),)),\"\")","v":""},{"$f":"IFERROR(INDEX(CO47:$CT47,MATCH(0,INDEX(COUNTIF($CU47:DX47,CO47:$CT47),),)),\"\")","v":""},{"$f":"IFERROR(INDEX(CP47:$CT47,MATCH(0,INDEX(COUNTIF($CU47:DY47,CP47:$CT47),),)),\"\")","v":""},{"$f":"IFERROR(INDEX(CQ47:$CT47,MATCH(0,INDEX(COUNTIF($CU47:DZ47,CQ47:$CT47),),)),\"\")","v":""},{"$f":"IFERROR(INDEX(CR47:$CT47,MATCH(0,INDEX(COUNTIF($CU47:EA47,CR47:$CT47),),)),\"\")","v":""},{"$f":"IFERROR(INDEX(CS47:$CT47,MATCH(0,INDEX(COUNTIF($CU47:EB47,CS47:$CT47),),)),\"\")","v":""},{"$f":"IFERROR(INDEX(CT47:$CT47,MATCH(0,INDEX(COUNTIF($CU47:EC47,CT47:$CT47),),)),\"\")","v":""},{"$f":"IFERROR(INDEX($CT47:CU47,MATCH(0,INDEX(COUNTIF($CU47:ED47,$CT47:CU47),),)),\"\")","v":0},{"$f":"IFERROR(INDEX($CT47:CV47,MATCH(0,INDEX(COUNTIF($CU47:EE47,$CT47:CV47),),)),\"\")","v":""},{"$f":"IFERROR(INDEX($CT47:CW47,MATCH(0,INDEX(COUNTIF($CU47:EF47,$CT47:CW47),),)),\"\")","v":""},{"$f":"IFERROR(INDEX($CT47:CX47,MATCH(0,INDEX(COUNTIF($CU47:EG47,$CT47:CX47),),)),\"\")","v":""}]
[null,null,{"$f":"D7","v":"BU_ITALY"},"EUR",null,null,null,null,null,null,null,null,null,null,"Deductions Employee Penalty (Only 9700)",214,55500000,"Dpto_linea_48","Dpto_linea_48_9039",null,null,null,null,null,null,null,null,null,null,null,null,null,null,null,null,null,null,null,null,null,null,null,null,null,null,null,null,null,null,null,null,null,null,null,null,null,null,null,null,null,null,null,"","","","","","","","","","","","","","","","","","","","","","","","","","","","","","","","","","","","",null,{"$f":"IFERROR(INDEX(BK48:$CT48,MATCH(0,INDEX(COUNTIF($CU48:CU48,BK48:$CT48),),)),\"\")","v":""},{"$f":"IFERROR(INDEX(BK48:$CT48,MATCH(0,INDEX(COUNTIF($CU48:CV48,BK48:$CT48),),)),\"\")","v":""},{"$f":"IFERROR(INDEX(BK48:$CT48,MATCH(0,INDEX(COUNTIF($CU48:CW48,BK48:$CT48),),)),\"\")","v":""},{"$f":"IFERROR(INDEX(BK48:$CT48,MATCH(0,INDEX(COUNTIF($CU48:CX48,BK48:$CT48),),)),\"\")","v":""},{"$f":"IFERROR(INDEX(BK48:$CT48,MATCH(0,INDEX(COUNTIF($CU48:CY48,BK48:$CT48),),)),\"\")","v":""},{"$f":"IFERROR(INDEX(BK48:$CT48,MATCH(0,INDEX(COUNTIF($CU48:CZ48,BK48:$CT48),),)),\"\")","v":""},{"$f":"IFERROR(INDEX(BK48:$CT48,MATCH(0,INDEX(COUNTIF($CU48:DA48,BK48:$CT48),),)),\"\")","v":""},{"$f":"IFERROR(INDEX(BK48:$CT48,MATCH(0,INDEX(COUNTIF($CU48:DB48,BK48:$CT48),),)),\"\")","v":""},{"$f":"IFERROR(INDEX(BK48:$CT48,MATCH(0,INDEX(COUNTIF($CU48:DC48,BK48:$CT48),),)),\"\")","v":""},{"$f":"IFERROR(INDEX(BL48:$CT48,MATCH(0,INDEX(COUNTIF($CU48:DD48,BL48:$CT48),),)),\"\")","v":""},{"$f":"IFERROR(INDEX(BM48:$CT48,MATCH(0,INDEX(COUNTIF($CU48:DE48,BM48:$CT48),),)),\"\")","v":""},{"$f":"IFERROR(INDEX(BN48:$CT48,MATCH(0,INDEX(COUNTIF($CU48:DF48,BN48:$CT48),),)),\"\")","v":""},{"$f":"IFERROR(INDEX(BO48:$CT48,MATCH(0,INDEX(COUNTIF($CU48:DG48,BO48:$CT48),),)),\"\")","v":""},{"$f":"IFERROR(INDEX(BP48:$CT48,MATCH(0,INDEX(COUNTIF($CU48:DH48,BP48:$CT48),),)),\"\")","v":""},{"$f":"IFERROR(INDEX(BQ48:$CT48,MATCH(0,INDEX(COUNTIF($CU48:DI48,BQ48:$CT48),),)),\"\")","v":""},{"$f":"IFERROR(INDEX(BR48:$CT48,MATCH(0,INDEX(COUNTIF($CU48:DJ48,BR48:$CT48),),)),\"\")","v":""},{"$f":"IFERROR(INDEX(BS48:$CT48,MATCH(0,INDEX(COUNTIF($CU48:DK48,BS48:$CT48),),)),\"\")","v":""},{"$f":"IFERROR(INDEX(BT48:$CT48,MATCH(0,INDEX(COUNTIF($CU48:DL48,BT48:$CT48),),)),\"\")","v":""},{"$f":"IFERROR(INDEX(BU48:$CT48,MATCH(0,INDEX(COUNTIF($CU48:DM48,BU48:$CT48),),)),\"\")","v":""},{"$f":"IFERROR(INDEX(BV48:$CT48,MATCH(0,INDEX(COUNTIF($CU48:DN48,BV48:$CT48),),)),\"\")","v":""},{"$f":"IFERROR(INDEX(BW48:$CT48,MATCH(0,INDEX(COUNTIF($CU48:DO48,BW48:$CT48),),)),\"\")","v":""},{"$f":"IFERROR(INDEX(BX48:$CT48,MATCH(0,INDEX(COUNTIF($CU48:DP48,BX48:$CT48),),)),\"\")","v":""},{"$f":"IFERROR(INDEX(BY48:$CT48,MATCH(0,INDEX(COUNTIF($CU48:DQ48,BY48:$CT48),),)),\"\")","v":""},{"$f":"IFERROR(INDEX(BZ48:$CT48,MATCH(0,INDEX(COUNTIF($CU48:DR48,BZ48:$CT48),),)),\"\")","v":""},{"$f":"IFERROR(INDEX(CA48:$CT48,MATCH(0,INDEX(COUNTIF($CU48:DS48,CA48:$CT48),),)),\"\")","v":""},{"$f":"IFERROR(INDEX(CK48:$CT48,MATCH(0,INDEX(COUNTIF($CU48:DT48,CK48:$CT48),),)),\"\")","v":""},{"$f":"IFERROR(INDEX(CL48:$CT48,MATCH(0,INDEX(COUNTIF($CU48:DU48,CL48:$CT48),),)),\"\")","v":""},{"$f":"IFERROR(INDEX(CM48:$CT48,MATCH(0,INDEX(COUNTIF($CU48:DV48,CM48:$CT48),),)),\"\")","v":""},{"$f":"IFERROR(INDEX(CN48:$CT48,MATCH(0,INDEX(COUNTIF($CU48:DW48,CN48:$CT48),),)),\"\")","v":""},{"$f":"IFERROR(INDEX(CO48:$CT48,MATCH(0,INDEX(COUNTIF($CU48:DX48,CO48:$CT48),),)),\"\")","v":""},{"$f":"IFERROR(INDEX(CP48:$CT48,MATCH(0,INDEX(COUNTIF($CU48:DY48,CP48:$CT48),),)),\"\")","v":""},{"$f":"IFERROR(INDEX(CQ48:$CT48,MATCH(0,INDEX(COUNTIF($CU48:DZ48,CQ48:$CT48),),)),\"\")","v":""},{"$f":"IFERROR(INDEX(CR48:$CT48,MATCH(0,INDEX(COUNTIF($CU48:EA48,CR48:$CT48),),)),\"\")","v":""},{"$f":"IFERROR(INDEX(CS48:$CT48,MATCH(0,INDEX(COUNTIF($CU48:EB48,CS48:$CT48),),)),\"\")","v":""},{"$f":"IFERROR(INDEX(CT48:$CT48,MATCH(0,INDEX(COUNTIF($CU48:EC48,CT48:$CT48),),)),\"\")","v":""},{"$f":"IFERROR(INDEX($CT48:CU48,MATCH(0,INDEX(COUNTIF($CU48:ED48,$CT48:CU48),),)),\"\")","v":0},{"$f":"IFERROR(INDEX($CT48:CV48,MATCH(0,INDEX(COUNTIF($CU48:EE48,$CT48:CV48),),)),\"\")","v":""},{"$f":"IFERROR(INDEX($CT48:CW48,MATCH(0,INDEX(COUNTIF($CU48:EF48,$CT48:CW48),),)),\"\")","v":""},{"$f":"IFERROR(INDEX($CT48:CX48,MATCH(0,INDEX(COUNTIF($CU48:EG48,$CT48:CX48),),)),\"\")","v":""}]
[null,null,{"$f":"CONCATENATE(\"CURR\",C48)","v":"CURRBU_ITALY"},null,null,null,null,null,null,null,null,null,null,null,null,null,null,"Dpto_linea_49",null,null,null,null,null,null,null,null,null,null,null,null,null,null,null,null,null,null,null,null,null,null,null,null,null,null,null,null,null,null,null,null,null,null,null,null,null,null,null,null,null,null,null,null,"","","","","","","","","","","","","","","","","","","","","","","","","","","","","","","","","","","","",null,{"$f":"IFERROR(INDEX(BK49:$CT49,MATCH(0,INDEX(COUNTIF($CU49:CU49,BK49:$CT49),),)),\"\")","v":""},{"$f":"IFERROR(INDEX(BK49:$CT49,MATCH(0,INDEX(COUNTIF($CU49:CV49,BK49:$CT49),),)),\"\")","v":""},{"$f":"IFERROR(INDEX(BK49:$CT49,MATCH(0,INDEX(COUNTIF($CU49:CW49,BK49:$CT49),),)),\"\")","v":""},{"$f":"IFERROR(INDEX(BK49:$CT49,MATCH(0,INDEX(COUNTIF($CU49:CX49,BK49:$CT49),),)),\"\")","v":""},{"$f":"IFERROR(INDEX(BK49:$CT49,MATCH(0,INDEX(COUNTIF($CU49:CY49,BK49:$CT49),),)),\"\")","v":""},{"$f":"IFERROR(INDEX(BK49:$CT49,MATCH(0,INDEX(COUNTIF($CU49:CZ49,BK49:$CT49),),)),\"\")","v":""},{"$f":"IFERROR(INDEX(BK49:$CT49,MATCH(0,INDEX(COUNTIF($CU49:DA49,BK49:$CT49),),)),\"\")","v":""},{"$f":"IFERROR(INDEX(BK49:$CT49,MATCH(0,INDEX(COUNTIF($CU49:DB49,BK49:$CT49),),)),\"\")","v":""},{"$f":"IFERROR(INDEX(BK49:$CT49,MATCH(0,INDEX(COUNTIF($CU49:DC49,BK49:$CT49),),)),\"\")","v":""},{"$f":"IFERROR(INDEX(BL49:$CT49,MATCH(0,INDEX(COUNTIF($CU49:DD49,BL49:$CT49),),)),\"\")","v":""},{"$f":"IFERROR(INDEX(BM49:$CT49,MATCH(0,INDEX(COUNTIF($CU49:DE49,BM49:$CT49),),)),\"\")","v":""},{"$f":"IFERROR(INDEX(BN49:$CT49,MATCH(0,INDEX(COUNTIF($CU49:DF49,BN49:$CT49),),)),\"\")","v":""},{"$f":"IFERROR(INDEX(BO49:$CT49,MATCH(0,INDEX(COUNTIF($CU49:DG49,BO49:$CT49),),)),\"\")","v":""},{"$f":"IFERROR(INDEX(BP49:$CT49,MATCH(0,INDEX(COUNTIF($CU49:DH49,BP49:$CT49),),)),\"\")","v":""},{"$f":"IFERROR(INDEX(BQ49:$CT49,MATCH(0,INDEX(COUNTIF($CU49:DI49,BQ49:$CT49),),)),\"\")","v":""},{"$f":"IFERROR(INDEX(BR49:$CT49,MATCH(0,INDEX(COUNTIF($CU49:DJ49,BR49:$CT49),),)),\"\")","v":""},{"$f":"IFERROR(INDEX(BS49:$CT49,MATCH(0,INDEX(COUNTIF($CU49:DK49,BS49:$CT49),),)),\"\")","v":""},{"$f":"IFERROR(INDEX(BT49:$CT49,MATCH(0,INDEX(COUNTIF($CU49:DL49,BT49:$CT49),),)),\"\")","v":""},{"$f":"IFERROR(INDEX(BU49:$CT49,MATCH(0,INDEX(COUNTIF($CU49:DM49,BU49:$CT49),),)),\"\")","v":""},{"$f":"IFERROR(INDEX(BV49:$CT49,MATCH(0,INDEX(COUNTIF($CU49:DN49,BV49:$CT49),),)),\"\")","v":""},{"$f":"IFERROR(INDEX(BW49:$CT49,MATCH(0,INDEX(COUNTIF($CU49:DO49,BW49:$CT49),),)),\"\")","v":""},{"$f":"IFERROR(INDEX(BX49:$CT49,MATCH(0,INDEX(COUNTIF($CU49:DP49,BX49:$CT49),),)),\"\")","v":""},{"$f":"IFERROR(INDEX(BY49:$CT49,MATCH(0,INDEX(COUNTIF($CU49:DQ49,BY49:$CT49),),)),\"\")","v":""},{"$f":"IFERROR(INDEX(BZ49:$CT49,MATCH(0,INDEX(COUNTIF($CU49:DR49,BZ49:$CT49),),)),\"\")","v":""},{"$f":"IFERROR(INDEX(CA49:$CT49,MATCH(0,INDEX(COUNTIF($CU49:DS49,CA49:$CT49),),)),\"\")","v":""},{"$f":"IFERROR(INDEX(CK49:$CT49,MATCH(0,INDEX(COUNTIF($CU49:DT49,CK49:$CT49),),)),\"\")","v":""},{"$f":"IFERROR(INDEX(CL49:$CT49,MATCH(0,INDEX(COUNTIF($CU49:DU49,CL49:$CT49),),)),\"\")","v":""},{"$f":"IFERROR(INDEX(CM49:$CT49,MATCH(0,INDEX(COUNTIF($CU49:DV49,CM49:$CT49),),)),\"\")","v":""},{"$f":"IFERROR(INDEX(CN49:$CT49,MATCH(0,INDEX(COUNTIF($CU49:DW49,CN49:$CT49),),)),\"\")","v":""},{"$f":"IFERROR(INDEX(CO49:$CT49,MATCH(0,INDEX(COUNTIF($CU49:DX49,CO49:$CT49),),)),\"\")","v":""},{"$f":"IFERROR(INDEX(CP49:$CT49,MATCH(0,INDEX(COUNTIF($CU49:DY49,CP49:$CT49),),)),\"\")","v":""},{"$f":"IFERROR(INDEX(CQ49:$CT49,MATCH(0,INDEX(COUNTIF($CU49:DZ49,CQ49:$CT49),),)),\"\")","v":""},{"$f":"IFERROR(INDEX(CR49:$CT49,MATCH(0,INDEX(COUNTIF($CU49:EA49,CR49:$CT49),),)),\"\")","v":""},{"$f":"IFERROR(INDEX(CS49:$CT49,MATCH(0,INDEX(COUNTIF($CU49:EB49,CS49:$CT49),),)),\"\")","v":""},{"$f":"IFERROR(INDEX(CT49:$CT49,MATCH(0,INDEX(COUNTIF($CU49:EC49,CT49:$CT49),),)),\"\")","v":""},{"$f":"IFERROR(INDEX($CT49:CU49,MATCH(0,INDEX(COUNTIF($CU49:ED49,$CT49:CU49),),)),\"\")","v":0},{"$f":"IFERROR(INDEX($CT49:CV49,MATCH(0,INDEX(COUNTIF($CU49:EE49,$CT49:CV49),),)),\"\")","v":""},{"$f":"IFERROR(INDEX($CT49:CW49,MATCH(0,INDEX(COUNTIF($CU49:EF49,$CT49:CW49),),)),\"\")","v":""},{"$f":"IFERROR(INDEX($CT49:CX49,MATCH(0,INDEX(COUNTIF($CU49:EG49,$CT49:CX49),),)),\"\")","v":""}]
[null,null,{"$f":"D8","v":"BU_SPAIN"},"EUR",null,null,null,null,null,null,null,null,null,null,null,null,null,"Dpto_linea_50",null,null,null,null,null,null,null,null,null,null,null,null,null,null,null,null,null,null,null,null,null,null,null,null,null,null,null,null,null,null,null,null,null,null,null,null,null,null,null,null,null,null,null,null,"","","","","","","","","","","","","","","","","","","","","","","","","","","","","","","","","","","","",null,{"$f":"IFERROR(INDEX(BK50:$CT50,MATCH(0,INDEX(COUNTIF($CU50:CU50,BK50:$CT50),),)),\"\")","v":""},{"$f":"IFERROR(INDEX(BK50:$CT50,MATCH(0,INDEX(COUNTIF($CU50:CV50,BK50:$CT50),),)),\"\")","v":""},{"$f":"IFERROR(INDEX(BK50:$CT50,MATCH(0,INDEX(COUNTIF($CU50:CW50,BK50:$CT50),),)),\"\")","v":""},{"$f":"IFERROR(INDEX(BK50:$CT50,MATCH(0,INDEX(COUNTIF($CU50:CX50,BK50:$CT50),),)),\"\")","v":""},{"$f":"IFERROR(INDEX(BK50:$CT50,MATCH(0,INDEX(COUNTIF($CU50:CY50,BK50:$CT50),),)),\"\")","v":""},{"$f":"IFERROR(INDEX(BK50:$CT50,MATCH(0,INDEX(COUNTIF($CU50:CZ50,BK50:$CT50),),)),\"\")","v":""},{"$f":"IFERROR(INDEX(BK50:$CT50,MATCH(0,INDEX(COUNTIF($CU50:DA50,BK50:$CT50),),)),\"\")","v":""},{"$f":"IFERROR(INDEX(BK50:$CT50,MATCH(0,INDEX(COUNTIF($CU50:DB50,BK50:$CT50),),)),\"\")","v":""},{"$f":"IFERROR(INDEX(BK50:$CT50,MATCH(0,INDEX(COUNTIF($CU50:DC50,BK50:$CT50),),)),\"\")","v":""},{"$f":"IFERROR(INDEX(BL50:$CT50,MATCH(0,INDEX(COUNTIF($CU50:DD50,BL50:$CT50),),)),\"\")","v":""},{"$f":"IFERROR(INDEX(BM50:$CT50,MATCH(0,INDEX(COUNTIF($CU50:DE50,BM50:$CT50),),)),\"\")","v":""},{"$f":"IFERROR(INDEX(BN50:$CT50,MATCH(0,INDEX(COUNTIF($CU50:DF50,BN50:$CT50),),)),\"\")","v":""},{"$f":"IFERROR(INDEX(BO50:$CT50,MATCH(0,INDEX(COUNTIF($CU50:DG50,BO50:$CT50),),)),\"\")","v":""},{"$f":"IFERROR(INDEX(BP50:$CT50,MATCH(0,INDEX(COUNTIF($CU50:DH50,BP50:$CT50),),)),\"\")","v":""},{"$f":"IFERROR(INDEX(BQ50:$CT50,MATCH(0,INDEX(COUNTIF($CU50:DI50,BQ50:$CT50),),)),\"\")","v":""},{"$f":"IFERROR(INDEX(BR50:$CT50,MATCH(0,INDEX(COUNTIF($CU50:DJ50,BR50:$CT50),),)),\"\")","v":""},{"$f":"IFERROR(INDEX(BS50:$CT50,MATCH(0,INDEX(COUNTIF($CU50:DK50,BS50:$CT50),),)),\"\")","v":""},{"$f":"IFERROR(INDEX(BT50:$CT50,MATCH(0,INDEX(COUNTIF($CU50:DL50,BT50:$CT50),),)),\"\")","v":""},{"$f":"IFERROR(INDEX(BU50:$CT50,MATCH(0,INDEX(COUNTIF($CU50:DM50,BU50:$CT50),),)),\"\")","v":""},{"$f":"IFERROR(INDEX(BV50:$CT50,MATCH(0,INDEX(COUNTIF($CU50:DN50,BV50:$CT50),),)),\"\")","v":""},{"$f":"IFERROR(INDEX(BW50:$CT50,MATCH(0,INDEX(COUNTIF($CU50:DO50,BW50:$CT50),),)),\"\")","v":""},{"$f":"IFERROR(INDEX(BX50:$CT50,MATCH(0,INDEX(COUNTIF($CU50:DP50,BX50:$CT50),),)),\"\")","v":""},{"$f":"IFERROR(INDEX(BY50:$CT50,MATCH(0,INDEX(COUNTIF($CU50:DQ50,BY50:$CT50),),)),\"\")","v":""},{"$f":"IFERROR(INDEX(BZ50:$CT50,MATCH(0,INDEX(COUNTIF($CU50:DR50,BZ50:$CT50),),)),\"\")","v":""},{"$f":"IFERROR(INDEX(CA50:$CT50,MATCH(0,INDEX(COUNTIF($CU50:DS50,CA50:$CT50),),)),\"\")","v":""},{"$f":"IFERROR(INDEX(CK50:$CT50,MATCH(0,INDEX(COUNTIF($CU50:DT50,CK50:$CT50),),)),\"\")","v":""},{"$f":"IFERROR(INDEX(CL50:$CT50,MATCH(0,INDEX(COUNTIF($CU50:DU50,CL50:$CT50),),)),\"\")","v":""},{"$f":"IFERROR(INDEX(CM50:$CT50,MATCH(0,INDEX(COUNTIF($CU50:DV50,CM50:$CT50),),)),\"\")","v":""},{"$f":"IFERROR(INDEX(CN50:$CT50,MATCH(0,INDEX(COUNTIF($CU50:DW50,CN50:$CT50),),)),\"\")","v":""},{"$f":"IFERROR(INDEX(CO50:$CT50,MATCH(0,INDEX(COUNTIF($CU50:DX50,CO50:$CT50),),)),\"\")","v":""},{"$f":"IFERROR(INDEX(CP50:$CT50,MATCH(0,INDEX(COUNTIF($CU50:DY50,CP50:$CT50),),)),\"\")","v":""},{"$f":"IFERROR(INDEX(CQ50:$CT50,MATCH(0,INDEX(COUNTIF($CU50:DZ50,CQ50:$CT50),),)),\"\")","v":""},{"$f":"IFERROR(INDEX(CR50:$CT50,MATCH(0,INDEX(COUNTIF($CU50:EA50,CR50:$CT50),),)),\"\")","v":""},{"$f":"IFERROR(INDEX(CS50:$CT50,MATCH(0,INDEX(COUNTIF($CU50:EB50,CS50:$CT50),),)),\"\")","v":""},{"$f":"IFERROR(INDEX(CT50:$CT50,MATCH(0,INDEX(COUNTIF($CU50:EC50,CT50:$CT50),),)),\"\")","v":""},{"$f":"IFERROR(INDEX($CT50:CU50,MATCH(0,INDEX(COUNTIF($CU50:ED50,$CT50:CU50),),)),\"\")","v":0},{"$f":"IFERROR(INDEX($CT50:CV50,MATCH(0,INDEX(COUNTIF($CU50:EE50,$CT50:CV50),),)),\"\")","v":""},{"$f":"IFERROR(INDEX($CT50:CW50,MATCH(0,INDEX(COUNTIF($CU50:EF50,$CT50:CW50),),)),\"\")","v":""},{"$f":"IFERROR(INDEX($CT50:CX50,MATCH(0,INDEX(COUNTIF($CU50:EG50,$CT50:CX50),),)),\"\")","v":""}]
[null,null,{"$f":"CONCATENATE(\"CURR\",C50)","v":"CURRBU_SPAIN"},null,null,null,null,null,null,null,null,null,null,null,null,null,null,"Dpto_linea_51",null,null,null,null,null,null,null,null,null,null,null,null,null,null,null,null,null,null,null,null,null,null,null,null,null,null,null,null,null,null,null,null,null,null,null,null,null,null,null,null,null,null,null,null,"","","","","","","","","","","","","","","","","","","","","","","","","","","","","","","","","","","","",null,{"$f":"IFERROR(INDEX(BK51:$CT51,MATCH(0,INDEX(COUNTIF($CU51:CU51,BK51:$CT51),),)),\"\")","v":""},{"$f":"IFERROR(INDEX(BK51:$CT51,MATCH(0,INDEX(COUNTIF($CU51:CV51,BK51:$CT51),),)),\"\")","v":""},{"$f":"IFERROR(INDEX(BK51:$CT51,MATCH(0,INDEX(COUNTIF($CU51:CW51,BK51:$CT51),),)),\"\")","v":""},{"$f":"IFERROR(INDEX(BK51:$CT51,MATCH(0,INDEX(COUNTIF($CU51:CX51,BK51:$CT51),),)),\"\")","v":""},{"$f":"IFERROR(INDEX(BK51:$CT51,MATCH(0,INDEX(COUNTIF($CU51:CY51,BK51:$CT51),),)),\"\")","v":""},{"$f":"IFERROR(INDEX(BK51:$CT51,MATCH(0,INDEX(COUNTIF($CU51:CZ51,BK51:$CT51),),)),\"\")","v":""},{"$f":"IFERROR(INDEX(BK51:$CT51,MATCH(0,INDEX(COUNTIF($CU51:DA51,BK51:$CT51),),)),\"\")","v":""},{"$f":"IFERROR(INDEX(BK51:$CT51,MATCH(0,INDEX(COUNTIF($CU51:DB51,BK51:$CT51),),)),\"\")","v":""},{"$f":"IFERROR(INDEX(BK51:$CT51,MATCH(0,INDEX(COUNTIF($CU51:DC51,BK51:$CT51),),)),\"\")","v":""},{"$f":"IFERROR(INDEX(BL51:$CT51,MATCH(0,INDEX(COUNTIF($CU51:DD51,BL51:$CT51),),)),\"\")","v":""},{"$f":"IFERROR(INDEX(BM51:$CT51,MATCH(0,INDEX(COUNTIF($CU51:DE51,BM51:$CT51),),)),\"\")","v":""},{"$f":"IFERROR(INDEX(BN51:$CT51,MATCH(0,INDEX(COUNTIF($CU51:DF51,BN51:$CT51),),)),\"\")","v":""},{"$f":"IFERROR(INDEX(BO51:$CT51,MATCH(0,INDEX(COUNTIF($CU51:DG51,BO51:$CT51),),)),\"\")","v":""},{"$f":"IFERROR(INDEX(BP51:$CT51,MATCH(0,INDEX(COUNTIF($CU51:DH51,BP51:$CT51),),)),\"\")","v":""},{"$f":"IFERROR(INDEX(BQ51:$CT51,MATCH(0,INDEX(COUNTIF($CU51:DI51,BQ51:$CT51),),)),\"\")","v":""},{"$f":"IFERROR(INDEX(BR51:$CT51,MATCH(0,INDEX(COUNTIF($CU51:DJ51,BR51:$CT51),),)),\"\")","v":""},{"$f":"IFERROR(INDEX(BS51:$CT51,MATCH(0,INDEX(COUNTIF($CU51:DK51,BS51:$CT51),),)),\"\")","v":""},{"$f":"IFERROR(INDEX(BT51:$CT51,MATCH(0,INDEX(COUNTIF($CU51:DL51,BT51:$CT51),),)),\"\")","v":""},{"$f":"IFERROR(INDEX(BU51:$CT51,MATCH(0,INDEX(COUNTIF($CU51:DM51,BU51:$CT51),),)),\"\")","v":""},{"$f":"IFERROR(INDEX(BV51:$CT51,MATCH(0,INDEX(COUNTIF($CU51:DN51,BV51:$CT51),),)),\"\")","v":""},{"$f":"IFERROR(INDEX(BW51:$CT51,MATCH(0,INDEX(COUNTIF($CU51:DO51,BW51:$CT51),),)),\"\")","v":""},{"$f":"IFERROR(INDEX(BX51:$CT51,MATCH(0,INDEX(COUNTIF($CU51:DP51,BX51:$CT51),),)),\"\")","v":""},{"$f":"IFERROR(INDEX(BY51:$CT51,MATCH(0,INDEX(COUNTIF($CU51:DQ51,BY51:$CT51),),)),\"\")","v":""},{"$f":"IFERROR(INDEX(BZ51:$CT51,MATCH(0,INDEX(COUNTIF($CU51:DR51,BZ51:$CT51),),)),\"\")","v":""},{"$f":"IFERROR(INDEX(CA51:$CT51,MATCH(0,INDEX(COUNTIF($CU51:DS51,CA51:$CT51),),)),\"\")","v":""},{"$f":"IFERROR(INDEX(CK51:$CT51,MATCH(0,INDEX(COUNTIF($CU51:DT51,CK51:$CT51),),)),\"\")","v":""},{"$f":"IFERROR(INDEX(CL51:$CT51,MATCH(0,INDEX(COUNTIF($CU51:DU51,CL51:$CT51),),)),\"\")","v":""},{"$f":"IFERROR(INDEX(CM51:$CT51,MATCH(0,INDEX(COUNTIF($CU51:DV51,CM51:$CT51),),)),\"\")","v":""},{"$f":"IFERROR(INDEX(CN51:$CT51,MATCH(0,INDEX(COUNTIF($CU51:DW51,CN51:$CT51),),)),\"\")","v":""},{"$f":"IFERROR(INDEX(CO51:$CT51,MATCH(0,INDEX(COUNTIF($CU51:DX51,CO51:$CT51),),)),\"\")","v":""},{"$f":"IFERROR(INDEX(CP51:$CT51,MATCH(0,INDEX(COUNTIF($CU51:DY51,CP51:$CT51),),)),\"\")","v":""},{"$f":"IFERROR(INDEX(CQ51:$CT51,MATCH(0,INDEX(COUNTIF($CU51:DZ51,CQ51:$CT51),),)),\"\")","v":""},{"$f":"IFERROR(INDEX(CR51:$CT51,MATCH(0,INDEX(COUNTIF($CU51:EA51,CR51:$CT51),),)),\"\")","v":""},{"$f":"IFERROR(INDEX(CS51:$CT51,MATCH(0,INDEX(COUNTIF($CU51:EB51,CS51:$CT51),),)),\"\")","v":""},{"$f":"IFERROR(INDEX(CT51:$CT51,MATCH(0,INDEX(COUNTIF($CU51:EC51,CT51:$CT51),),)),\"\")","v":""},{"$f":"IFERROR(INDEX($CT51:CU51,MATCH(0,INDEX(COUNTIF($CU51:ED51,$CT51:CU51),),)),\"\")","v":0},{"$f":"IFERROR(INDEX($CT51:CV51,MATCH(0,INDEX(COUNTIF($CU51:EE51,$CT51:CV51),),)),\"\")","v":""},{"$f":"IFERROR(INDEX($CT51:CW51,MATCH(0,INDEX(COUNTIF($CU51:EF51,$CT51:CW51),),)),\"\")","v":""},{"$f":"IFERROR(INDEX($CT51:CX51,MATCH(0,INDEX(COUNTIF($CU51:EG51,$CT51:CX51),),)),\"\")","v":""}]
[null,null,{"$f":"D9","v":"BU_MEXICO"},"MXN",null,null,null,null,null,null,null,null,null,null,null,null,null,"Dpto_linea_52",null,null,null,null,null,null,null,null,null,null,null,null,null,null,null,null,null,null,null,null,null,null,null,null,null,null,null,null,null,null,null,null,null,null,null,null,null,null,null,null,null,null,null,null,"","","","","","","","","","","","","","","","","","","","","","","","","","","","","","","","","","","","",null,{"$f":"IFERROR(INDEX(BK52:$CT52,MATCH(0,INDEX(COUNTIF($CU52:CU52,BK52:$CT52),),)),\"\")","v":""},{"$f":"IFERROR(INDEX(BK52:$CT52,MATCH(0,INDEX(COUNTIF($CU52:CV52,BK52:$CT52),),)),\"\")","v":""},{"$f":"IFERROR(INDEX(BK52:$CT52,MATCH(0,INDEX(COUNTIF($CU52:CW52,BK52:$CT52),),)),\"\")","v":""},{"$f":"IFERROR(INDEX(BK52:$CT52,MATCH(0,INDEX(COUNTIF($CU52:CX52,BK52:$CT52),),)),\"\")","v":""},{"$f":"IFERROR(INDEX(BK52:$CT52,MATCH(0,INDEX(COUNTIF($CU52:CY52,BK52:$CT52),),)),\"\")","v":""},{"$f":"IFERROR(INDEX(BK52:$CT52,MATCH(0,INDEX(COUNTIF($CU52:CZ52,BK52:$CT52),),)),\"\")","v":""},{"$f":"IFERROR(INDEX(BK52:$CT52,MATCH(0,INDEX(COUNTIF($CU52:DA52,BK52:$CT52),),)),\"\")","v":""},{"$f":"IFERROR(INDEX(BK52:$CT52,MATCH(0,INDEX(COUNTIF($CU52:DB52,BK52:$CT52),),)),\"\")","v":""},{"$f":"IFERROR(INDEX(BK52:$CT52,MATCH(0,INDEX(COUNTIF($CU52:DC52,BK52:$CT52),),)),\"\")","v":""},{"$f":"IFERROR(INDEX(BL52:$CT52,MATCH(0,INDEX(COUNTIF($CU52:DD52,BL52:$CT52),),)),\"\")","v":""},{"$f":"IFERROR(INDEX(BM52:$CT52,MATCH(0,INDEX(COUNTIF($CU52:DE52,BM52:$CT52),),)),\"\")","v":""},{"$f":"IFERROR(INDEX(BN52:$CT52,MATCH(0,INDEX(COUNTIF($CU52:DF52,BN52:$CT52),),)),\"\")","v":""},{"$f":"IFERROR(INDEX(BO52:$CT52,MATCH(0,INDEX(COUNTIF($CU52:DG52,BO52:$CT52),),)),\"\")","v":""},{"$f":"IFERROR(INDEX(BP52:$CT52,MATCH(0,INDEX(COUNTIF($CU52:DH52,BP52:$CT52),),)),\"\")","v":""},{"$f":"IFERROR(INDEX(BQ52:$CT52,MATCH(0,INDEX(COUNTIF($CU52:DI52,BQ52:$CT52),),)),\"\")","v":""},{"$f":"IFERROR(INDEX(BR52:$CT52,MATCH(0,INDEX(COUNTIF($CU52:DJ52,BR52:$CT52),),)),\"\")","v":""},{"$f":"IFERROR(INDEX(BS52:$CT52,MATCH(0,INDEX(COUNTIF($CU52:DK52,BS52:$CT52),),)),\"\")","v":""},{"$f":"IFERROR(INDEX(BT52:$CT52,MATCH(0,INDEX(COUNTIF($CU52:DL52,BT52:$CT52),),)),\"\")","v":""},{"$f":"IFERROR(INDEX(BU52:$CT52,MATCH(0,INDEX(COUNTIF($CU52:DM52,BU52:$CT52),),)),\"\")","v":""},{"$f":"IFERROR(INDEX(BV52:$CT52,MATCH(0,INDEX(COUNTIF($CU52:DN52,BV52:$CT52),),)),\"\")","v":""},{"$f":"IFERROR(INDEX(BW52:$CT52,MATCH(0,INDEX(COUNTIF($CU52:DO52,BW52:$CT52),),)),\"\")","v":""},{"$f":"IFERROR(INDEX(BX52:$CT52,MATCH(0,INDEX(COUNTIF($CU52:DP52,BX52:$CT52),),)),\"\")","v":""},{"$f":"IFERROR(INDEX(BY52:$CT52,MATCH(0,INDEX(COUNTIF($CU52:DQ52,BY52:$CT52),),)),\"\")","v":""},{"$f":"IFERROR(INDEX(BZ52:$CT52,MATCH(0,INDEX(COUNTIF($CU52:DR52,BZ52:$CT52),),)),\"\")","v":""},{"$f":"IFERROR(INDEX(CA52:$CT52,MATCH(0,INDEX(COUNTIF($CU52:DS52,CA52:$CT52),),)),\"\")","v":""},{"$f":"IFERROR(INDEX(CK52:$CT52,MATCH(0,INDEX(COUNTIF($CU52:DT52,CK52:$CT52),),)),\"\")","v":""},{"$f":"IFERROR(INDEX(CL52:$CT52,MATCH(0,INDEX(COUNTIF($CU52:DU52,CL52:$CT52),),)),\"\")","v":""},{"$f":"IFERROR(INDEX(CM52:$CT52,MATCH(0,INDEX(COUNTIF($CU52:DV52,CM52:$CT52),),)),\"\")","v":""},{"$f":"IFERROR(INDEX(CN52:$CT52,MATCH(0,INDEX(COUNTIF($CU52:DW52,CN52:$CT52),),)),\"\")","v":""},{"$f":"IFERROR(INDEX(CO52:$CT52,MATCH(0,INDEX(COUNTIF($CU52:DX52,CO52:$CT52),),)),\"\")","v":""},{"$f":"IFERROR(INDEX(CP52:$CT52,MATCH(0,INDEX(COUNTIF($CU52:DY52,CP52:$CT52),),)),\"\")","v":""},{"$f":"IFERROR(INDEX(CQ52:$CT52,MATCH(0,INDEX(COUNTIF($CU52:DZ52,CQ52:$CT52),),)),\"\")","v":""},{"$f":"IFERROR(INDEX(CR52:$CT52,MATCH(0,INDEX(COUNTIF($CU52:EA52,CR52:$CT52),),)),\"\")","v":""},{"$f":"IFERROR(INDEX(CS52:$CT52,MATCH(0,INDEX(COUNTIF($CU52:EB52,CS52:$CT52),),)),\"\")","v":""},{"$f":"IFERROR(INDEX(CT52:$CT52,MATCH(0,INDEX(COUNTIF($CU52:EC52,CT52:$CT52),),)),\"\")","v":""},{"$f":"IFERROR(INDEX($CT52:CU52,MATCH(0,INDEX(COUNTIF($CU52:ED52,$CT52:CU52),),)),\"\")","v":0},{"$f":"IFERROR(INDEX($CT52:CV52,MATCH(0,INDEX(COUNTIF($CU52:EE52,$CT52:CV52),),)),\"\")","v":""},{"$f":"IFERROR(INDEX($CT52:CW52,MATCH(0,INDEX(COUNTIF($CU52:EF52,$CT52:CW52),),)),\"\")","v":""},{"$f":"IFERROR(INDEX($CT52:CX52,MATCH(0,INDEX(COUNTIF($CU52:EG52,$CT52:CX52),),)),\"\")","v":""}]
[null,null,{"$f":"CONCATENATE(\"CURR\",C52)","v":"CURRBU_MEXICO"},"USD",null,null,null,null,null,null,null,null,null,null,null,null,null,"Dpto_linea_53",null,null,null,null,null,null,null,null,null,null,null,null,null,null,null,null,null,null,null,null,null,null,null,null,null,null,null,null,null,null,null,null,null,null,null,null,null,null,null,null,null,null,null,null,"","","","","","","","","","","","","","","","","","","","","","","","","","","","","","","","","","","","",null,{"$f":"IFERROR(INDEX(BK53:$CT53,MATCH(0,INDEX(COUNTIF($CU53:CU53,BK53:$CT53),),)),\"\")","v":""},{"$f":"IFERROR(INDEX(BK53:$CT53,MATCH(0,INDEX(COUNTIF($CU53:CV53,BK53:$CT53),),)),\"\")","v":""},{"$f":"IFERROR(INDEX(BK53:$CT53,MATCH(0,INDEX(COUNTIF($CU53:CW53,BK53:$CT53),),)),\"\")","v":""},{"$f":"IFERROR(INDEX(BK53:$CT53,MATCH(0,INDEX(COUNTIF($CU53:CX53,BK53:$CT53),),)),\"\")","v":""},{"$f":"IFERROR(INDEX(BK53:$CT53,MATCH(0,INDEX(COUNTIF($CU53:CY53,BK53:$CT53),),)),\"\")","v":""},{"$f":"IFERROR(INDEX(BK53:$CT53,MATCH(0,INDEX(COUNTIF($CU53:CZ53,BK53:$CT53),),)),\"\")","v":""},{"$f":"IFERROR(INDEX(BK53:$CT53,MATCH(0,INDEX(COUNTIF($CU53:DA53,BK53:$CT53),),)),\"\")","v":""},{"$f":"IFERROR(INDEX(BK53:$CT53,MATCH(0,INDEX(COUNTIF($CU53:DB53,BK53:$CT53),),)),\"\")","v":""},{"$f":"IFERROR(INDEX(BK53:$CT53,MATCH(0,INDEX(COUNTIF($CU53:DC53,BK53:$CT53),),)),\"\")","v":""},{"$f":"IFERROR(INDEX(BL53:$CT53,MATCH(0,INDEX(COUNTIF($CU53:DD53,BL53:$CT53),),)),\"\")","v":""},{"$f":"IFERROR(INDEX(BM53:$CT53,MATCH(0,INDEX(COUNTIF($CU53:DE53,BM53:$CT53),),)),\"\")","v":""},{"$f":"IFERROR(INDEX(BN53:$CT53,MATCH(0,INDEX(COUNTIF($CU53:DF53,BN53:$CT53),),)),\"\")","v":""},{"$f":"IFERROR(INDEX(BO53:$CT53,MATCH(0,INDEX(COUNTIF($CU53:DG53,BO53:$CT53),),)),\"\")","v":""},{"$f":"IFERROR(INDEX(BP53:$CT53,MATCH(0,INDEX(COUNTIF($CU53:DH53,BP53:$CT53),),)),\"\")","v":""},{"$f":"IFERROR(INDEX(BQ53:$CT53,MATCH(0,INDEX(COUNTIF($CU53:DI53,BQ53:$CT53),),)),\"\")","v":""},{"$f":"IFERROR(INDEX(BR53:$CT53,MATCH(0,INDEX(COUNTIF($CU53:DJ53,BR53:$CT53),),)),\"\")","v":""},{"$f":"IFERROR(INDEX(BS53:$CT53,MATCH(0,INDEX(COUNTIF($CU53:DK53,BS53:$CT53),),)),\"\")","v":""},{"$f":"IFERROR(INDEX(BT53:$CT53,MATCH(0,INDEX(COUNTIF($CU53:DL53,BT53:$CT53),),)),\"\")","v":""},{"$f":"IFERROR(INDEX(BU53:$CT53,MATCH(0,INDEX(COUNTIF($CU53:DM53,BU53:$CT53),),)),\"\")","v":""},{"$f":"IFERROR(INDEX(BV53:$CT53,MATCH(0,INDEX(COUNTIF($CU53:DN53,BV53:$CT53),),)),\"\")","v":""},{"$f":"IFERROR(INDEX(BW53:$CT53,MATCH(0,INDEX(COUNTIF($CU53:DO53,BW53:$CT53),),)),\"\")","v":""},{"$f":"IFERROR(INDEX(BX53:$CT53,MATCH(0,INDEX(COUNTIF($CU53:DP53,BX53:$CT53),),)),\"\")","v":""},{"$f":"IFERROR(INDEX(BY53:$CT53,MATCH(0,INDEX(COUNTIF($CU53:DQ53,BY53:$CT53),),)),\"\")","v":""},{"$f":"IFERROR(INDEX(BZ53:$CT53,MATCH(0,INDEX(COUNTIF($CU53:DR53,BZ53:$CT53),),)),\"\")","v":""},{"$f":"IFERROR(INDEX(CA53:$CT53,MATCH(0,INDEX(COUNTIF($CU53:DS53,CA53:$CT53),),)),\"\")","v":""},{"$f":"IFERROR(INDEX(CK53:$CT53,MATCH(0,INDEX(COUNTIF($CU53:DT53,CK53:$CT53),),)),\"\")","v":""},{"$f":"IFERROR(INDEX(CL53:$CT53,MATCH(0,INDEX(COUNTIF($CU53:DU53,CL53:$CT53),),)),\"\")","v":""},{"$f":"IFERROR(INDEX(CM53:$CT53,MATCH(0,INDEX(COUNTIF($CU53:DV53,CM53:$CT53),),)),\"\")","v":""},{"$f":"IFERROR(INDEX(CN53:$CT53,MATCH(0,INDEX(COUNTIF($CU53:DW53,CN53:$CT53),),)),\"\")","v":""},{"$f":"IFERROR(INDEX(CO53:$CT53,MATCH(0,INDEX(COUNTIF($CU53:DX53,CO53:$CT53),),)),\"\")","v":""},{"$f":"IFERROR(INDEX(CP53:$CT53,MATCH(0,INDEX(COUNTIF($CU53:DY53,CP53:$CT53),),)),\"\")","v":""},{"$f":"IFERROR(INDEX(CQ53:$CT53,MATCH(0,INDEX(COUNTIF($CU53:DZ53,CQ53:$CT53),),)),\"\")","v":""},{"$f":"IFERROR(INDEX(CR53:$CT53,MATCH(0,INDEX(COUNTIF($CU53:EA53,CR53:$CT53),),)),\"\")","v":""},{"$f":"IFERROR(INDEX(CS53:$CT53,MATCH(0,INDEX(COUNTIF($CU53:EB53,CS53:$CT53),),)),\"\")","v":""},{"$f":"IFERROR(INDEX(CT53:$CT53,MATCH(0,INDEX(COUNTIF($CU53:EC53,CT53:$CT53),),)),\"\")","v":""},{"$f":"IFERROR(INDEX($CT53:CU53,MATCH(0,INDEX(COUNTIF($CU53:ED53,$CT53:CU53),),)),\"\")","v":0},{"$f":"IFERROR(INDEX($CT53:CV53,MATCH(0,INDEX(COUNTIF($CU53:EE53,$CT53:CV53),),)),\"\")","v":""},{"$f":"IFERROR(INDEX($CT53:CW53,MATCH(0,INDEX(COUNTIF($CU53:EF53,$CT53:CW53),),)),\"\")","v":""},{"$f":"IFERROR(INDEX($CT53:CX53,MATCH(0,INDEX(COUNTIF($CU53:EG53,$CT53:CX53),),)),\"\")","v":""}]
[null,null,null,"EUR",null,null,null,null,null,null,null,null,null,null,null,null,null,"Dpto_linea_54",null,null,null,null,null,null,null,null,null,null,null,null,null,null,null,null,null,null,null,null,null,null,null,null,null,null,null,null,null,null,null,null,null,null,null,null,null,null,null,null,null,null,null,null,"","","","","","","","","","","","","","","","","","","","","","","","","","","","","","","","","","","","",null,{"$f":"IFERROR(INDEX(BK54:$CT54,MATCH(0,INDEX(COUNTIF($CU54:CU54,BK54:$CT54),),)),\"\")","v":""},{"$f":"IFERROR(INDEX(BK54:$CT54,MATCH(0,INDEX(COUNTIF($CU54:CV54,BK54:$CT54),),)),\"\")","v":""},{"$f":"IFERROR(INDEX(BK54:$CT54,MATCH(0,INDEX(COUNTIF($CU54:CW54,BK54:$CT54),),)),\"\")","v":""},{"$f":"IFERROR(INDEX(BK54:$CT54,MATCH(0,INDEX(COUNTIF($CU54:CX54,BK54:$CT54),),)),\"\")","v":""},{"$f":"IFERROR(INDEX(BK54:$CT54,MATCH(0,INDEX(COUNTIF($CU54:CY54,BK54:$CT54),),)),\"\")","v":""},{"$f":"IFERROR(INDEX(BK54:$CT54,MATCH(0,INDEX(COUNTIF($CU54:CZ54,BK54:$CT54),),)),\"\")","v":""},{"$f":"IFERROR(INDEX(BK54:$CT54,MATCH(0,INDEX(COUNTIF($CU54:DA54,BK54:$CT54),),)),\"\")","v":""},{"$f":"IFERROR(INDEX(BK54:$CT54,MATCH(0,INDEX(COUNTIF($CU54:DB54,BK54:$CT54),),)),\"\")","v":""},{"$f":"IFERROR(INDEX(BK54:$CT54,MATCH(0,INDEX(COUNTIF($CU54:DC54,BK54:$CT54),),)),\"\")","v":""},{"$f":"IFERROR(INDEX(BL54:$CT54,MATCH(0,INDEX(COUNTIF($CU54:DD54,BL54:$CT54),),)),\"\")","v":""},{"$f":"IFERROR(INDEX(BM54:$CT54,MATCH(0,INDEX(COUNTIF($CU54:DE54,BM54:$CT54),),)),\"\")","v":""},{"$f":"IFERROR(INDEX(BN54:$CT54,MATCH(0,INDEX(COUNTIF($CU54:DF54,BN54:$CT54),),)),\"\")","v":""},{"$f":"IFERROR(INDEX(BO54:$CT54,MATCH(0,INDEX(COUNTIF($CU54:DG54,BO54:$CT54),),)),\"\")","v":""},{"$f":"IFERROR(INDEX(BP54:$CT54,MATCH(0,INDEX(COUNTIF($CU54:DH54,BP54:$CT54),),)),\"\")","v":""},{"$f":"IFERROR(INDEX(BQ54:$CT54,MATCH(0,INDEX(COUNTIF($CU54:DI54,BQ54:$CT54),),)),\"\")","v":""},{"$f":"IFERROR(INDEX(BR54:$CT54,MATCH(0,INDEX(COUNTIF($CU54:DJ54,BR54:$CT54),),)),\"\")","v":""},{"$f":"IFERROR(INDEX(BS54:$CT54,MATCH(0,INDEX(COUNTIF($CU54:DK54,BS54:$CT54),),)),\"\")","v":""},{"$f":"IFERROR(INDEX(BT54:$CT54,MATCH(0,INDEX(COUNTIF($CU54:DL54,BT54:$CT54),),)),\"\")","v":""},{"$f":"IFERROR(INDEX(BU54:$CT54,MATCH(0,INDEX(COUNTIF($CU54:DM54,BU54:$CT54),),)),\"\")","v":""},{"$f":"IFERROR(INDEX(BV54:$CT54,MATCH(0,INDEX(COUNTIF($CU54:DN54,BV54:$CT54),),)),\"\")","v":""},{"$f":"IFERROR(INDEX(BW54:$CT54,MATCH(0,INDEX(COUNTIF($CU54:DO54,BW54:$CT54),),)),\"\")","v":""},{"$f":"IFERROR(INDEX(BX54:$CT54,MATCH(0,INDEX(COUNTIF($CU54:DP54,BX54:$CT54),),)),\"\")","v":""},{"$f":"IFERROR(INDEX(BY54:$CT54,MATCH(0,INDEX(COUNTIF($CU54:DQ54,BY54:$CT54),),)),\"\")","v":""},{"$f":"IFERROR(INDEX(BZ54:$CT54,MATCH(0,INDEX(COUNTIF($CU54:DR54,BZ54:$CT54),),)),\"\")","v":""},{"$f":"IFERROR(INDEX(CA54:$CT54,MATCH(0,INDEX(COUNTIF($CU54:DS54,CA54:$CT54),),)),\"\")","v":""},{"$f":"IFERROR(INDEX(CK54:$CT54,MATCH(0,INDEX(COUNTIF($CU54:DT54,CK54:$CT54),),)),\"\")","v":""},{"$f":"IFERROR(INDEX(CL54:$CT54,MATCH(0,INDEX(COUNTIF($CU54:DU54,CL54:$CT54),),)),\"\")","v":""},{"$f":"IFERROR(INDEX(CM54:$CT54,MATCH(0,INDEX(COUNTIF($CU54:DV54,CM54:$CT54),),)),\"\")","v":""},{"$f":"IFERROR(INDEX(CN54:$CT54,MATCH(0,INDEX(COUNTIF($CU54:DW54,CN54:$CT54),),)),\"\")","v":""},{"$f":"IFERROR(INDEX(CO54:$CT54,MATCH(0,INDEX(COUNTIF($CU54:DX54,CO54:$CT54),),)),\"\")","v":""},{"$f":"IFERROR(INDEX(CP54:$CT54,MATCH(0,INDEX(COUNTIF($CU54:DY54,CP54:$CT54),),)),\"\")","v":""},{"$f":"IFERROR(INDEX(CQ54:$CT54,MATCH(0,INDEX(COUNTIF($CU54:DZ54,CQ54:$CT54),),)),\"\")","v":""},{"$f":"IFERROR(INDEX(CR54:$CT54,MATCH(0,INDEX(COUNTIF($CU54:EA54,CR54:$CT54),),)),\"\")","v":""},{"$f":"IFERROR(INDEX(CS54:$CT54,MATCH(0,INDEX(COUNTIF($CU54:EB54,CS54:$CT54),),)),\"\")","v":""},{"$f":"IFERROR(INDEX(CT54:$CT54,MATCH(0,INDEX(COUNTIF($CU54:EC54,CT54:$CT54),),)),\"\")","v":""},{"$f":"IFERROR(INDEX($CT54:CU54,MATCH(0,INDEX(COUNTIF($CU54:ED54,$CT54:CU54),),)),\"\")","v":0},{"$f":"IFERROR(INDEX($CT54:CV54,MATCH(0,INDEX(COUNTIF($CU54:EE54,$CT54:CV54),),)),\"\")","v":""},{"$f":"IFERROR(INDEX($CT54:CW54,MATCH(0,INDEX(COUNTIF($CU54:EF54,$CT54:CW54),),)),\"\")","v":""},{"$f":"IFERROR(INDEX($CT54:CX54,MATCH(0,INDEX(COUNTIF($CU54:EG54,$CT54:CX54),),)),\"\")","v":""}]
[null,null,null,null,null,null,null,null,null,null,null,null,null,null,null,null,null,null,null,null,null,null,null,null,null,null,null,null,null,null,null,null,null,null,null,null,null,null,null,null,null,null,null,null,null,null,null,null,null,null,null,null,null,null,null,null,null,null,null,null,null,null,null,"","","","","","","","","","","","","","","","","","","","","","","","","","","","","","","","","","","",null,{"$f":"IFERROR(INDEX(BK55:$CT55,MATCH(0,INDEX(COUNTIF($CU55:CU55,BK55:$CT55),),)),\"\")","v":0},{"$f":"IFERROR(INDEX(BK55:$CT55,MATCH(0,INDEX(COUNTIF($CU55:CV55,BK55:$CT55),),)),\"\")","v":""},{"$f":"IFERROR(INDEX(BK55:$CT55,MATCH(0,INDEX(COUNTIF($CU55:CW55,BK55:$CT55),),)),\"\")","v":""},{"$f":"IFERROR(INDEX(BK55:$CT55,MATCH(0,INDEX(COUNTIF($CU55:CX55,BK55:$CT55),),)),\"\")","v":""},{"$f":"IFERROR(INDEX(BK55:$CT55,MATCH(0,INDEX(COUNTIF($CU55:CY55,BK55:$CT55),),)),\"\")","v":""},{"$f":"IFERROR(INDEX(BK55:$CT55,MATCH(0,INDEX(COUNTIF($CU55:CZ55,BK55:$CT55),),)),\"\")","v":""},{"$f":"IFERROR(INDEX(BK55:$CT55,MATCH(0,INDEX(COUNTIF($CU55:DA55,BK55:$CT55),),)),\"\")","v":""},{"$f":"IFERROR(INDEX(BK55:$CT55,MATCH(0,INDEX(COUNTIF($CU55:DB55,BK55:$CT55),),)),\"\")","v":""},{"$f":"IFERROR(INDEX(BK55:$CT55,MATCH(0,INDEX(COUNTIF($CU55:DC55,BK55:$CT55),),)),\"\")","v":""},{"$f":"IFERROR(INDEX(BL55:$CT55,MATCH(0,INDEX(COUNTIF($CU55:DD55,BL55:$CT55),),)),\"\")","v":""},{"$f":"IFERROR(INDEX(BM55:$CT55,MATCH(0,INDEX(COUNTIF($CU55:DE55,BM55:$CT55),),)),\"\")","v":""},{"$f":"IFERROR(INDEX(BN55:$CT55,MATCH(0,INDEX(COUNTIF($CU55:DF55,BN55:$CT55),),)),\"\")","v":""},{"$f":"IFERROR(INDEX(BO55:$CT55,MATCH(0,INDEX(COUNTIF($CU55:DG55,BO55:$CT55),),)),\"\")","v":""},{"$f":"IFERROR(INDEX(BP55:$CT55,MATCH(0,INDEX(COUNTIF($CU55:DH55,BP55:$CT55),),)),\"\")","v":""},{"$f":"IFERROR(INDEX(BQ55:$CT55,MATCH(0,INDEX(COUNTIF($CU55:DI55,BQ55:$CT55),),)),\"\")","v":""},{"$f":"IFERROR(INDEX(BR55:$CT55,MATCH(0,INDEX(COUNTIF($CU55:DJ55,BR55:$CT55),),)),\"\")","v":""},{"$f":"IFERROR(INDEX(BS55:$CT55,MATCH(0,INDEX(COUNTIF($CU55:DK55,BS55:$CT55),),)),\"\")","v":""},{"$f":"IFERROR(INDEX(BT55:$CT55,MATCH(0,INDEX(COUNTIF($CU55:DL55,BT55:$CT55),),)),\"\")","v":""},{"$f":"IFERROR(INDEX(BU55:$CT55,MATCH(0,INDEX(COUNTIF($CU55:DM55,BU55:$CT55),),)),\"\")","v":""},{"$f":"IFERROR(INDEX(BV55:$CT55,MATCH(0,INDEX(COUNTIF($CU55:DN55,BV55:$CT55),),)),\"\")","v":""},{"$f":"IFERROR(INDEX(BW55:$CT55,MATCH(0,INDEX(COUNTIF($CU55:DO55,BW55:$CT55),),)),\"\")","v":""},{"$f":"IFERROR(INDEX(BX55:$CT55,MATCH(0,INDEX(COUNTIF($CU55:DP55,BX55:$CT55),),)),\"\")","v":""},{"$f":"IFERROR(INDEX(BY55:$CT55,MATCH(0,INDEX(COUNTIF($CU55:DQ55,BY55:$CT55),),)),\"\")","v":""},{"$f":"IFERROR(INDEX(BZ55:$CT55,MATCH(0,INDEX(COUNTIF($CU55:DR55,BZ55:$CT55),),)),\"\")","v":""},{"$f":"IFERROR(INDEX(CA55:$CT55,MATCH(0,INDEX(COUNTIF($CU55:DS55,CA55:$CT55),),)),\"\")","v":""},{"$f":"IFERROR(INDEX(CK55:$CT55,MATCH(0,INDEX(COUNTIF($CU55:DT55,CK55:$CT55),),)),\"\")","v":""},{"$f":"IFERROR(INDEX(CL55:$CT55,MATCH(0,INDEX(COUNTIF($CU55:DU55,CL55:$CT55),),)),\"\")","v":""},{"$f":"IFERROR(INDEX(CM55:$CT55,MATCH(0,INDEX(COUNTIF($CU55:DV55,CM55:$CT55),),)),\"\")","v":""},{"$f":"IFERROR(INDEX(CN55:$CT55,MATCH(0,INDEX(COUNTIF($CU55:DW55,CN55:$CT55),),)),\"\")","v":""},{"$f":"IFERROR(INDEX(CO55:$CT55,MATCH(0,INDEX(COUNTIF($CU55:DX55,CO55:$CT55),),)),\"\")","v":""},{"$f":"IFERROR(INDEX(CP55:$CT55,MATCH(0,INDEX(COUNTIF($CU55:DY55,CP55:$CT55),),)),\"\")","v":""},{"$f":"IFERROR(INDEX(CQ55:$CT55,MATCH(0,INDEX(COUNTIF($CU55:DZ55,CQ55:$CT55),),)),\"\")","v":""},{"$f":"IFERROR(INDEX(CR55:$CT55,MATCH(0,INDEX(COUNTIF($CU55:EA55,CR55:$CT55),),)),\"\")","v":""},{"$f":"IFERROR(INDEX(CS55:$CT55,MATCH(0,INDEX(COUNTIF($CU55:EB55,CS55:$CT55),),)),\"\")","v":""},{"$f":"IFERROR(INDEX(CT55:$CT55,MATCH(0,INDEX(COUNTIF($CU55:EC55,CT55:$CT55),),)),\"\")","v":""},{"$f":"IFERROR(INDEX($CT55:CU55,MATCH(0,INDEX(COUNTIF($CU55:ED55,$CT55:CU55),),)),\"\")","v":""},{"$f":"IFERROR(INDEX($CT55:CV55,MATCH(0,INDEX(COUNTIF($CU55:EE55,$CT55:CV55),),)),\"\")","v":""},{"$f":"IFERROR(INDEX($CT55:CW55,MATCH(0,INDEX(COUNTIF($CU55:EF55,$CT55:CW55),),)),\"\")","v":""},{"$f":"IFERROR(INDEX($CT55:CX55,MATCH(0,INDEX(COUNTIF($CU55:EG55,$CT55:CX55),),)),\"\")","v":""}]
[null,null,null,null,null,null,null,null,null,null,null,null,null,null,null,null,null,"Dpto_linea_55",null,null,null,null,null,null,null,null,null,null,null,null,null,null,null,null,null,null,null,null,null,null,null,null,null,null,null,null,null,null,null,null,null,null,null,null,null,null,null,null,null,null,null,null,{"$f":"IF(T56=\"\",\"\",T$39)","v":""},"","","","","","","","","","","","","","","","","","","","","","","","","","","","","","","","","","","",null,{"$f":"IFERROR(INDEX(BK56:$CT56,MATCH(0,INDEX(COUNTIF($CU56:CU56,BK56:$CT56),),)),\"\")","v":""},{"$f":"IFERROR(INDEX(BK56:$CT56,MATCH(0,INDEX(COUNTIF($CU56:CV56,BK56:$CT56),),)),\"\")","v":""},{"$f":"IFERROR(INDEX(BK56:$CT56,MATCH(0,INDEX(COUNTIF($CU56:CW56,BK56:$CT56),),)),\"\")","v":""},{"$f":"IFERROR(INDEX(BK56:$CT56,MATCH(0,INDEX(COUNTIF($CU56:CX56,BK56:$CT56),),)),\"\")","v":""},{"$f":"IFERROR(INDEX(BK56:$CT56,MATCH(0,INDEX(COUNTIF($CU56:CY56,BK56:$CT56),),)),\"\")","v":""},{"$f":"IFERROR(INDEX(BK56:$CT56,MATCH(0,INDEX(COUNTIF($CU56:CZ56,BK56:$CT56),),)),\"\")","v":""},{"$f":"IFERROR(INDEX(BK56:$CT56,MATCH(0,INDEX(COUNTIF($CU56:DA56,BK56:$CT56),),)),\"\")","v":""},{"$f":"IFERROR(INDEX(BK56:$CT56,MATCH(0,INDEX(COUNTIF($CU56:DB56,BK56:$CT56),),)),\"\")","v":""},{"$f":"IFERROR(INDEX(BK56:$CT56,MATCH(0,INDEX(COUNTIF($CU56:DC56,BK56:$CT56),),)),\"\")","v":""},{"$f":"IFERROR(INDEX(BL56:$CT56,MATCH(0,INDEX(COUNTIF($CU56:DD56,BL56:$CT56),),)),\"\")","v":""},{"$f":"IFERROR(INDEX(BM56:$CT56,MATCH(0,INDEX(COUNTIF($CU56:DE56,BM56:$CT56),),)),\"\")","v":""},{"$f":"IFERROR(INDEX(BN56:$CT56,MATCH(0,INDEX(COUNTIF($CU56:DF56,BN56:$CT56),),)),\"\")","v":""},{"$f":"IFERROR(INDEX(BO56:$CT56,MATCH(0,INDEX(COUNTIF($CU56:DG56,BO56:$CT56),),)),\"\")","v":""},{"$f":"IFERROR(INDEX(BP56:$CT56,MATCH(0,INDEX(COUNTIF($CU56:DH56,BP56:$CT56),),)),\"\")","v":""},{"$f":"IFERROR(INDEX(BQ56:$CT56,MATCH(0,INDEX(COUNTIF($CU56:DI56,BQ56:$CT56),),)),\"\")","v":""},{"$f":"IFERROR(INDEX(BR56:$CT56,MATCH(0,INDEX(COUNTIF($CU56:DJ56,BR56:$CT56),),)),\"\")","v":""},{"$f":"IFERROR(INDEX(BS56:$CT56,MATCH(0,INDEX(COUNTIF($CU56:DK56,BS56:$CT56),),)),\"\")","v":""},{"$f":"IFERROR(INDEX(BT56:$CT56,MATCH(0,INDEX(COUNTIF($CU56:DL56,BT56:$CT56),),)),\"\")","v":""},{"$f":"IFERROR(INDEX(BU56:$CT56,MATCH(0,INDEX(COUNTIF($CU56:DM56,BU56:$CT56),),)),\"\")","v":""},{"$f":"IFERROR(INDEX(BV56:$CT56,MATCH(0,INDEX(COUNTIF($CU56:DN56,BV56:$CT56),),)),\"\")","v":""},{"$f":"IFERROR(INDEX(BW56:$CT56,MATCH(0,INDEX(COUNTIF($CU56:DO56,BW56:$CT56),),)),\"\")","v":""},{"$f":"IFERROR(INDEX(BX56:$CT56,MATCH(0,INDEX(COUNTIF($CU56:DP56,BX56:$CT56),),)),\"\")","v":""},{"$f":"IFERROR(INDEX(BY56:$CT56,MATCH(0,INDEX(COUNTIF($CU56:DQ56,BY56:$CT56),),)),\"\")","v":""},{"$f":"IFERROR(INDEX(BZ56:$CT56,MATCH(0,INDEX(COUNTIF($CU56:DR56,BZ56:$CT56),),)),\"\")","v":""},{"$f":"IFERROR(INDEX(CA56:$CT56,MATCH(0,INDEX(COUNTIF($CU56:DS56,CA56:$CT56),),)),\"\")","v":""},{"$f":"IFERROR(INDEX(CK56:$CT56,MATCH(0,INDEX(COUNTIF($CU56:DT56,CK56:$CT56),),)),\"\")","v":""},{"$f":"IFERROR(INDEX(CL56:$CT56,MATCH(0,INDEX(COUNTIF($CU56:DU56,CL56:$CT56),),)),\"\")","v":""},{"$f":"IFERROR(INDEX(CM56:$CT56,MATCH(0,INDEX(COUNTIF($CU56:DV56,CM56:$CT56),),)),\"\")","v":""},{"$f":"IFERROR(INDEX(CN56:$CT56,MATCH(0,INDEX(COUNTIF($CU56:DW56,CN56:$CT56),),)),\"\")","v":""},{"$f":"IFERROR(INDEX(CO56:$CT56,MATCH(0,INDEX(COUNTIF($CU56:DX56,CO56:$CT56),),)),\"\")","v":""},{"$f":"IFERROR(INDEX(CP56:$CT56,MATCH(0,INDEX(COUNTIF($CU56:DY56,CP56:$CT56),),)),\"\")","v":""},{"$f":"IFERROR(INDEX(CQ56:$CT56,MATCH(0,INDEX(COUNTIF($CU56:DZ56,CQ56:$CT56),),)),\"\")","v":""},{"$f":"IFERROR(INDEX(CR56:$CT56,MATCH(0,INDEX(COUNTIF($CU56:EA56,CR56:$CT56),),)),\"\")","v":""},{"$f":"IFERROR(INDEX(CS56:$CT56,MATCH(0,INDEX(COUNTIF($CU56:EB56,CS56:$CT56),),)),\"\")","v":""},{"$f":"IFERROR(INDEX(CT56:$CT56,MATCH(0,INDEX(COUNTIF($CU56:EC56,CT56:$CT56),),)),\"\")","v":""},{"$f":"IFERROR(INDEX($CT56:CU56,MATCH(0,INDEX(COUNTIF($CU56:ED56,$CT56:CU56),),)),\"\")","v":0},{"$f":"IFERROR(INDEX($CT56:CV56,MATCH(0,INDEX(COUNTIF($CU56:EE56,$CT56:CV56),),)),\"\")","v":""},{"$f":"IFERROR(INDEX($CT56:CW56,MATCH(0,INDEX(COUNTIF($CU56:EF56,$CT56:CW56),),)),\"\")","v":""},{"$f":"IFERROR(INDEX($CT56:CX56,MATCH(0,INDEX(COUNTIF($CU56:EG56,$CT56:CX56),),)),\"\")","v":""}]
[null,null,{"$f":"D10","v":"BU_MERCOSUR"},"USD",null,null,null,null,null,null,null,null,null,null,null,null,null,"Dpto_linea_56",null,null,null,null,null,null,null,null,null,null,null,null,null,null,null,null,null,null,null,null,null,null,null,null,null,null,null,null,null,null,null,null,null,null,null,null,null,null,null,null,null,null,null,null,{"$f":"IF(T57=\"\",\"\",T$39)","v":""},"","","","","","","","","","","","","","","","","","","","","","","","","","","","","","","","","","","",null,{"$f":"IFERROR(INDEX(BK57:$CT57,MATCH(0,INDEX(COUNTIF($CU57:CU57,BK57:$CT57),),)),\"\")","v":""},{"$f":"IFERROR(INDEX(BK57:$CT57,MATCH(0,INDEX(COUNTIF($CU57:CV57,BK57:$CT57),),)),\"\")","v":""},{"$f":"IFERROR(INDEX(BK57:$CT57,MATCH(0,INDEX(COUNTIF($CU57:CW57,BK57:$CT57),),)),\"\")","v":""},{"$f":"IFERROR(INDEX(BK57:$CT57,MATCH(0,INDEX(COUNTIF($CU57:CX57,BK57:$CT57),),)),\"\")","v":""},{"$f":"IFERROR(INDEX(BK57:$CT57,MATCH(0,INDEX(COUNTIF($CU57:CY57,BK57:$CT57),),)),\"\")","v":""},{"$f":"IFERROR(INDEX(BK57:$CT57,MATCH(0,INDEX(COUNTIF($CU57:CZ57,BK57:$CT57),),)),\"\")","v":""},{"$f":"IFERROR(INDEX(BK57:$CT57,MATCH(0,INDEX(COUNTIF($CU57:DA57,BK57:$CT57),),)),\"\")","v":""},{"$f":"IFERROR(INDEX(BK57:$CT57,MATCH(0,INDEX(COUNTIF($CU57:DB57,BK57:$CT57),),)),\"\")","v":""},{"$f":"IFERROR(INDEX(BK57:$CT57,MATCH(0,INDEX(COUNTIF($CU57:DC57,BK57:$CT57),),)),\"\")","v":""},{"$f":"IFERROR(INDEX(BL57:$CT57,MATCH(0,INDEX(COUNTIF($CU57:DD57,BL57:$CT57),),)),\"\")","v":""},{"$f":"IFERROR(INDEX(BM57:$CT57,MATCH(0,INDEX(COUNTIF($CU57:DE57,BM57:$CT57),),)),\"\")","v":""},{"$f":"IFERROR(INDEX(BN57:$CT57,MATCH(0,INDEX(COUNTIF($CU57:DF57,BN57:$CT57),),)),\"\")","v":""},{"$f":"IFERROR(INDEX(BO57:$CT57,MATCH(0,INDEX(COUNTIF($CU57:DG57,BO57:$CT57),),)),\"\")","v":""},{"$f":"IFERROR(INDEX(BP57:$CT57,MATCH(0,INDEX(COUNTIF($CU57:DH57,BP57:$CT57),),)),\"\")","v":""},{"$f":"IFERROR(INDEX(BQ57:$CT57,MATCH(0,INDEX(COUNTIF($CU57:DI57,BQ57:$CT57),),)),\"\")","v":""},{"$f":"IFERROR(INDEX(BR57:$CT57,MATCH(0,INDEX(COUNTIF($CU57:DJ57,BR57:$CT57),),)),\"\")","v":""},{"$f":"IFERROR(INDEX(BS57:$CT57,MATCH(0,INDEX(COUNTIF($CU57:DK57,BS57:$CT57),),)),\"\")","v":""},{"$f":"IFERROR(INDEX(BT57:$CT57,MATCH(0,INDEX(COUNTIF($CU57:DL57,BT57:$CT57),),)),\"\")","v":""},{"$f":"IFERROR(INDEX(BU57:$CT57,MATCH(0,INDEX(COUNTIF($CU57:DM57,BU57:$CT57),),)),\"\")","v":""},{"$f":"IFERROR(INDEX(BV57:$CT57,MATCH(0,INDEX(COUNTIF($CU57:DN57,BV57:$CT57),),)),\"\")","v":""},{"$f":"IFERROR(INDEX(BW57:$CT57,MATCH(0,INDEX(COUNTIF($CU57:DO57,BW57:$CT57),),)),\"\")","v":""},{"$f":"IFERROR(INDEX(BX57:$CT57,MATCH(0,INDEX(COUNTIF($CU57:DP57,BX57:$CT57),),)),\"\")","v":""},{"$f":"IFERROR(INDEX(BY57:$CT57,MATCH(0,INDEX(COUNTIF($CU57:DQ57,BY57:$CT57),),)),\"\")","v":""},{"$f":"IFERROR(INDEX(BZ57:$CT57,MATCH(0,INDEX(COUNTIF($CU57:DR57,BZ57:$CT57),),)),\"\")","v":""},{"$f":"IFERROR(INDEX(CA57:$CT57,MATCH(0,INDEX(COUNTIF($CU57:DS57,CA57:$CT57),),)),\"\")","v":""},{"$f":"IFERROR(INDEX(CK57:$CT57,MATCH(0,INDEX(COUNTIF($CU57:DT57,CK57:$CT57),),)),\"\")","v":""},{"$f":"IFERROR(INDEX(CL57:$CT57,MATCH(0,INDEX(COUNTIF($CU57:DU57,CL57:$CT57),),)),\"\")","v":""},{"$f":"IFERROR(INDEX(CM57:$CT57,MATCH(0,INDEX(COUNTIF($CU57:DV57,CM57:$CT57),),)),\"\")","v":""},{"$f":"IFERROR(INDEX(CN57:$CT57,MATCH(0,INDEX(COUNTIF($CU57:DW57,CN57:$CT57),),)),\"\")","v":""},{"$f":"IFERROR(INDEX(CO57:$CT57,MATCH(0,INDEX(COUNTIF($CU57:DX57,CO57:$CT57),),)),\"\")","v":""},{"$f":"IFERROR(INDEX(CP57:$CT57,MATCH(0,INDEX(COUNTIF($CU57:DY57,CP57:$CT57),),)),\"\")","v":""},{"$f":"IFERROR(INDEX(CQ57:$CT57,MATCH(0,INDEX(COUNTIF($CU57:DZ57,CQ57:$CT57),),)),\"\")","v":""},{"$f":"IFERROR(INDEX(CR57:$CT57,MATCH(0,INDEX(COUNTIF($CU57:EA57,CR57:$CT57),),)),\"\")","v":""},{"$f":"IFERROR(INDEX(CS57:$CT57,MATCH(0,INDEX(COUNTIF($CU57:EB57,CS57:$CT57),),)),\"\")","v":""},{"$f":"IFERROR(INDEX(CT57:$CT57,MATCH(0,INDEX(COUNTIF($CU57:EC57,CT57:$CT57),),)),\"\")","v":""},{"$f":"IFERROR(INDEX($CT57:CU57,MATCH(0,INDEX(COUNTIF($CU57:ED57,$CT57:CU57),),)),\"\")","v":0},{"$f":"IFERROR(INDEX($CT57:CV57,MATCH(0,INDEX(COUNTIF($CU57:EE57,$CT57:CV57),),)),\"\")","v":""},{"$f":"IFERROR(INDEX($CT57:CW57,MATCH(0,INDEX(COUNTIF($CU57:EF57,$CT57:CW57),),)),\"\")","v":""},{"$f":"IFERROR(INDEX($CT57:CX57,MATCH(0,INDEX(COUNTIF($CU57:EG57,$CT57:CX57),),)),\"\")","v":""}]
[null,null,{"$f":"CONCATENATE(\"CURR\",C57)","v":"CURRBU_MERCOSUR"},"EUR",null,null,null,null,null,null,null,null,null,null,null,null,null,"Dpto_linea_57",null,null,null,null,null,null,null,null,null,null,null,null,null,null,null,null,null,null,null,null,null,null,null,null,null,null,null,null,null,null,null,null,null,null,null,null,null,null,null,null,null,null,null,null,{"$f":"IF(T58=\"\",\"\",T$39)","v":""},"","","","","","","","","","","","","","","","","","","","","","","","","","","","","","","","","","","",null,{"$f":"IFERROR(INDEX(BK58:$CT58,MATCH(0,INDEX(COUNTIF($CU58:CU58,BK58:$CT58),),)),\"\")","v":""},{"$f":"IFERROR(INDEX(BK58:$CT58,MATCH(0,INDEX(COUNTIF($CU58:CV58,BK58:$CT58),),)),\"\")","v":""},{"$f":"IFERROR(INDEX(BK58:$CT58,MATCH(0,INDEX(COUNTIF($CU58:CW58,BK58:$CT58),),)),\"\")","v":""},{"$f":"IFERROR(INDEX(BK58:$CT58,MATCH(0,INDEX(COUNTIF($CU58:CX58,BK58:$CT58),),)),\"\")","v":""},{"$f":"IFERROR(INDEX(BK58:$CT58,MATCH(0,INDEX(COUNTIF($CU58:CY58,BK58:$CT58),),)),\"\")","v":""},{"$f":"IFERROR(INDEX(BK58:$CT58,MATCH(0,INDEX(COUNTIF($CU58:CZ58,BK58:$CT58),),)),\"\")","v":""},{"$f":"IFERROR(INDEX(BK58:$CT58,MATCH(0,INDEX(COUNTIF($CU58:DA58,BK58:$CT58),),)),\"\")","v":""},{"$f":"IFERROR(INDEX(BK58:$CT58,MATCH(0,INDEX(COUNTIF($CU58:DB58,BK58:$CT58),),)),\"\")","v":""},{"$f":"IFERROR(INDEX(BK58:$CT58,MATCH(0,INDEX(COUNTIF($CU58:DC58,BK58:$CT58),),)),\"\")","v":""},{"$f":"IFERROR(INDEX(BL58:$CT58,MATCH(0,INDEX(COUNTIF($CU58:DD58,BL58:$CT58),),)),\"\")","v":""},{"$f":"IFERROR(INDEX(BM58:$CT58,MATCH(0,INDEX(COUNTIF($CU58:DE58,BM58:$CT58),),)),\"\")","v":""},{"$f":"IFERROR(INDEX(BN58:$CT58,MATCH(0,INDEX(COUNTIF($CU58:DF58,BN58:$CT58),),)),\"\")","v":""},{"$f":"IFERROR(INDEX(BO58:$CT58,MATCH(0,INDEX(COUNTIF($CU58:DG58,BO58:$CT58),),)),\"\")","v":""},{"$f":"IFERROR(INDEX(BP58:$CT58,MATCH(0,INDEX(COUNTIF($CU58:DH58,BP58:$CT58),),)),\"\")","v":""},{"$f":"IFERROR(INDEX(BQ58:$CT58,MATCH(0,INDEX(COUNTIF($CU58:DI58,BQ58:$CT58),),)),\"\")","v":""},{"$f":"IFERROR(INDEX(BR58:$CT58,MATCH(0,INDEX(COUNTIF($CU58:DJ58,BR58:$CT58),),)),\"\")","v":""},{"$f":"IFERROR(INDEX(BS58:$CT58,MATCH(0,INDEX(COUNTIF($CU58:DK58,BS58:$CT58),),)),\"\")","v":""},{"$f":"IFERROR(INDEX(BT58:$CT58,MATCH(0,INDEX(COUNTIF($CU58:DL58,BT58:$CT58),),)),\"\")","v":""},{"$f":"IFERROR(INDEX(BU58:$CT58,MATCH(0,INDEX(COUNTIF($CU58:DM58,BU58:$CT58),),)),\"\")","v":""},{"$f":"IFERROR(INDEX(BV58:$CT58,MATCH(0,INDEX(COUNTIF($CU58:DN58,BV58:$CT58),),)),\"\")","v":""},{"$f":"IFERROR(INDEX(BW58:$CT58,MATCH(0,INDEX(COUNTIF($CU58:DO58,BW58:$CT58),),)),\"\")","v":""},{"$f":"IFERROR(INDEX(BX58:$CT58,MATCH(0,INDEX(COUNTIF($CU58:DP58,BX58:$CT58),),)),\"\")","v":""},{"$f":"IFERROR(INDEX(BY58:$CT58,MATCH(0,INDEX(COUNTIF($CU58:DQ58,BY58:$CT58),),)),\"\")","v":""},{"$f":"IFERROR(INDEX(BZ58:$CT58,MATCH(0,INDEX(COUNTIF($CU58:DR58,BZ58:$CT58),),)),\"\")","v":""},{"$f":"IFERROR(INDEX(CA58:$CT58,MATCH(0,INDEX(COUNTIF($CU58:DS58,CA58:$CT58),),)),\"\")","v":""},{"$f":"IFERROR(INDEX(CK58:$CT58,MATCH(0,INDEX(COUNTIF($CU58:DT58,CK58:$CT58),),)),\"\")","v":""},{"$f":"IFERROR(INDEX(CL58:$CT58,MATCH(0,INDEX(COUNTIF($CU58:DU58,CL58:$CT58),),)),\"\")","v":""},{"$f":"IFERROR(INDEX(CM58:$CT58,MATCH(0,INDEX(COUNTIF($CU58:DV58,CM58:$CT58),),)),\"\")","v":""},{"$f":"IFERROR(INDEX(CN58:$CT58,MATCH(0,INDEX(COUNTIF($CU58:DW58,CN58:$CT58),),)),\"\")","v":""},{"$f":"IFERROR(INDEX(CO58:$CT58,MATCH(0,INDEX(COUNTIF($CU58:DX58,CO58:$CT58),),)),\"\")","v":""},{"$f":"IFERROR(INDEX(CP58:$CT58,MATCH(0,INDEX(COUNTIF($CU58:DY58,CP58:$CT58),),)),\"\")","v":""},{"$f":"IFERROR(INDEX(CQ58:$CT58,MATCH(0,INDEX(COUNTIF($CU58:DZ58,CQ58:$CT58),),)),\"\")","v":""},{"$f":"IFERROR(INDEX(CR58:$CT58,MATCH(0,INDEX(COUNTIF($CU58:EA58,CR58:$CT58),),)),\"\")","v":""},{"$f":"IFERROR(INDEX(CS58:$CT58,MATCH(0,INDEX(COUNTIF($CU58:EB58,CS58:$CT58),),)),\"\")","v":""},{"$f":"IFERROR(INDEX(CT58:$CT58,MATCH(0,INDEX(COUNTIF($CU58:EC58,CT58:$CT58),),)),\"\")","v":""},{"$f":"IFERROR(INDEX($CT58:CU58,MATCH(0,INDEX(COUNTIF($CU58:ED58,$CT58:CU58),),)),\"\")","v":0},{"$f":"IFERROR(INDEX($CT58:CV58,MATCH(0,INDEX(COUNTIF($CU58:EE58,$CT58:CV58),),)),\"\")","v":""},{"$f":"IFERROR(INDEX($CT58:CW58,MATCH(0,INDEX(COUNTIF($CU58:EF58,$CT58:CW58),),)),\"\")","v":""},{"$f":"IFERROR(INDEX($CT58:CX58,MATCH(0,INDEX(COUNTIF($CU58:EG58,$CT58:CX58),),)),\"\")","v":""}]
[null,null,null,"ARS",null,null,null,null,null,null,null,null,null,null,null,null,null,"Dpto_linea_58",null,null,null,null,null,null,null,null,null,null,null,null,null,null,null,null,null,null,null,null,null,null,null,null,null,null,null,null,null,null,null,null,null,null,null,null,null,null,null,null,null,null,null,null,{"$f":"IF(T59=\"\",\"\",T$39)","v":""},"","","","","","","","","","","","","","","","","","","","","","","","","","","","","","","","","","","",null,{"$f":"IFERROR(INDEX(BK59:$CT59,MATCH(0,INDEX(COUNTIF($CU59:CU59,BK59:$CT59),),)),\"\")","v":""},{"$f":"IFERROR(INDEX(BK59:$CT59,MATCH(0,INDEX(COUNTIF($CU59:CV59,BK59:$CT59),),)),\"\")","v":""},{"$f":"IFERROR(INDEX(BK59:$CT59,MATCH(0,INDEX(COUNTIF($CU59:CW59,BK59:$CT59),),)),\"\")","v":""},{"$f":"IFERROR(INDEX(BK59:$CT59,MATCH(0,INDEX(COUNTIF($CU59:CX59,BK59:$CT59),),)),\"\")","v":""},{"$f":"IFERROR(INDEX(BK59:$CT59,MATCH(0,INDEX(COUNTIF($CU59:CY59,BK59:$CT59),),)),\"\")","v":""},{"$f":"IFERROR(INDEX(BK59:$CT59,MATCH(0,INDEX(COUNTIF($CU59:CZ59,BK59:$CT59),),)),\"\")","v":""},{"$f":"IFERROR(INDEX(BK59:$CT59,MATCH(0,INDEX(COUNTIF($CU59:DA59,BK59:$CT59),),)),\"\")","v":""},{"$f":"IFERROR(INDEX(BK59:$CT59,MATCH(0,INDEX(COUNTIF($CU59:DB59,BK59:$CT59),),)),\"\")","v":""},{"$f":"IFERROR(INDEX(BK59:$CT59,MATCH(0,INDEX(COUNTIF($CU59:DC59,BK59:$CT59),),)),\"\")","v":""},{"$f":"IFERROR(INDEX(BL59:$CT59,MATCH(0,INDEX(COUNTIF($CU59:DD59,BL59:$CT59),),)),\"\")","v":""},{"$f":"IFERROR(INDEX(BM59:$CT59,MATCH(0,INDEX(COUNTIF($CU59:DE59,BM59:$CT59),),)),\"\")","v":""},{"$f":"IFERROR(INDEX(BN59:$CT59,MATCH(0,INDEX(COUNTIF($CU59:DF59,BN59:$CT59),),)),\"\")","v":""},{"$f":"IFERROR(INDEX(BO59:$CT59,MATCH(0,INDEX(COUNTIF($CU59:DG59,BO59:$CT59),),)),\"\")","v":""},{"$f":"IFERROR(INDEX(BP59:$CT59,MATCH(0,INDEX(COUNTIF($CU59:DH59,BP59:$CT59),),)),\"\")","v":""},{"$f":"IFERROR(INDEX(BQ59:$CT59,MATCH(0,INDEX(COUNTIF($CU59:DI59,BQ59:$CT59),),)),\"\")","v":""},{"$f":"IFERROR(INDEX(BR59:$CT59,MATCH(0,INDEX(COUNTIF($CU59:DJ59,BR59:$CT59),),)),\"\")","v":""},{"$f":"IFERROR(INDEX(BS59:$CT59,MATCH(0,INDEX(COUNTIF($CU59:DK59,BS59:$CT59),),)),\"\")","v":""},{"$f":"IFERROR(INDEX(BT59:$CT59,MATCH(0,INDEX(COUNTIF($CU59:DL59,BT59:$CT59),),)),\"\")","v":""},{"$f":"IFERROR(INDEX(BU59:$CT59,MATCH(0,INDEX(COUNTIF($CU59:DM59,BU59:$CT59),),)),\"\")","v":""},{"$f":"IFERROR(INDEX(BV59:$CT59,MATCH(0,INDEX(COUNTIF($CU59:DN59,BV59:$CT59),),)),\"\")","v":""},{"$f":"IFERROR(INDEX(BW59:$CT59,MATCH(0,INDEX(COUNTIF($CU59:DO59,BW59:$CT59),),)),\"\")","v":""},{"$f":"IFERROR(INDEX(BX59:$CT59,MATCH(0,INDEX(COUNTIF($CU59:DP59,BX59:$CT59),),)),\"\")","v":""},{"$f":"IFERROR(INDEX(BY59:$CT59,MATCH(0,INDEX(COUNTIF($CU59:DQ59,BY59:$CT59),),)),\"\")","v":""},{"$f":"IFERROR(INDEX(BZ59:$CT59,MATCH(0,INDEX(COUNTIF($CU59:DR59,BZ59:$CT59),),)),\"\")","v":""},{"$f":"IFERROR(INDEX(CA59:$CT59,MATCH(0,INDEX(COUNTIF($CU59:DS59,CA59:$CT59),),)),\"\")","v":""},{"$f":"IFERROR(INDEX(CK59:$CT59,MATCH(0,INDEX(COUNTIF($CU59:DT59,CK59:$CT59),),)),\"\")","v":""},{"$f":"IFERROR(INDEX(CL59:$CT59,MATCH(0,INDEX(COUNTIF($CU59:DU59,CL59:$CT59),),)),\"\")","v":""},{"$f":"IFERROR(INDEX(CM59:$CT59,MATCH(0,INDEX(COUNTIF($CU59:DV59,CM59:$CT59),),)),\"\")","v":""},{"$f":"IFERROR(INDEX(CN59:$CT59,MATCH(0,INDEX(COUNTIF($CU59:DW59,CN59:$CT59),),)),\"\")","v":""},{"$f":"IFERROR(INDEX(CO59:$CT59,MATCH(0,INDEX(COUNTIF($CU59:DX59,CO59:$CT59),),)),\"\")","v":""},{"$f":"IFERROR(INDEX(CP59:$CT59,MATCH(0,INDEX(COUNTIF($CU59:DY59,CP59:$CT59),),)),\"\")","v":""},{"$f":"IFERROR(INDEX(CQ59:$CT59,MATCH(0,INDEX(COUNTIF($CU59:DZ59,CQ59:$CT59),),)),\"\")","v":""},{"$f":"IFERROR(INDEX(CR59:$CT59,MATCH(0,INDEX(COUNTIF($CU59:EA59,CR59:$CT59),),)),\"\")","v":""},{"$f":"IFERROR(INDEX(CS59:$CT59,MATCH(0,INDEX(COUNTIF($CU59:EB59,CS59:$CT59),),)),\"\")","v":""},{"$f":"IFERROR(INDEX(CT59:$CT59,MATCH(0,INDEX(COUNTIF($CU59:EC59,CT59:$CT59),),)),\"\")","v":""},{"$f":"IFERROR(INDEX($CT59:CU59,MATCH(0,INDEX(COUNTIF($CU59:ED59,$CT59:CU59),),)),\"\")","v":0},{"$f":"IFERROR(INDEX($CT59:CV59,MATCH(0,INDEX(COUNTIF($CU59:EE59,$CT59:CV59),),)),\"\")","v":""},{"$f":"IFERROR(INDEX($CT59:CW59,MATCH(0,INDEX(COUNTIF($CU59:EF59,$CT59:CW59),),)),\"\")","v":""},{"$f":"IFERROR(INDEX($CT59:CX59,MATCH(0,INDEX(COUNTIF($CU59:EG59,$CT59:CX59),),)),\"\")","v":""}]
[null,null,null,"UYU"]
[null,null,null,"CLP"]
[null,null,null,null,null,null,null,null,null,null,null,null,null,null,"Desplegable 9700"]
[null,null,null,null,null,"United Kingdom of the Grat Britain",null,null,null,null,null,null,null,null,"Tax/Stamp Duty/Other Licenses/Mercantile Register/SIAE"]
[null,null,null,null,null,null,null,null,null,null,null,null,null,null,"Mail, Stamps, Burofax and Courier"]
[null,null,null,null,null,null,null,null,null,null,null,null,null,null,"Newspaper, Books, Magazines, Association fees "]
[null,null,null,null,null,null,null,null,null,null,null,null,null,null,"Penalties/Fines/Other taxes"]
[null,null,null,null,null,null,null,null,null,null,null,null,null,null,"Small Repairs & Material Central Services"]
[null,null,null,null,null,null,null,null,null,null,null,null,null,null,"Other needs of small values Central Services"]
[null,null,null,null,null,null,null,null,null,null,null,null,null,null,"Deductions Employee Penalty (Only 9700)"]
[]
[null,null,null,null,null,"Central Europe"]
[]
[null,null,null,null,null,"BA Name","Country","Type","Company","BA number"]
[null,null,null,null,null,"Austria"]
[]
[]
[]
[]
[]
[]
[null,null,null,null,null,"Switzerland"]
[]
[]
[]
[null,null,null,null,null,"Germany"]
[]
[]
[]
[]
[]
[]
[]
[]
[]
[]
[]
[]
[]
[]
[]
[]
[]
[]
[]
[]
[]
[]
[]
[]
[]
[]
[]
[]
[]
[]
[]
[]
[]
[]
[]
[]
[]
[]
[]
[]
[]
[]
[]
[]
[]
[]
[]
[]
[]
[]
[]
[]
[]
[]
[]
[]
[]
[]
[null,null,null,null,null,"NH HOTELES DEUT. -9511","Germany","CSS","DE01","9511"]
[null,null,null,null,null,"NH HOTELES DEUT. -9600","Germany","CSS","DE01","9600"]
[null,null,null,null,null,"Romania"]
[]
[null,null,null,null,null,"Hungary"]
[]
[]
[]
[null,null,null,null,null,"Mexico"]
[]
[null,null,null,null,null,"BA Name","Country","Type","Company","BA number"]
[]
[]
[]
[]
[]
[]
[]
[]
[null,null,null,null,null,"Servicios Coorporativos - MEXICO","MEXICO","CSS","MX04","9478"]
[]
[]
[]
[]
[]
[null,null,null,null,null,"Italy"]
[]
[null,null,null,null,null,"BA Name","Country","Type","Company","BA number"]
[null,null,null,null,null,"CS ITALY - VALDAGNO","ITALY","CSS","IT01",9700]
[null,null,null,null,null,"CS ITALY - MILANO","ITALY","CSS","IT01",9700]
[]
[]
[]
[]
[]
[null,null,null,null,null,"Spain"]
[]
[null,null,null,null,null,"BA Name","Country","Type","Company","BA number"]
[null,null,null,null,null,"NH HOTEL GROUP, S.A","SPAIN","CSS","ES01",9039]
[null,null,null,null,null,"NH HOTELES ESPAÑA, S.A.","SPAIN","CSS","ES10","9103"]
[null,null,null,null,null,"HESPERIA SA","SPAIN","CSS","ES50","9516"]
[]
[]
[]
[]
[]
[null,null,null,null,null,"Mercosur"]
[]
[null,null,null,null,null,"BA Name","Country","Type","Company","BA number"]
[null,null,null,null,null,"Servicios Coorporativos - CHILE","CHILE","CSS","CL02","0166"]
[]
[null,null,null,null,null,"Ser Coorp. Local currency (UYU)","URUGUAY","CSS","UY02","0167"]
[null,null,null,null,null,"Ser Coorp. Other Currency (EUR)","URUGUAY","CSS","UY02","0167"]
[]
[null,null,null,null,null,"Ser Coorp. Local currency","ARGENTINA","CSS","AR01","9509"]

{"sheet":"Journal","index":4,"n_rows":2,"n_cols":46,"rows_kept":2,"cut":false,"hidden":true,"merged":[]}
["BUKRS","BLART","BUDAT","BLDAT","XBLNR","WAERS","BKTXT","BUZEI","BSCHL","UMSKZ","KUNNR","LIFNR","HKONT","GSBER","KOSTL","WRBTR","ZUONR","SGTXT","XREF2","NEWBK","ZTERM","BVTYP","ZFBDT","XREF1","LONG_TEXT","MONAT","VBUND","PRCTR","VATDATE","XMWST","KURSF","WWERT","MWSKZ","AUFNR","SEGMENT","XREF3","ZLSCH","HBKID","HKTID","WITHT","QSSKZ","QSSHB","VERTT ","VERTN","MATNR","WERKS"]
["Company Code (4)","Document Type (2)","Posting Date (8)","Document Date (8)","Reference (16)","Currency (3)","Doc. Header Text (25)","Position (3)","Posting Key (2)","SGL Ind (1)","Customer (10)","Vendor (10)","GL Account (10)","Business Area (4)","Cost Center (10)","Amount (13)","Assignment (18)","Text (50)","Reference Key  2 (12)","New Company Code (4)","Payment Terms (4)","Part. Bank (4)","Bline date (8)","Reference Key 1 (12)","Long Text (500)","Period Posting","Trading Partner (6)","Profit Center (6)","VAT Date (8)","Calculate Tax (1)","Rate (5dec)","Traslation Date (8)","Tax Code (2)","Order (12)","Segment (10)","Reference Key 3 (12)","Payment Method (2)","House Bank (5)","Account ID (5)","Withholding Tax Type ()","Withholding Tax Code (2)","Withholding Tax base amount (13)","Contract Type (1)","Contract (13)","Material (18)","Plant (4)"]